﻿Body Name,Supplier ID,Supplier Name,Transaction Number,Their Ref,Date,Gross Value ,VAT Amount,Service Label,Service Code,Expenditure Code,Expenditure Category,Service Division Label
Blackpool Council,1096460,Mwuk Limited T/A Alexandra,497470,OLSINV/05216702,14/01/2019,255.6,42.6,CATERG,Catering Services,3201,Clothing & Uniforms,Community & Env Services
Blackpool Council,1024186,Solon Security,501246,SI18008310,14/01/2019,354.17,59.03,COMSAF,Community Safety,3401,General Services,Public Health
Blackpool Council,1106930,Morris Hargreaves Mcintyre,501907,103123,07/01/2019,2988,498,AHHBA,Blackpool Museum,3801,Other Expenses,Places
Blackpool Council,1010246,Book Trust,502753,INV03107C7D6B2,02/01/2019,23490.01,1012.83,CWAN,Children With Additional Needs,3304,Books And Periodicals,Children'S Services
Blackpool Council,1025240,Key Engineering Supplies Ltd,503093,11004,03/01/2019,342.48,0,ZM0018,Highways & Engineering,9773,Orders Received Not Invoiced,Blackpool Services
Blackpool Council,1025240,Key Engineering Supplies Ltd,503093,11004,03/01/2019,410.98,68.5,ZM0018,Highways & Engineering,9511A,Stocks Efin,Blackpool Services
Blackpool Council,1053453,Brenntag Uk Ltd,503429,32SI 3279374,15/01/2019,345.12,57.52,LEISUR,Leisure Management,3060,Chemicals,Community & Env Services
Blackpool Council,1049304,Insight Direct (Uk) Ltd,503430,4163796,02/01/2019,5997.17,999.53,CS0739,Ict Refresh,6525,I.T. Hardware Purchase,Capital - Resources
Blackpool Council,1008135,Marshalls,503431,Z000212755,02/01/2019,2888.44,481.41,SCHEME,Highways Schemes,3041,Other Materials,Community & Env Services
Blackpool Council,1116610,Smart Video & Sensing Limited,503473,100922,03/01/2019,64639.32,10773.22,CTABWA,Ltp Scheme 17/18,6501,Contract Payments,Capital - Commnctn & Regen
Blackpool Council,1052850,Charter Oaks Ltd,503479,121801,02/01/2019,3120,520,CGOAAA,Quality Corridor,6501,Contract Payments,Capital - Commnctn & Regen
Blackpool Council,1071546,Denis Rowlandson,503494,0311,03/01/2019,9600,1600,PRKOP1,Parks Operational Manager  1,1012,Premises Maint-Priv.Contractor,Community & Env Services
Blackpool Council,1117254,A G Stafford,503510,3,02/01/2019,6120,1020,TRB,Maintenance & Works,4501,Private Contractors,Community & Env Services
Blackpool Council,1101740,Ken Taylor Supplies Limited,503554,0284292,04/01/2019,1416,236,SCHEME,Highways Schemes,3041,Other Materials,Community & Env Services
Blackpool Council,1076264,Alliance Disposables Ltd,503566,I7310684,03/01/2019,1029.5,0,ZM0018,Highways & Engineering,9773,Orders Received Not Invoiced,Blackpool Services
Blackpool Council,1076264,Alliance Disposables Ltd,503566,I7310684,03/01/2019,1235.4,205.9,ZM0018,Highways & Engineering,9511A,Stocks Efin,Blackpool Services
Blackpool Council,1116707,Quartz Project Services,503591,INV3868A,18/01/2019,1500,250,PV7009,Coolsilk Loan,3413,Consultants,Budgets Outside Cash Limits
Blackpool Council,1116707,Quartz Project Services,503593,INV3868B,18/01/2019,1500,250,FH0003,Bpb Ocean Boulevard3,3413,Consultants,Budgets Outside Cash Limits
Blackpool Council,1006586,H Jenkinson & Co Ltd,503610,SINV00828102,02/01/2019,57372.55,9562.09,AEB,Buildings,3020,Furniture - Purchase,Resources
Blackpool Council,1006586,H Jenkinson & Co Ltd,503610,SINV00828102,02/01/2019,48188.74,8031.46,AEB,Buildings,3041,Other Materials,Resources
Blackpool Council,1091739,Mbl (Seminars) Limited,503619,772044,04/01/2019,576,96,HJA,Growth,3605,Confs & Short Courses,Places
Blackpool Council,1091739,Mbl (Seminars) Limited,503621,772039,04/01/2019,288,48,HJA,Growth,3605,Confs & Short Courses,Places
Blackpool Council,1107790,Taylek Ltd,503665,INV-10448,22/01/2019,486,81,PJOA,Commercial & Marketing,3041,Other Materials,Community & Env Services
Blackpool Council,1102823,Wilde Consultants Limited,503672,WPCON 16975,04/01/2019,3146.4,524.4,CTABWA,Ltp Scheme 17/18,6501,Contract Payments,Capital - Commnctn & Regen
Blackpool Council,1102823,Wilde Consultants Limited,503673,WPCON 16976,04/01/2019,4204.67,700.78,TRB,Maintenance & Works,4501,Private Contractors,Community & Env Services
Blackpool Council,1102823,Wilde Consultants Limited,503674,WPCON 16977,04/01/2019,930.82,155.14,CTBRAA,Bridges (Growth Fund),6501,Contract Payments,Capital - Comm & Environ
Blackpool Council,1009811,Child Poverty Action Group,503914,SI187617,03/01/2019,256,0,FCACA,Benefits - Admin,3304,Books And Periodicals,Resources
Blackpool Council,1025240,Key Engineering Supplies Ltd,503928,11301,04/01/2019,300,0,ZM0018,Highways & Engineering,9773,Orders Received Not Invoiced,Blackpool Services
Blackpool Council,1025240,Key Engineering Supplies Ltd,503928,11301,04/01/2019,360,60,ZM0018,Highways & Engineering,9511A,Stocks Efin,Blackpool Services
Blackpool Council,1008871,Irrv Services,503945,A125926,04/01/2019,792,132,FBBEA,"Income, Recovery & Debtors",3605,Confs & Short Courses,Resources
Blackpool Council,1080418,Skv Communications Limited,503954,61850,02/01/2019,1980,330,CGTBBB,Conference Centre,6501,Contract Payments,Capital - Commnctn & Regen
Blackpool Council,1102823,Wilde Consultants Limited,503972,WPCON 16978,10/01/2019,6293.7,1048.95,CTBRAA,Bridges (Growth Fund),6501,Contract Payments,Capital - Comm & Environ
Blackpool Council,1025240,Key Engineering Supplies Ltd,503979,11336,04/01/2019,524.88,87.48,SCHEME,Highways Schemes,3041,Other Materials,Community & Env Services
Blackpool Council,1025240,Key Engineering Supplies Ltd,503980,11335,04/01/2019,342.48,0,ZM0018,Highways & Engineering,9773,Orders Received Not Invoiced,Blackpool Services
Blackpool Council,1025240,Key Engineering Supplies Ltd,503980,11335,04/01/2019,410.98,68.5,ZM0018,Highways & Engineering,9511A,Stocks Efin,Blackpool Services
Blackpool Council,1008135,Marshalls,504049,Z000215024,04/01/2019,4873.09,812.18,SCHEME,Highways Schemes,3041,Other Materials,Community & Env Services
Blackpool Council,1019196,Scan Computers International Ltd,504083,0002778149,07/01/2019,4816.3,802.72,EM4009,Digital Media Manager,3531,Computer-H'Ware Purchase,Resources
Blackpool Council,1049304,Insight Direct (Uk) Ltd,504084,4171019,04/01/2019,512.06,85.34,MPB,Edc - Economic Dev Company,3533,Computer S/W Purchases,Places
Blackpool Council,1019773,"Bradshaw Electric Vehs, John Bradshaw Ltd",504107,111352,16/01/2019,432,72,SCLEAN,Street Cleaning,4501,Private Contractors,Community & Env Services
Blackpool Council,1097930,Bcs Learning & Developement Limited,504117,INV66666,08/01/2019,1011,168.5,ALEARN,Adult Learning,6273,Miscellaneous,Places
Blackpool Council,1096659,Dalgleish Therapies,504254,0918001218,04/01/2019,4000,0,FK0071,Corporate Training,0911,Training Expenses,Chief Executive
Blackpool Council,1107445,REDACTED PERSONAL DATA,504260,JH187,04/01/2019,581.2,0,JA0505,Children'S Training,0911,Training Expenses,Children'S Services
Blackpool Council,1006912,Sign Post Solutions Ltd T/A Signfix,504262,249680,03/01/2019,386.4,64.4,SCHEME,Highways Schemes,3041,Other Materials,Community & Env Services
Blackpool Council,1025240,Key Engineering Supplies Ltd,504270,11381,09/01/2019,316.8,52.8,APCBBE,Extra Support,3020,Furniture - Purchase,Adult & Families
Blackpool Council,1088636,Tarmac Building Products Ltd,504293,SI01490468,02/01/2019,640,0,ZM0018,Highways & Engineering,9773,Orders Received Not Invoiced,Blackpool Services
Blackpool Council,1088636,Tarmac Building Products Ltd,504293,SI01490468,02/01/2019,768,128,ZM0018,Highways & Engineering,9511A,Stocks Efin,Blackpool Services
Blackpool Council,1114832,Able 2 Occupational Therapy Services Ltd,504307,19042,04/01/2019,530.14,0,FC1404,Blue Badge Reform,3401,General Services,Resources
Blackpool Council,1094424,The Networking People,504332,SI105790,09/01/2019,1310.68,218.45,FGAA,Ict Corporate Services,3531,Computer-H'Ware Purchase,Resources
Blackpool Council,1094424,The Networking People,504474,SI105784,04/01/2019,652.54,108.76,LIFEVE,Life Events Reg & Care,3531,Computer-H'Ware Purchase,Governance & Partnerships
Blackpool Council,1094424,The Networking People,504475,SI105783,04/01/2019,1108.78,184.8,FGAA,Ict Corporate Services,3537,Computer-Recharges,Resources
Blackpool Council,1018184,Blackpool Skip Hire,504489,5963,09/01/2019,2056.61,342.77,CWASTE,Commercial Waste,4514,Contract 'E',Community & Env Services
Blackpool Council,1018184,Blackpool Skip Hire,504490,5962,09/01/2019,10896,1816,CWASTE,Commercial Waste,4514,Contract 'E',Community & Env Services
Blackpool Council,1100697,Cheshire Christmas Trees/ Lowton Commercials,504502,0208,18/01/2019,3002.4,500.4,CWASTE,Commercial Waste,4514,Contract 'E',Community & Env Services
Blackpool Council,1112621,Lk2 Sport & Leisure Ltd,504504,1530,18/01/2019,2400,400,PRKDEV,Parks Development,1012,Premises Maint-Priv.Contractor,Community & Env Services
Blackpool Council,1008512,Killgerm Chemicals Ltd,504533,SI02-0210911,10/01/2019,297,49.5,PEST,Pest Control,3041,Other Materials,Community & Env Services
Blackpool Council,1049304,Insight Direct (Uk) Ltd,504537,4174781,10/01/2019,263.32,43.89,MPB,Edc - Economic Dev Company,3533,Computer S/W Purchases,Places
Blackpool Council,1094355,Les Mills Fitness Uk Ltd,504542,SIV287414,04/01/2019,318.28,53.05,LEISUR,Leisure Management,2008,Running Costs-Licences,Community & Env Services
Blackpool Council,1111248,Nottingham City Council,504546,852775241,04/01/2019,10162.8,1693.8,PRKOP1,Parks Operational Manager  1,1021,Growing,Community & Env Services
Blackpool Council,1006449,Tmp (Uk) Ltd,504549,100001196164,04/01/2019,1544.08,257.35,TRA,Traffic Management,4501,Private Contractors,Community & Env Services
Blackpool Council,1071925,Groundwork Cheshire Lancs And Merseyside,504562,0000001889,09/01/2019,8062.2,1343.7,AEB,Buildings,3801,Other Expenses,Resources
Blackpool Council,1013705,Stadia Sports/ Broxap Limited,504618,INV239963,04/01/2019,1533.6,255.6,PRKOP1,Parks Operational Manager  1,3455,Memorials Trees And Benches,Community & Env Services
Blackpool Council,1096607,Cutlers Property Consultancy (Services),504623,0070446,02/01/2019,4680,0,AEE,Estates,0781,Contracted,Resources
Blackpool Council,1006292,Vodafone Corporate Ltd,504627,LQ06897,02/01/2019,999.6,166.6,FGAA,Ict Corporate Services,3531,Computer-H'Ware Purchase,Resources
Blackpool Council,1114728,Rotadex Systems Ltd,504628,00204169,09/01/2019,52440,8740,AEB,Buildings,3041,Other Materials,Resources
Blackpool Council,1049304,Insight Direct (Uk) Ltd,504637,4176580,11/01/2019,4780.31,796.72,AEF,Facilities,3531,Computer-H'Ware Purchase,Resources
Blackpool Council,1053453,Brenntag Uk Ltd,504638,32SI 3279903,09/01/2019,345.12,57.52,LEISUR,Leisure Management,3060,Chemicals,Community & Env Services
Blackpool Council,1017832,Dick Leigh Chainsaw Specialist,504641,200119,10/01/2019,374.06,62.34,PRKOP1,Parks Operational Manager  1,3003,Equipt-Mtce Repairs,Community & Env Services
Blackpool Council,1092452,The Audience Agency,504679,5909,09/01/2019,480,80,AHG,Art Gallery Summary,3711,Subscriptions,Places
Blackpool Council,1008135,Marshalls,504695,Z000219603,11/01/2019,4837.09,806.18,SCHEME,Highways Schemes,3041,Other Materials,Community & Env Services
Blackpool Council,1039704,Thomson Reuters,504696,6125608358,03/01/2019,730,0,LM0420,Adults Training,3304,Books And Periodicals,Adult & Families
Blackpool Council,1058510,Lifeline Language Services Ltd,504698,0319033,11/01/2019,711,118.5,JEA,Senior Management,5507,Personal,Children'S Services
Blackpool Council,1010830,Ace Radio Cabs Limited,504708,0003 ACE,09/01/2019,1540,0,TRCHIL,Integrated Transport Children,2201,Contract Hire,Community & Env Services
Blackpool Council,1088694,Cmp Quantity Surveying Ltd,504709,10/2951,11/01/2019,11880,1980,CGTBBB,Conference Centre,6503,Capital Salaries (Pro Advance),Capital - Commnctn & Regen
Blackpool Council,1062176,Gmbg Ltd T/A Civils & Lintels,504710,FNW/376458,11/01/2019,378.19,63.03,SCHEME,Highways Schemes,3041,Other Materials,Community & Env Services
Blackpool Council,1098167,Recycling Lives Compliance Services Limited,504723,303770,18/01/2019,1359.6,226.6,CWASTE,Commercial Waste,4514,Contract 'E',Community & Env Services
Blackpool Council,1006292,Vodafone Corporate Ltd,504724,LQ32584,04/01/2019,337.2,56.2,FGAA,Ict Corporate Services,3531,Computer-H'Ware Purchase,Resources
Blackpool Council,1006292,Vodafone Corporate Ltd,504725,LQ20436,03/01/2019,290.4,48.4,FGAA,Ict Corporate Services,3531,Computer-H'Ware Purchase,Resources
Blackpool Council,1031983,Olympic Lock & Safeguards Ltd,504732,7243,11/01/2019,1464.73,244.12,GATE,Alleygates,3041,Other Materials,Community & Env Services
Blackpool Council,1006586,H Jenkinson & Co Ltd,504735,SINV00829537,11/01/2019,480,80,AEB,Buildings,3302,Stationery,Resources
Blackpool Council,1006419,Tunstall Healthcare (Uk) Ltd,504767,3IN/10328950,04/01/2019,482.34,80.39,APFBAB,Vitaline,4501,Private Contractors,Adult & Families
Blackpool Council,1105889,3d Environmental Limited,504772,BBC-0076,10/01/2019,270,45,PYEP,Environmental Protection,3313,General Expenses,Community & Env Services
Blackpool Council,1008135,Marshalls,504775,Z000220378,11/01/2019,4837.09,806.18,SCHEME,Highways Schemes,3041,Other Materials,Community & Env Services
Blackpool Council,1008135,Marshalls,504776,Z000220379,11/01/2019,4837.09,806.18,SCHEME,Highways Schemes,3041,Other Materials,Community & Env Services
Blackpool Council,1007987,Millercare Limited,504784,1/53651,03/01/2019,780,130,APCBAA,Coopers Way,3030,Domestic Equipment - Purchase,Adult & Families
Blackpool Council,1116224,Bluegrass Research Ltd,504805,1037,02/01/2019,4828.8,804.8,BSTPRJ,Better Start Projects,3401,General Services,Better Start Projects
Blackpool Council,1053470,Centre For Public Scrutiny Limited,504815,41003275,03/01/2019,420,70,BEA,Democratic Services & Admin,0911,Training Expenses,Governance & Partnerships
Blackpool Council,1114339,Lc Packaging Uk Ltd,504831,9500057113,08/01/2019,2620.8,436.8,SCHEME,Highways Schemes,3041,Other Materials,Community & Env Services
Blackpool Council,1022781,Moore Readymix Ltd,504832,95329,11/01/2019,270.6,45.1,ENGINE,Engineering,3041,Other Materials,Community & Env Services
Blackpool Council,1097502,Honey Brothers Limited,504833,IN186432,16/01/2019,250.8,41.8,PRKOP1,Parks Operational Manager  1,3041,Other Materials,Community & Env Services
Blackpool Council,1076555,Uk Container Maintenance Limited,504850,35124,04/01/2019,694.8,115.8,CWASTE,Commercial Waste,3041,Other Materials,Community & Env Services
Blackpool Council,1086156,Water Saving Techniques Limited,504851,4110,08/01/2019,5640,940,PARADE,Parades & Seawall,1012,Premises Maint-Priv.Contractor,Community & Env Services
Blackpool Council,1086156,Water Saving Techniques Limited,504852,4111,08/01/2019,15434.4,2572.4,PARADE,Parades & Seawall,1012,Premises Maint-Priv.Contractor,Community & Env Services
Blackpool Council,1102371,A T Graphics Limited,504859,1165500,04/01/2019,360,60,PRA,Conferences,3315,Marketing,Places
Blackpool Council,1102823,Wilde Consultants Limited,504884,WPCON 17020,16/01/2019,6051.41,1008.57,CTBRAA,Bridges (Growth Fund),6501,Contract Payments,Capital - Comm & Environ
Blackpool Council,1111999,Simon Critchley Photography,504885,114,16/01/2019,2000,0,AHHBA,Blackpool Museum,3413,Consultants,Places
Blackpool Council,1008135,Marshalls,504887,Z000222105,16/01/2019,3818.76,636.46,SCHEME,Highways Schemes,3041,Other Materials,Community & Env Services
Blackpool Council,1008135,Marshalls,504888,Z000222104,16/01/2019,4837.09,806.18,SCHEME,Highways Schemes,3041,Other Materials,Community & Env Services
Blackpool Council,1101124,South Shore Academy,504891,SSSI 259,08/01/2019,10000,0,MNGMT,Central Management,5555,Educational Support,Children'S Services
Blackpool Council,1028855,Read The Reading Agency Ltd,504905,INV-0767,04/01/2019,262.56,43.76,LBF,Library Management,3315,Marketing,Places
Blackpool Council,1117529,Attainability Uk Ltd,504906,2309,04/01/2019,714,119,MTE,Undefined Age Group,5401,Aids To Daily Living,Adult & Families
Blackpool Council,1100070,Carebase (Fac001),504907,74563,04/01/2019,2232,372,MTE,Undefined Age Group,5401,Aids To Daily Living,Adult & Families
Blackpool Council,1006292,Vodafone Corporate Ltd,504914,LQ40776,04/01/2019,442.8,73.8,FGAA,Ict Corporate Services,3531,Computer-H'Ware Purchase,Resources
Blackpool Council,1006292,Vodafone Corporate Ltd,504916,LQ40777,04/01/2019,698.4,116.4,FGAA,Ict Corporate Services,3531,Computer-H'Ware Purchase,Resources
Blackpool Council,1090628,The Furniture Recycling Group,504993,INV17457,18/01/2019,264,44,CWASTE,Commercial Waste,4514,Contract 'E',Community & Env Services
Blackpool Council,1105889,3d Environmental Limited,505018,BBC-0077,10/01/2019,960,160,PYEP,Environmental Protection,3313,General Expenses,Community & Env Services
Blackpool Council,1097234,Ieg4 Limited,505022,IEG4001698,16/01/2019,9450,1575,FC1801,Social Fund - Admin,3532,Comp-Running & License Costs,Resources
Blackpool Council,1007206,Road Safety Services Ltd,505025,84409,02/01/2019,4874.4,812.4,CTABXA,Ltp Scheme 18/19,6501,Contract Payments,Capital - Commnctn & Regen
Blackpool Council,1007206,Road Safety Services Ltd,505027,84407,02/01/2019,576,96,TRB,Maintenance & Works,4501,Private Contractors,Community & Env Services
Blackpool Council,1007206,Road Safety Services Ltd,505028,84406,03/01/2019,2222.4,370.4,SCHEME,Highways Schemes,1012,Premises Maint-Priv.Contractor,Community & Env Services
Blackpool Council,1006292,Vodafone Corporate Ltd,505033,LQ49654,04/01/2019,1413.93,235.65,FGAA,Ict Corporate Services,3531,Computer-H'Ware Purchase,Resources
Blackpool Council,1010138,C Cabs,505056,03559,07/01/2019,1100,0,TRCHIL,Integrated Transport Children,2201,Contract Hire,Community & Env Services
Blackpool Council,1010138,C Cabs,505058,03550,07/01/2019,434,0,TRCHIL,Integrated Transport Children,2201,Contract Hire,Community & Env Services
Blackpool Council,1010138,C Cabs,505061,03538,07/01/2019,684,0,TRCHIL,Integrated Transport Children,2201,Contract Hire,Community & Env Services
Blackpool Council,1010138,C Cabs,505062,03536,07/01/2019,646,0,TRCHIL,Integrated Transport Children,2201,Contract Hire,Community & Env Services
Blackpool Council,1010138,C Cabs,505064,03535,07/01/2019,570,0,TRCHIL,Integrated Transport Children,2201,Contract Hire,Community & Env Services
Blackpool Council,1010138,C Cabs,505065,03560,07/01/2019,720,0,TRCHIL,Integrated Transport Children,2201,Contract Hire,Community & Env Services
Blackpool Council,1010138,C Cabs,505066,03558,07/01/2019,748,0,TRCHIL,Integrated Transport Children,2201,Contract Hire,Community & Env Services
Blackpool Council,1010138,C Cabs,505067,03537,07/01/2019,950,0,TRCHIL,Integrated Transport Children,2201,Contract Hire,Community & Env Services
Blackpool Council,1010138,C Cabs,505068,03565,07/01/2019,504,0,TRCHIL,Integrated Transport Children,2201,Contract Hire,Community & Env Services
Blackpool Council,1010138,C Cabs,505069,03547,07/01/2019,1295,0,TRCHIL,Integrated Transport Children,2201,Contract Hire,Community & Env Services
Blackpool Council,1114728,Rotadex Systems Ltd,505070,00204316,17/01/2019,8880,1480,AHHBA,Blackpool Museum,3012,Other Equipment,Places
Blackpool Council,1010138,C Cabs,505071,03557,07/01/2019,660,0,TRCHIL,Integrated Transport Children,2201,Contract Hire,Community & Env Services
Blackpool Council,1010619,Askews And Holts Library Services Ltd,505073,5919276,11/01/2019,324.29,0,LBB,Central Library,3304,Books And Periodicals,Places
Blackpool Council,1010138,C Cabs,505074,03572,08/01/2019,1000,0,TRCHIL,Integrated Transport Children,2201,Contract Hire,Community & Env Services
Blackpool Council,1010619,Askews And Holts Library Services Ltd,505075,5919299,11/01/2019,321.63,0,LBB,Central Library,3304,Books And Periodicals,Places
Blackpool Council,1010138,C Cabs,505077,03568,07/01/2019,1012,0,TRCHIL,Integrated Transport Children,2201,Contract Hire,Community & Env Services
Blackpool Council,1010619,Askews And Holts Library Services Ltd,505078,5919298,11/01/2019,319.89,0,LBB,Central Library,3304,Books And Periodicals,Places
Blackpool Council,1010138,C Cabs,505079,03562,08/01/2019,792,0,TRCHIL,Integrated Transport Children,2201,Contract Hire,Community & Env Services
Blackpool Council,1010138,C Cabs,505080,03567,03/01/2019,1056,0,TRCHIL,Integrated Transport Children,2201,Contract Hire,Community & Env Services
Blackpool Council,1010138,C Cabs,505081,03564,08/01/2019,1012,0,TRCHIL,Integrated Transport Children,2201,Contract Hire,Community & Env Services
Blackpool Council,1010138,C Cabs,505083,03552,03/01/2019,864,0,TRCHIL,Integrated Transport Children,2201,Contract Hire,Community & Env Services
Blackpool Council,1010138,C Cabs,505084,03555,07/01/2019,900,0,TRCHIL,Integrated Transport Children,2201,Contract Hire,Community & Env Services
Blackpool Council,1010138,C Cabs,505085,03553,07/01/2019,874,0,TRCHIL,Integrated Transport Children,2201,Contract Hire,Community & Env Services
Blackpool Council,1010138,C Cabs,505087,03540,08/01/2019,616,0,TRCHIL,Integrated Transport Children,2201,Contract Hire,Community & Env Services
Blackpool Council,1010138,C Cabs,505089,03542,08/01/2019,728,0,TRCHIL,Integrated Transport Children,2201,Contract Hire,Community & Env Services
Blackpool Council,1010138,C Cabs,505090,03549,08/01/2019,874,0,TRCHIL,Integrated Transport Children,2201,Contract Hire,Community & Env Services
Blackpool Council,1010138,C Cabs,505091,03546,08/01/2019,950,0,TRCHIL,Integrated Transport Children,2201,Contract Hire,Community & Env Services
Blackpool Council,1010138,C Cabs,505092,03554,08/01/2019,828,0,TRCHIL,Integrated Transport Children,2201,Contract Hire,Community & Env Services
Blackpool Council,1098167,Recycling Lives Compliance Services Limited,505093,303419,18/01/2019,514.8,85.8,CWASTE,Commercial Waste,4514,Contract 'E',Community & Env Services
Blackpool Council,1010138,C Cabs,505094,03548,09/01/2019,855,0,TRCHIL,Integrated Transport Children,2201,Contract Hire,Community & Env Services
Blackpool Council,1010138,C Cabs,505096,03545,09/01/2019,828,0,TRCHIL,Integrated Transport Children,2201,Contract Hire,Community & Env Services
Blackpool Council,1040691,Quantum Theatre,505098,SQ 8.12.18,14/01/2019,300,50,PRKOP1,Parks Operational Manager  1,3041,Other Materials,Community & Env Services
Blackpool Council,1040691,Quantum Theatre,505100,YCN 18.11.18,15/01/2019,654.82,109.14,PRKOP1,Parks Operational Manager  1,3041,Other Materials,Community & Env Services
Blackpool Council,1010138,C Cabs,505107,03569,08/01/2019,1012,0,TRCHIL,Integrated Transport Children,2201,Contract Hire,Community & Env Services
Blackpool Council,1010138,C Cabs,505109,03575,09/01/2019,1012,0,TRCHIL,Integrated Transport Children,2201,Contract Hire,Community & Env Services
Blackpool Council,1010138,C Cabs,505111,03570,07/01/2019,1100,0,TRCHIL,Integrated Transport Children,2201,Contract Hire,Community & Env Services
Blackpool Council,1035120,Talking Life (Fac068 Payment),505112,OS005141/S00455,18/01/2019,1620,270,JA0505,Children'S Training,0911,Training Expenses,Children'S Services
Blackpool Council,1010138,C Cabs,505113,03576,08/01/2019,1100,0,TRCHIL,Integrated Transport Children,2201,Contract Hire,Community & Env Services
Blackpool Council,1010138,C Cabs,505115,03578,09/01/2019,990,0,TRCHIL,Integrated Transport Children,2201,Contract Hire,Community & Env Services
Blackpool Council,1008135,Marshalls,505116,Z000222925,17/01/2019,4837.09,806.18,SCHEME,Highways Schemes,3041,Other Materials,Community & Env Services
Blackpool Council,1040743,Iccm,505123,10586,24/01/2019,1140,190,CN2016,Carleton Crem Works 2018-20,6501,Contract Payments,Capital - Governance & Partner
Blackpool Council,1044964,Marketing Lancashire,505127,200,17/01/2019,7800,1300,PTC,"A.C.E. Regen, Tourism & Cultur",3711,Subscriptions,Places
Blackpool Council,1057663,Wilde Recruitment Ltd,505131,34101,11/01/2019,517.86,86.31,CTAHHA,Tramway Emergency Works,6501,Contract Payments,Capital - Commnctn & Regen
Blackpool Council,1037025,Meaco Measurement & Control Ltd,505132,3979,11/01/2019,684,114,AHG,Art Gallery Summary,1012,Premises Maint-Priv.Contractor,Places
Blackpool Council,1117493,Amy Baggaley Consultancy,505137,022,02/01/2019,10000,0,EC7015,Museum - Pr And Promotion,3413,Consultants,Places
Blackpool Council,1117264,True North Communications Ltd,505140,01425,16/01/2019,12687.6,2114.6,EC7015,Museum - Pr And Promotion,3413,Consultants,Places
Blackpool Council,1098105,Brightprint Ltd(Non Factor Payments Only),505141,27734,03/01/2019,474,79,TRC,Travel & Safety,4501,Private Contractors,Community & Env Services
Blackpool Council,1082067,Squire Patton Boggs (Uk) Llp,505142,2639048,14/01/2019,19988.16,3331.36,CTAHHA,Tramway Emergency Works,6506,Consultants Fees,Capital - Commnctn & Regen
Blackpool Council,1101740,Ken Taylor Supplies Limited,505145,0285124,18/01/2019,11340,1890,SCHEME,Highways Schemes,3041,Other Materials,Community & Env Services
Blackpool Council,1038011,Arb Matters,505147,AM1405,18/01/2019,360,60,PRKOP1,Parks Operational Manager  1,3003,Equipt-Mtce Repairs,Community & Env Services
Blackpool Council,1113103,Joseph Boniface Architects Ltd,505150,JBA337 A-C,02/01/2019,2106,351,CTABWA,Ltp Scheme 17/18,6522,Land / Premises - Misc,Capital - Commnctn & Regen
Blackpool Council,1049304,Insight Direct (Uk) Ltd,505159,4185827,18/01/2019,15599.76,2599.96,CS0739,Ict Refresh,6525,I.T. Hardware Purchase,Capital - Resources
Blackpool Council,1037831,Turner & Townsend Contract Services Ltd,505161,000109888,17/01/2019,2904,484,CP0511,Anchorsholme Seawall Scheme,6506,Consultants Fees,Capital - Comm & Environ
Blackpool Council,1114704,Morson Human Resources Ltd,505162,HS210390,03/01/2019,2772,462,CTAHHA,Tramway Emergency Works,6506,Consultants Fees,Capital - Commnctn & Regen
Blackpool Council,1041733,Dhl International (Uk) Ltd,505164,AVI6445313,04/01/2019,532.73,0,PJHA,"Depot, Management & Admin",3041,Other Materials,Community & Env Services
Blackpool Council,1009751,Bt Business Direct Limited,505166,IN04325615,15/01/2019,302.45,50.41,CCTV,Cctv,3003,Equipt-Mtce Repairs,Public Health
Blackpool Council,1102823,Wilde Consultants Limited,505168,WPCON 16911,03/01/2019,7025.04,1170.84,CTABXA,Ltp Scheme 18/19,6501,Contract Payments,Capital - Commnctn & Regen
Blackpool Council,1008105,Mercer & Sons Ltd,505171,911984,18/01/2019,1797,299.5,PARADE,Parades & Seawall,3041,Other Materials,Community & Env Services
Blackpool Council,1058510,Lifeline Language Services Ltd,505179,0319063,17/01/2019,283.8,47.3,JEA,Senior Management,3419,Interpreters Fees,Children'S Services
Blackpool Council,1008135,Marshalls,505229,Z000216688,04/01/2019,2514.48,0,ZM0018,Highways & Engineering,9773,Orders Received Not Invoiced,Blackpool Services
Blackpool Council,1008135,Marshalls,505229,Z000216688,04/01/2019,3542.69,590.45,ZM0018,Highways & Engineering,9511A,Stocks Efin,Blackpool Services
Blackpool Council,1052237,Elite Cleaning & Environmental Svcs Ltd,505231,53722,02/01/2019,6771.54,1128.59,EDDIV,Education Diversity,1601,Consumable Supplies,Children'S Services
Blackpool Council,1044156,Pell Frischmann,505251,W180502,07/01/2019,2290.68,381.78,CTABXA,Ltp Scheme 18/19,6501,Contract Payments,Capital - Commnctn & Regen
Blackpool Council,1106832,The Letterbox Consultancy Ltd,505256,1824476,16/01/2019,252.13,42.02,ENGINE,Engineering,1012,Premises Maint-Priv.Contractor,Community & Env Services
Blackpool Council,1049304,Insight Direct (Uk) Ltd,505259,4172165,09/01/2019,1580.88,263.47,FGAA,Ict Corporate Services,3532,Comp-Running & License Costs,Resources
Blackpool Council,1006586,H Jenkinson & Co Ltd,505269,SINV00830336,18/01/2019,2079,346.5,AEB,Buildings,3020,Furniture - Purchase,Resources
Blackpool Council,1117478,Pearson Insight Ltd,505270,PI1812,17/01/2019,900,150,PJW,Management - Places - Illumina,3041,Other Materials,Places
Blackpool Council,1009208,Geismar (Uk) Limited,505271,001851373,11/01/2019,284.54,47.42,ENGINE,Engineering,3041,Other Materials,Community & Env Services
Blackpool Council,1072081,Investec Asset Finance,505274,MI/1486765,17/01/2019,1500,250,FCADA,Customer Services,3801,Other Expenses,Resources
Blackpool Council,1117359,Greenblue Urban Ltd,505276,36192,11/01/2019,1675.14,279.19,CGOAAA,Quality Corridor,6501,Contract Payments,Capital - Commnctn & Regen
Blackpool Council,1026676,Redman Smith Ltd ( Plastics Blackpool),505318,963,03/01/2019,350,0,SCHEME,Highways Schemes,3041,Other Materials,Community & Env Services
Blackpool Council,1098105,Brightprint Ltd(Non Factor Payments Only),505319,27402,09/01/2019,425,0,EC7015,Museum - Pr And Promotion,3301,Printing,Places
Blackpool Council,1011923,Rp Tyson Construction Ltd,505321,IN2523,02/01/2019,90448.89,0,CXC11,Site Development,6501,Contract Payments,Capital - Chief Executive
Blackpool Council,1011923,Rp Tyson Construction Ltd,505321,IN2523,02/01/2019,2797.39,0,ZH0001,Housing Revenue Account,97B6,Retention Monies - Cap Trsfr,Housing Revenue Account
Blackpool Council,1004963,F Parkinson Ltd,505322,9338,03/01/2019,46323.98,7720.66,CEBABJ,Nd Condition Funding 2009-10,6501,Contract Payments,Capital - Childrens
Blackpool Council,1004963,F Parkinson Ltd,505322,9338,03/01/2019,2031.75,0,ZF0001,"Insurance,Dso,Banking",97B6,Retention Monies - Cap Trsfr,Total Reconciliations
Blackpool Council,1113243,Mclaughlin & Harvey Ltd,505323,INTERIM 9,03/01/2019,410380.91,68396.82,CGTBBB,Conference Centre,6501,Contract Payments,Capital - Commnctn & Regen
Blackpool Council,1113243,Mclaughlin & Harvey Ltd,505323,INTERIM 9,03/01/2019,10576.82,0,ZF0001,"Insurance,Dso,Banking",97B6,Retention Monies - Cap Trsfr,Total Reconciliations
Blackpool Council,1006944,Siemens Financial Services Ltd,505351,244/19/0060130,11/01/2019,2090.24,348.37,APFBAB,Vitaline,4501,Private Contractors,Adult & Families
Blackpool Council,1076636,Chicken Joes Ltd,505354,520234,07/01/2019,276.3,0,CATERG,Catering Services,3101,Provisions,Community & Env Services
Blackpool Council,1008308,Laca,505357,INV-04870C5X8J4,07/01/2019,279,46.5,CATERG,Catering Services,3711,Subscriptions,Community & Env Services
Blackpool Council,1110202,Preston Bus Ltd,505365,103940,08/01/2019,1980,0,TRCHIL,Integrated Transport Children,2201,Contract Hire,Community & Env Services
Blackpool Council,1110202,Preston Bus Ltd,505366,103941,08/01/2019,1980,0,TRCHIL,Integrated Transport Children,2201,Contract Hire,Community & Env Services
Blackpool Council,1009234,Gary Roy Kirkham,505372,GK07,07/01/2019,354,0,TRCHIL,Integrated Transport Children,2201,Contract Hire,Community & Env Services
Blackpool Council,1006099,Blackpool Teaching Hospitals Nhs Ft,505373,1110042453,03/01/2019,4580.83,0,SBOARD,Springboard,3801,Other Expenses,Children'S Services
Blackpool Council,1036448,Lambert Smith Hampton,505390,ARINV/00298405,11/01/2019,900,150,HJA,Growth,6305,Fees,Places
Blackpool Council,1011970,A1 Streamline Road Markings Ltd,505394,3704,03/01/2019,3358.32,559.72,SCHEME,Highways Schemes,1012,Premises Maint-Priv.Contractor,Community & Env Services
Blackpool Council,1013064,Tarmac Lafarge Trading Limited,505395,9039334956,04/01/2019,950.73,158.45,ENGINE,Engineering,3041,Other Materials,Community & Env Services
Blackpool Council,1013064,Tarmac Lafarge Trading Limited,505396,9039334955,04/01/2019,1130.17,188.36,ENGINE,Engineering,3041,Other Materials,Community & Env Services
Blackpool Council,1076264,Alliance Disposables Ltd,505398,I7354817,18/01/2019,372.9,62.15,SCLEAN,Street Cleaning,1601,Consumable Supplies,Community & Env Services
Blackpool Council,1013064,Tarmac Lafarge Trading Limited,505399,9039323301,04/01/2019,1081.75,180.29,ENGINE,Engineering,3041,Other Materials,Community & Env Services
Blackpool Council,1013064,Tarmac Lafarge Trading Limited,505400,9039323300,04/01/2019,2017.83,336.3,ENGINE,Engineering,3041,Other Materials,Community & Env Services
Blackpool Council,1013064,Tarmac Lafarge Trading Limited,505402,9039340693,04/01/2019,562.8,93.8,ENGINE,Engineering,3041,Other Materials,Community & Env Services
Blackpool Council,1013064,Tarmac Lafarge Trading Limited,505403,9039340694,04/01/2019,831.69,138.61,ENGINE,Engineering,3041,Other Materials,Community & Env Services
Blackpool Council,1013064,Tarmac Lafarge Trading Limited,505404,9039348047,09/01/2019,1063.23,177.2,ENGINE,Engineering,3041,Other Materials,Community & Env Services
Blackpool Council,1013064,Tarmac Lafarge Trading Limited,505405,9039340695,04/01/2019,644.6,107.43,ENGINE,Engineering,3041,Other Materials,Community & Env Services
Blackpool Council,1013064,Tarmac Lafarge Trading Limited,505406,9039348048,09/01/2019,534.42,89.07,ENGINE,Engineering,3041,Other Materials,Community & Env Services
Blackpool Council,1011714,Michael Hope Haulage Limited,505407,001374,03/01/2019,1814.4,302.4,SCHEME,Highways Schemes,1012,Premises Maint-Priv.Contractor,Community & Env Services
Blackpool Council,1004960,Drugline Lancashire Ltd,505408,1068,10/01/2019,1220,0,PUBH18,Stop Smoking Services & Interv,4501,Private Contractors,Public Health
Blackpool Council,1055691,Norbain Sd Ltd,505409,I2747372,18/01/2019,3693.94,615.66,CCTV,Cctv,3003,Equipt-Mtce Repairs,Public Health
Blackpool Council,1051299,Leisure Travel,505411,INV00389,07/01/2019,1020,0,TRCHIL,Integrated Transport Children,2201,Contract Hire,Community & Env Services
Blackpool Council,1051299,Leisure Travel,505412,INV00390,07/01/2019,1500,0,TRCHIL,Integrated Transport Children,2201,Contract Hire,Community & Env Services
Blackpool Council,1051299,Leisure Travel,505413,INV00391,07/01/2019,1500,0,TRCHIL,Integrated Transport Children,2201,Contract Hire,Community & Env Services
Blackpool Council,1051299,Leisure Travel,505414,INV00392,07/01/2019,1500,0,TRCHIL,Integrated Transport Children,2201,Contract Hire,Community & Env Services
Blackpool Council,1072412,Streetgames Uk Limited,505415,SG1819-200,03/01/2019,700,0,PESPRT,Pe And Sport Team,3426,Course Fees,Community & Env Services
Blackpool Council,1022781,Moore Readymix Ltd,505424,95469,28/01/2019,1051.08,175.18,ENGINE,Engineering,3041,Other Materials,Community & Env Services
Blackpool Council,1009906,Combined Precision Components Plc Cpc,505426,8989176,07/01/2019,431.76,71.96,CCTV,Cctv,3003,Equipt-Mtce Repairs,Public Health
Blackpool Council,1090774,Richardson Traction Limited,505436,20745,03/01/2019,960,160,PJAA,"Erection, Operation & Dismantl",2211,Casual Hire,Community & Env Services
Blackpool Council,1071928,Civica Uk Limited,505438,C/LE173555,18/01/2019,1800,300,LIFEVE,Life Events Reg & Care,3532,Comp-Running & License Costs,Governance & Partnerships
Blackpool Council,1010314,Blackpool Grand Theatre,505439,AE 468,03/01/2019,300,50,BSTPRJ,Better Start Projects,1702,Hire Of Meeting Rooms,Better Start Projects
Blackpool Council,1091050,Howard Palmer T/A Trojan Travel,505442,004,07/01/2019,1375,0,TRCHIL,Integrated Transport Children,2201,Contract Hire,Community & Env Services
Blackpool Council,1117264,True North Communications Ltd,505445,01396,08/01/2019,12687.6,2114.6,EC7015,Museum - Pr And Promotion,3413,Consultants,Places
Blackpool Council,1011970,A1 Streamline Road Markings Ltd,505449,3748,03/01/2019,8987.53,1497.93,ENGINE,Engineering,1012,Premises Maint-Priv.Contractor,Community & Env Services
Blackpool Council,1087034,Cool Milk Limited,505450,CML00023778,07/01/2019,22362.71,0,SCHBRK,Free School Breakfasts,3107,Milk For Drinking,Community & Env Services
Blackpool Council,1112198,Kkc Engineering Consultants Limited,505451,840/19,30/01/2019,7380,1230,CTAHHA,Tramway Emergency Works,6506,Consultants Fees,Capital - Commnctn & Regen
Blackpool Council,1066729,Equis Associates Limited,505452,12-45-PG-BC,14/01/2019,16200,2700,CTAHHI,Tramway Extention,6506,Consultants Fees,Capital - Commnctn & Regen
Blackpool Council,1009234,Gary Roy Kirkham,505456,GK08,07/01/2019,360,0,TRCHIL,Integrated Transport Children,2201,Contract Hire,Community & Env Services
Blackpool Council,1011868,W H Tarmacadam Limited,505460,7859,04/01/2019,25596,4266,SCHEME,Highways Schemes,1012,Premises Maint-Priv.Contractor,Community & Env Services
Blackpool Council,1016258,M J Teale Plant Hire Ltd,505510,B8512,04/01/2019,678.72,113.12,SCHEME,Highways Schemes,1012,Premises Maint-Priv.Contractor,Community & Env Services
Blackpool Council,1011970,A1 Streamline Road Markings Ltd,505511,3709,04/01/2019,880.9,146.82,ENGINE,Engineering,1012,Premises Maint-Priv.Contractor,Community & Env Services
Blackpool Council,1011970,A1 Streamline Road Markings Ltd,505512,3707,04/01/2019,630.52,105.09,ENGINE,Engineering,1012,Premises Maint-Priv.Contractor,Community & Env Services
Blackpool Council,1011970,A1 Streamline Road Markings Ltd,505513,3708,04/01/2019,677.64,112.94,ENGINE,Engineering,1012,Premises Maint-Priv.Contractor,Community & Env Services
Blackpool Council,1013064,Tarmac Lafarge Trading Limited,505514,9039356926,09/01/2019,633.49,105.58,ENGINE,Engineering,3041,Other Materials,Community & Env Services
Blackpool Council,1013064,Tarmac Lafarge Trading Limited,505516,9039318721,04/01/2019,500.26,83.37,ENGINE,Engineering,3041,Other Materials,Community & Env Services
Blackpool Council,1013064,Tarmac Lafarge Trading Limited,505517,9039318722,04/01/2019,1196.65,199.44,ENGINE,Engineering,3041,Other Materials,Community & Env Services
Blackpool Council,1013064,Tarmac Lafarge Trading Limited,505519,9039367124,11/01/2019,346.22,57.7,ENGINE,Engineering,3041,Other Materials,Community & Env Services
Blackpool Council,1009035,Hilton Cabinet Co Ltd,505522,63398,28/01/2019,412.44,68.74,CEMCRE,Cems Crems Etc,3452,Inscription Charges,Governance & Partnerships
Blackpool Council,1099262,Nhs Blackpool Ccg,505523,7011211655,04/01/2019,650971,0,LM9027,Bcf Control,5101,Transfer Payments - General,Bcf General And Control
Blackpool Council,1033190,Apse,505524,1819/1553,11/01/2019,348,58,CEMCRE,Cems Crems Etc,3605,Confs & Short Courses,Governance & Partnerships
Blackpool Council,1013705,Stadia Sports/ Broxap Limited,505525,INV240663,18/01/2019,718.8,119.8,PRKOP1,Parks Operational Manager  1,3041,Other Materials,Community & Env Services
Blackpool Council,1006586,H Jenkinson & Co Ltd,505526,SINV/00830338,18/01/2019,480,80,AEB,Buildings,3302,Stationery,Resources
Blackpool Council,1006586,H Jenkinson & Co Ltd,505528,SINV00830337,18/01/2019,480,80,AEB,Buildings,3302,Stationery,Resources
Blackpool Council,1007206,Road Safety Services Ltd,505538,84467,15/01/2019,280.8,46.8,TRA,Traffic Management,4501,Private Contractors,Community & Env Services
Blackpool Council,1071288,Wyg Environment Planning Transport Ltd,505539,859089,18/01/2019,2010,335,CX4030,Psh - Foxhall Redev Tylde/Rigb,6503,Capital Salaries (Pro Advance),Capital - Chief Executive
Blackpool Council,1110097,Cemetery Development Services Limited,505545,72218,21/01/2019,11040,1840,CN2016,Carleton Crem Works 2018-20,6501,Contract Payments,Capital - Governance & Partner
Blackpool Council,1007439,Preston City Council,505547,01919213,07/01/2019,4000,0,PJW,Management - Places - Illumina,3041,Other Materials,Places
Blackpool Council,1017261,De Vere Village Trading No1 Limited,505548,VBL01/HA6506/2,08/01/2019,880,146.67,HS0001,Headstart Central Expenditure,3605,Confs & Short Courses,Children'S Services
Blackpool Council,1005071,Blackpool Transport Services Limited,505559,I0000953,07/01/2019,1698.63,0,FRAEA,Public Transport Contracts,2201,Contract Hire,Community & Env Services
Blackpool Council,1009755,D Kirkham,505566,004,07/01/2019,1667.5,0,TRCHIL,Integrated Transport Children,2201,Contract Hire,Community & Env Services
Blackpool Council,1053453,Brenntag Uk Ltd,505567,32SI 3280594,15/01/2019,258.75,43.12,LEISUR,Leisure Management,3060,Chemicals,Community & Env Services
Blackpool Council,1090236,C & J Inspection Services Limited,505573,892,09/01/2019,1247.16,207.86,FMAK,Acquisitions 9/10,1131,Electrical Equipment - Repairs,Places
Blackpool Council,1090236,C & J Inspection Services Limited,505574,889,09/01/2019,2676,446,FMAK,Acquisitions 9/10,1131,Electrical Equipment - Repairs,Places
Blackpool Council,1117297,Dr Hugh Deeming T/A Hd Research,505575,HDR18-007,07/01/2019,9100,0,TRB,Maintenance & Works,4501,Private Contractors,Community & Env Services
Blackpool Council,1114727,Elliott Wood Partnership Ltd,505622,INV008114,09/01/2019,6657.6,1109.6,FMAK,Acquisitions 9/10,3801,Other Expenses,Places
Blackpool Council,1057663,Wilde Recruitment Ltd,505623,34131,18/01/2019,517.86,86.31,CTAHHA,Tramway Emergency Works,6501,Contract Payments,Capital - Commnctn & Regen
Blackpool Council,1010138,C Cabs,505624,03141,07/01/2019,262.8,0,TRCHIL,Integrated Transport Children,2201,Contract Hire,Community & Env Services
Blackpool Council,1110938,Cogniva Limited,505626,18/030,25/01/2019,1380,230,TRA,Traffic Management,4501,Private Contractors,Community & Env Services
Blackpool Council,1011970,A1 Streamline Road Markings Ltd,505627,3714,07/01/2019,1191.72,198.62,ENGINE,Engineering,1012,Premises Maint-Priv.Contractor,Community & Env Services
Blackpool Council,1010138,C Cabs,505628,03425,07/01/2019,1620,0,TRCHIL,Integrated Transport Children,2201,Contract Hire,Community & Env Services
Blackpool Council,1010138,C Cabs,505629,03488,07/01/2019,318.6,0,TRCHIL,Integrated Transport Children,2201,Contract Hire,Community & Env Services
Blackpool Council,1010138,C Cabs,505630,03486,07/01/2019,389.04,0,TRCHIL,Integrated Transport Children,2201,Contract Hire,Community & Env Services
Blackpool Council,1010138,C Cabs,505631,03143,07/01/2019,290.4,0,TRCHIL,Integrated Transport Children,2201,Contract Hire,Community & Env Services
Blackpool Council,1033894,Gl Education Group Limited,505635,SINV00204018,07/01/2019,21448.2,3574.7,OPAREA,Opportunity Areas,4515,Contract Services,Places
Blackpool Council,1018184,Blackpool Skip Hire,505637,5959,10/01/2019,2349,391.5,DOMPFI,Domestic Waste & Waste Pfi,4514,Contract 'E',Community & Env Services
Blackpool Council,1008620,Ppg Architectural Coatings Uk Limited,505638,4494022952,11/01/2019,936,156,PJNA,New Features / Schemes - C & E,3041,Other Materials,Community & Env Services
Blackpool Council,1102627,Fresh Pastures Ltd,505643,29204301218,29/01/2019,270.27,0,APDBBB,Arc,3107,Milk For Drinking,Adult & Families
Blackpool Council,1063633,Pete Marquis T/A Pdm Industries Ltd,505645,9291,11/01/2019,8160,1360,ZM0003,Planning,9624,Rechargeable Works Account,Place Directorate
Blackpool Council,1097024,Chapelcroft Limited T/A Ark,505672,12870,11/01/2019,624,104,LEISUR,Leisure Management,3801,Other Expenses,Community & Env Services
Blackpool Council,1117002,Redraw Travel Ltd T/A Blackpool Minibuses,505673,INV-2482,14/01/2019,975,0,TRCHIL,Integrated Transport Children,2201,Contract Hire,Community & Env Services
Blackpool Council,1117002,Redraw Travel Ltd T/A Blackpool Minibuses,505675,INV-2481,11/01/2019,1170,195,TRCHIL,Integrated Transport Children,2201,Contract Hire,Community & Env Services
Blackpool Council,1117002,Redraw Travel Ltd T/A Blackpool Minibuses,505676,INV-2483,14/01/2019,1200,0,TRCHIL,Integrated Transport Children,2201,Contract Hire,Community & Env Services
Blackpool Council,1117002,Redraw Travel Ltd T/A Blackpool Minibuses,505677,INV-2484,14/01/2019,1710,0,TRCHIL,Integrated Transport Children,2201,Contract Hire,Community & Env Services
Blackpool Council,1063234,Servelec Corelogic Limited,505679,0050001263,10/01/2019,4080,680,SYSDEV,Systems Development,3532,Comp-Running & License Costs,Resources
Blackpool Council,1079488,Recycling Lives Ltd,505683,218459,10/01/2019,1440,240,CWASTE,Commercial Waste,4514,Contract 'E',Community & Env Services
Blackpool Council,1065232,Back Care Solutions Ltd,505684,67396,18/01/2019,604.8,100.8,SSDA,Social Services Direct,5403,Disabled Adaptations,Adult & Families
Blackpool Council,1058510,Lifeline Language Services Ltd,505687,0319100,30/01/2019,328.56,54.76,JEA,Senior Management,3419,Interpreters Fees,Children'S Services
Blackpool Council,1106659,Art Uk - The Public Catalogue Foundation,505690,YAP962/4,10/01/2019,270,45,AHG,Art Gallery Summary,3711,Subscriptions,Places
Blackpool Council,1072848,Peter Rhodes,505697,01/001,14/01/2019,1348.5,0,TRCHIL,Integrated Transport Children,2201,Contract Hire,Community & Env Services
Blackpool Council,1049304,Insight Direct (Uk) Ltd,505698,4181955,16/01/2019,2995.71,499.29,FGAA,Ict Corporate Services,3532,Comp-Running & License Costs,Resources
Blackpool Council,1008540,Konica Minolta Business (Uk) Ltd,505699,1141524563,17/01/2019,33037.13,5506.19,FGBA,Specific (Directorate)-Service,3305,Photocopying Charges,Resources
Blackpool Council,1110112,REDACTED PERSONAL DATA,505700,BMP 23,16/01/2019,3600,0,EC7011,Museum - Professional Fees,0917,Other Exps,Places
Blackpool Council,1010300,Blacktax Radio Taxis T/A Blackpool Courier,505702,12747,14/01/2019,990,0,TRCHIL,Integrated Transport Children,2201,Contract Hire,Community & Env Services
Blackpool Council,1019622,Stephen  Floweth,505709,HT0010,14/01/2019,904,0,TRCHIL,Integrated Transport Children,2201,Contract Hire,Community & Env Services
Blackpool Council,1019622,Stephen  Floweth,505711,HT0012,14/01/2019,928,0,TRCHIL,Integrated Transport Children,2201,Contract Hire,Community & Env Services
Blackpool Council,1115995,REDACTED PERSONAL DATA,505715,HST005,30/01/2019,340,0,HS0005,Whole School Approach,3605,Confs & Short Courses,Children'S Services
Blackpool Council,1115995,REDACTED PERSONAL DATA,505715,HST005,30/01/2019,1300,0,HS0005,Whole School Approach,0911,Training Expenses,Children'S Services
Blackpool Council,1053894,Scl - Society Of Chief Librarians,505719,10:18/19,09/01/2019,425,0,LBF,Library Management,3711,Subscriptions,Places
Blackpool Council,1096836,Viva Blackpool,505723,INV-6132,15/01/2019,420,70,AHHBA,Blackpool Museum,1702,Hire Of Meeting Rooms,Places
Blackpool Council,1105668,Ward Andrews Ltd,505725,WAL/BPC/02/18,09/01/2019,720,120,JEA,Senior Management,5509,Contract Expenses,Children'S Services
Blackpool Council,1008925,Hugh Logan Engineering Ltd,505726,36143,11/01/2019,395,0,ZM0018,Highways & Engineering,9773,Orders Received Not Invoiced,Blackpool Services
Blackpool Council,1008925,Hugh Logan Engineering Ltd,505726,36143,11/01/2019,474,79,ZM0018,Highways & Engineering,9511A,Stocks Efin,Blackpool Services
Blackpool Council,1088636,Tarmac Building Products Ltd,505727,SI01496094,11/01/2019,1054,0,ZM0018,Highways & Engineering,9773,Orders Received Not Invoiced,Blackpool Services
Blackpool Council,1088636,Tarmac Building Products Ltd,505727,SI01496094,11/01/2019,1264.8,210.8,ZM0018,Highways & Engineering,9511A,Stocks Efin,Blackpool Services
Blackpool Council,1114704,Morson Human Resources Ltd,505728,HS211462,09/01/2019,1980,330,CTAHHA,Tramway Emergency Works,6506,Consultants Fees,Capital - Commnctn & Regen
Blackpool Council,1011730,Metric Group Limited,505732,C49196,16/01/2019,13537.08,2256.18,PARADM,Parking Administration,3801,Other Expenses,Budgets Outside Cash Limits
Blackpool Council,1008039,Woodswaste Ltd,505733,029472,18/01/2019,390.72,65.12,CEMCRE,Cems Crems Etc,3801,Other Expenses,Governance & Partnerships
Blackpool Council,1066073,Blackpool Coastal Housing,505734,30001522,09/01/2019,465.83,77.64,FMAB,Commercial Propereties,1064,Delegated Maintenance,Resources
Blackpool Council,1010300,Blacktax Radio Taxis T/A Blackpool Courier,505735,12748,14/01/2019,960,0,TRCHIL,Integrated Transport Children,2201,Contract Hire,Community & Env Services
Blackpool Council,1095165,Tower Learning Centre Ltd,505738,290-731,09/01/2019,1720.8,286.8,EDDIV,Education Diversity,4101,Other Local Authorities,Children'S Services
Blackpool Council,1085660,Bisset Adams Ltd,505739,07449,09/01/2019,34562.4,5760.4,FMAK,Acquisitions 9/10,3801,Other Expenses,Places
Blackpool Council,1006460,Closomat Limited,505744,OP/I150720,18/01/2019,354,59,MVA,18-64,5401,Aids To Daily Living,Adult & Families
Blackpool Council,1078418,Lisclare Limited,505745,SINV03086370,09/01/2019,1575,262.5,MTE,Undefined Age Group,5401,Aids To Daily Living,Adult & Families
Blackpool Council,1023362,Jewson Limited,505765,0647/00138635,09/01/2019,284.51,47.42,SCHEME,Highways Schemes,4501,Private Contractors,Community & Env Services
Blackpool Council,1112303,Access-Able (Uk) Limited (Fac001),505766,3092,17/01/2019,3487,0,CX4002,Disabled Facilities Grants,6501,Contract Payments,Capital - Adult Social Care
Blackpool Council,1112303,Access-Able (Uk) Limited (Fac001),505767,3068,11/01/2019,1320,0,CX4002,Disabled Facilities Grants,6501,Contract Payments,Capital - Adult Social Care
Blackpool Council,1112303,Access-Able (Uk) Limited (Fac001),505768,3052,10/01/2019,2677,0,CX4002,Disabled Facilities Grants,6501,Contract Payments,Capital - Adult Social Care
Blackpool Council,1006196,Prism Medical Uk,505769,5301391,09/01/2019,3813.75,0,CX4002,Disabled Facilities Grants,6501,Contract Payments,Capital - Adult Social Care
Blackpool Council,1081205,The Excellent Ramp System Ltd,505770,1569,09/01/2019,1280,0,CXAAA,Local Authority Dwellings,6501,Contract Payments,Capital - Chief Executive
Blackpool Council,1006196,Prism Medical Uk,505771,5303613,09/01/2019,1507,0,CX4002,Disabled Facilities Grants,6501,Contract Payments,Capital - Adult Social Care
Blackpool Council,1006196,Prism Medical Uk,505772,5303537,09/01/2019,1889.38,0,CX4002,Disabled Facilities Grants,6501,Contract Payments,Capital - Adult Social Care
Blackpool Council,1036448,REDACTED PERSONAL DATA,505779,ARINV/00297242,11/01/2019,9600,1600,HJA,Growth,1064,Delegated Maintenance,Places
Blackpool Council,1036448,REDACTED PERSONAL DATA,505780,ARINV/00297990,11/01/2019,1800,300,HJA,Growth,1064,Delegated Maintenance,Places
Blackpool Council,1019622,Stephen  Floweth,505786,HT0011,10/01/2019,880,0,TRCHIL,Integrated Transport Children,2201,Contract Hire,Community & Env Services
Blackpool Council,1022781,Moore Readymix Ltd,505787,95646,30/01/2019,774.48,129.08,ENGINE,Engineering,3041,Other Materials,Community & Env Services
Blackpool Council,1110097,Cemetery Development Services Limited,505789,72223,16/01/2019,4500,750,CEMCRE,Cems Crems Etc,3801,Other Expenses,Governance & Partnerships
Blackpool Council,1111146,Jade Parsleyt/A Flash Run Digital Productions,505805,46,10/01/2019,750,0,PJW,Management - Places - Illumina,3401,General Services,Places
Blackpool Council,1006944,Siemens Financial Services Ltd,505811,244/19/0066160,18/01/2019,3902.84,650.47,APFBAB,Vitaline,4501,Private Contractors,Adult & Families
Blackpool Council,1006944,Siemens Financial Services Ltd,505812,244/19/0064412,18/01/2019,2519.68,419.94,APFBAB,Vitaline,4501,Private Contractors,Adult & Families
Blackpool Council,1025240,Key Engineering Supplies Ltd,505864,9536,11/01/2019,272.41,45.41,ZM0018,Highways & Engineering,9511A,Stocks Efin,Blackpool Services
Blackpool Council,1006944,Siemens Financial Services Ltd,505865,244/19/0063563,17/01/2019,2094.45,349.07,APFBAB,Vitaline,4501,Private Contractors,Adult & Families
Blackpool Council,1006944,Siemens Financial Services Ltd,505866,244/19/0060129,11/01/2019,2843.16,473.86,APFBAB,Vitaline,4501,Private Contractors,Adult & Families
Blackpool Council,1071925,Groundwork Cheshire Lancs And Merseyside,505867,0000001884,10/01/2019,1224,204,LH2073,Energy Efficiency,3801,Other Expenses,Public Health
Blackpool Council,1011779,Northern Security National Limited,505869,23205,10/01/2019,922.5,153.75,PJW,Management - Places - Illumina,3041,Other Materials,Places
Blackpool Council,1044218,Apcoa Parking Uk Ltd,505870,270839,10/01/2019,12431.29,2071.88,AEV,Vacant & Under Used,3413,Consultants,Resources
Blackpool Council,1092524,Dwf Llp,505871,1997001,10/01/2019,991.2,165.2,FK1006,Head Of Workforce & Org Dev,0911,Training Expenses,Chief Executive
Blackpool Council,1088639,Browns Ctp Limited,505879,49990,18/01/2019,22320,0,PRM,Publications,3301,Printing,Places
Blackpool Council,1052850,Charter Oaks Ltd,505883,011901,18/01/2019,2160,360,CGOAAA,Quality Corridor,6501,Contract Payments,Capital - Commnctn & Regen
Blackpool Council,1044758,REDACTED PERSONAL DATA,505884,101218-1,10/01/2019,657,0,MUSIC,Music & Cultural Education,3008,Educational Equipment,Children'S Services
Blackpool Council,1006449,Tmp (Uk) Ltd,505885,100001197393,23/01/2019,1952.28,325.38,TRA,Traffic Management,4501,Private Contractors,Community & Env Services
Blackpool Council,1006449,Tmp (Uk) Ltd,505886,100001197391,23/01/2019,2307.24,384.54,TRA,Traffic Management,4501,Private Contractors,Community & Env Services
Blackpool Council,1006449,Tmp (Uk) Ltd,505887,100001197392,23/01/2019,319.46,53.24,TRA,Traffic Management,4501,Private Contractors,Community & Env Services
Blackpool Council,1076316,(Radio Wave) News Uk & Ireland Limited,505890,600277054,30/01/2019,537.3,89.55,EYT,Early Years Team,3806,Advertising-General,Children'S Services
Blackpool Council,1006984,Ser-Vac Ltd,505892,01050,10/01/2019,558,93,CEMCRE,Cems Crems Etc,1111,Cremators,Governance & Partnerships
Blackpool Council,1081600,Pshe Association,505893,INV_23817,10/01/2019,3375,0,HS0015,Headstart Pshe,3801,Other Expenses,Children'S Services
Blackpool Council,1030119,Generation (Uk) Ltd,505902,H2086904,10/01/2019,3644.7,607.45,PJAA,"Erection, Operation & Dismantl",3041,Other Materials,Community & Env Services
Blackpool Council,1030119,Generation (Uk) Ltd,505903,H2097415,22/01/2019,3527.12,587.85,PJAA,"Erection, Operation & Dismantl",3041,Other Materials,Community & Env Services
Blackpool Council,1012902,Bramblethorpe Ltd,505904,637,11/01/2019,2340,390,OPAREA,Opportunity Areas,4515,Contract Services,Places
Blackpool Council,1012902,Bramblethorpe Ltd,505905,631,10/01/2019,3510,585,OPAREA,Opportunity Areas,4515,Contract Services,Places
Blackpool Council,1012902,Bramblethorpe Ltd,505906,632,11/01/2019,1950,325,OPAREA,Opportunity Areas,4515,Contract Services,Places
Blackpool Council,1028641,New Mind Internet Consultancy Ltd,505907,NM32523,17/01/2019,2983.5,497.25,PRJAAA,Website Team,3535,Website Costs,Places
Blackpool Council,1018184,Blackpool Skip Hire,505908,5993,15/01/2019,1795.5,299.25,DOMPFI,Domestic Waste & Waste Pfi,4514,Contract 'E',Community & Env Services
Blackpool Council,1028228,Danfo (Uk) Ltd,505909,0000004307,10/01/2019,55000,9166.67,PUBCON,Public Conveniences,4501,Private Contractors,Community & Env Services
Blackpool Council,1011970,A1 Streamline Road Markings Ltd,505915,3745,14/01/2019,717.32,119.56,ENGINE,Engineering,1012,Premises Maint-Priv.Contractor,Community & Env Services
Blackpool Council,1087953,Blackpool Local Education Partnership Ltd,505918,SI10032,11/01/2019,10404.76,1734.12,EM1028,St Marys,4515,Contract Services,Children'S Services
Blackpool Council,1007063,Compass Minerals Uk Limited,505919,475172,17/01/2019,4943.16,823.86,WINTMA,Winter Maintenance,3041,Other Materials,Community & Env Services
Blackpool Council,1007063,Compass Minerals Uk Limited,505920,475142,16/01/2019,1354.31,225.72,WINTMA,Winter Maintenance,3041,Other Materials,Community & Env Services
Blackpool Council,1010667,Argos Business Solutions Ltd,505921,01726011,16/01/2019,1057.76,176.29,FC1802,Social Fund - Client,5210,Community Care Support,Resources
Blackpool Council,1114931,Rc Sound And Technical,505927,INV-000061,10/01/2019,4880,0,FMAK,Acquisitions 9/10,1131,Electrical Equipment - Repairs,Places
Blackpool Council,1114931,Rc Sound And Technical,505928,INV-000060,10/01/2019,7645.5,0,FMAK,Acquisitions 9/10,1131,Electrical Equipment - Repairs,Places
Blackpool Council,1116408,Offigo,505965,INV0015,11/01/2019,6250,0,HS0009,Digital Mentoring,3531,Computer-H'Ware Purchase,Children'S Services
Blackpool Council,1085092,Lancashire Mind Ltd,505966,561,16/01/2019,27886.78,0,HS0003,Headstart Commissioning,3401,General Services,Children'S Services
Blackpool Council,1107445,REDACTED PERSONAL DATA,505967,JH191,18/01/2019,1081.2,0,JA0505,Children'S Training,0911,Training Expenses,Children'S Services
Blackpool Council,1009755,D Kirkham,505969,003,14/01/2019,2300,0,TRCHIL,Integrated Transport Children,2201,Contract Hire,Community & Env Services
Blackpool Council,1043114,Federation Of Burial Cremation Authorities,505972,M/MEO13/02,31/01/2019,1066.56,177.76,CEMCRE,Cems Crems Etc,3711,Subscriptions,Governance & Partnerships
Blackpool Council,1117700,The Local Data Company Limited,505974,00038521,31/01/2019,1890,315,PBAD,Corporate Dev & Engagement,3821,Research,Chief Executive
Blackpool Council,1000009,Blackpool & The Fylde College,505978,S0020310,22/01/2019,4095,0,EDDIV,Education Diversity,4101,Other Local Authorities,Children'S Services
Blackpool Council,1095165,Tower Learning Centre Ltd,505979,290-774,11/01/2019,300,50,EDDIV,Education Diversity,4101,Other Local Authorities,Children'S Services
Blackpool Council,1095165,Tower Learning Centre Ltd,505980,290-767,11/01/2019,3724.8,620.8,EDDIV,Education Diversity,4101,Other Local Authorities,Children'S Services
Blackpool Council,1078657,4tech Training Ltd,505989,257,11/01/2019,767.26,127.88,EDDIV,Education Diversity,4101,Other Local Authorities,Children'S Services
Blackpool Council,1018184,Blackpool Skip Hire,505993,5997,15/01/2019,9270,1545,CWASTE,Commercial Waste,4514,Contract 'E',Community & Env Services
Blackpool Council,1032536,Govnet Communications,505997,0000149661,15/01/2019,474,79,HJA,Growth,0915,Conferences,Places
Blackpool Council,1100577,Jones Lang Lasalle Limited,505998,EN002-0308073,15/01/2019,24240,4040,HJA,Growth,3413,Consultants,Places
Blackpool Council,1059178,Quality Essential Distribution Ltd,506009,434735,18/01/2019,2098.87,349.81,CCTV,Cctv,3003,Equipt-Mtce Repairs,Public Health
Blackpool Council,1094424,The Networking People,506010,SI105796,18/01/2019,2309.94,384.99,FGAA,Ict Corporate Services,0791,Temp/Relief (Bureau Staff),Resources
Blackpool Council,1094424,The Networking People,506011,SI105826,23/01/2019,1411.16,235.19,FGAA,Ict Corporate Services,3531,Computer-H'Ware Purchase,Resources
Blackpool Council,1094424,The Networking People,506013,SI105853,30/01/2019,3090.77,515.13,FGAA,Ict Corporate Services,0791,Temp/Relief (Bureau Staff),Resources
Blackpool Council,1087118,Ps & P Limited,506015,104944,25/01/2019,1129.04,188.17,FC3001,Housing Benefits,3401,General Services,Budgets Outside Cash Limits
Blackpool Council,1009079,Pearson Education Ltd,506030,IWA436_VOC,14/01/2019,284.9,0,EDDIV,Education Diversity,3404,Exam Fees & Exps (Sch),Children'S Services
Blackpool Council,1055691,Norbain Sd Ltd,506031,I2748865,18/01/2019,334.22,55.7,CCTV,Cctv,3003,Equipt-Mtce Repairs,Public Health
Blackpool Council,1113560,Iese Transformation Limited,506033,949,11/01/2019,1693.2,282.2,DOMPFI,Domestic Waste & Waste Pfi,3711,Subscriptions,Community & Env Services
Blackpool Council,1030119,Generation (Uk) Ltd,506034,H2064059,29/01/2019,478.28,79.71,PJAA,"Erection, Operation & Dismantl",3006,Hire Of Equipment,Community & Env Services
Blackpool Council,1030119,Generation (Uk) Ltd,506035,H2106689,30/01/2019,3644.7,607.45,PJAA,"Erection, Operation & Dismantl",3006,Hire Of Equipment,Community & Env Services
Blackpool Council,1036708,Coach Tourism Association Ltd,506039,INV-0728,15/01/2019,660,110,PRA,Conferences,3315,Marketing,Places
Blackpool Council,1084591,Social Enterprise Solutions (Uk) Cic,506040,GS00S/L0TI,17/01/2019,960,0,PTA,Economic Development,3401,General Services,Places
Blackpool Council,1094424,The Networking People,506045,SI105857,30/01/2019,6166.76,1027.79,APEBBA,Whitegate Cil,3531,Computer-H'Ware Purchase,Adult & Families
Blackpool Council,1013064,Tarmac Lafarge Trading Limited,506047,9039403347,18/01/2019,461.23,76.87,ENGINE,Engineering,3041,Other Materials,Community & Env Services
Blackpool Council,1013064,Tarmac Lafarge Trading Limited,506049,9039395351,16/01/2019,271.48,45.24,ENGINE,Engineering,3041,Other Materials,Community & Env Services
Blackpool Council,1013064,Tarmac Lafarge Trading Limited,506050,9039403348,18/01/2019,600.26,100.04,ENGINE,Engineering,3041,Other Materials,Community & Env Services
Blackpool Council,1013064,Tarmac Lafarge Trading Limited,506053,9039380084,14/01/2019,282.69,47.11,ENGINE,Engineering,3041,Other Materials,Community & Env Services
Blackpool Council,1026738,Cassidy + Ashton,506054,16971,30/01/2019,14988,2498,CGICAD,Enterprise Zone,6506,Consultants Fees,Capital - Commnctn & Regen
Blackpool Council,1013064,Tarmac Lafarge Trading Limited,506057,9039340696,14/01/2019,964.29,160.71,ENGINE,Engineering,3041,Other Materials,Community & Env Services
Blackpool Council,1013064,Tarmac Lafarge Trading Limited,506059,9039380083,14/01/2019,268.44,44.74,ENGINE,Engineering,3041,Other Materials,Community & Env Services
Blackpool Council,1013064,Tarmac Lafarge Trading Limited,506060,9039387622,16/01/2019,593.3,98.88,ENGINE,Engineering,3041,Other Materials,Community & Env Services
Blackpool Council,1013064,Tarmac Lafarge Trading Limited,506061,9039150237,14/01/2019,797.56,132.92,ENGINE,Engineering,3041,Other Materials,Community & Env Services
Blackpool Council,1006940,Smiths Equipment Hire Ltd,506064,V01-675862,11/01/2019,405.44,67.57,ENGINE,Engineering,4501,Private Contractors,Community & Env Services
Blackpool Council,1058510,Lifeline Language Services Ltd,506065,1118041,15/01/2019,409.08,68.18,JA1531,Independent Reviewing Officers,3419,Interpreters Fees,Children'S Services
Blackpool Council,1011714,Michael Hope Haulage Limited,506066,001375,14/01/2019,2016,336,SCHEME,Highways Schemes,1012,Premises Maint-Priv.Contractor,Community & Env Services
Blackpool Council,1102434,Inform Cpi Limited,506067,AL58164,11/01/2019,948,158,FC2011,Nndr Collection Costs,3401,General Services,Budgets Outside Cash Limits
Blackpool Council,1110996,Philip Holmes T/A Dragon Creative,506069,BC0016,11/01/2019,391.42,0,PJW,Management - Places - Illumina,3413,Consultants,Places
Blackpool Council,1117136,REDACTED PERSONAL DATA,506070,002,11/01/2019,458.5,0,ALEARN,Adult Learning,0917,Other Exps,Places
Blackpool Council,1103450,Blackpool Entertainment Company Limited,506073,INV003940,14/01/2019,331.8,55.3,PVA,Other External Funding,1301,Rent & Hire Of Premises,Places
Blackpool Council,1011868,W H Tarmacadam Limited,506075,7832,14/01/2019,30634.52,5105.76,SCHEME,Highways Schemes,1012,Premises Maint-Priv.Contractor,Community & Env Services
Blackpool Council,1110202,Preston Bus Ltd,506092,103940,11/01/2019,2376,396,TRCHIL,Integrated Transport Children,2201,Contract Hire,Community & Env Services
Blackpool Council,1110202,Preston Bus Ltd,506093,103941,11/01/2019,2376,396,TRCHIL,Integrated Transport Children,2201,Contract Hire,Community & Env Services
Blackpool Council,1105990,Fylde Environmental Services Ltd,506155,BC/13/2019,31/01/2019,1706,0,SCLEAN,Street Cleaning,4501,Private Contractors,Community & Env Services
Blackpool Council,1058250,Coram Voice,506156,VIVC0004625,18/01/2019,408.03,0,JA1531,Independent Reviewing Officers,3419,Interpreters Fees,Children'S Services
Blackpool Council,1102930,Piper  Music Management Ltd,506157,PMML1134,14/01/2019,480,80,PRB,Events,3417,Entertainment,Places
Blackpool Council,1117784,Textile Conservation Services,506158,BP/01/18,15/01/2019,600,0,AHHBA,Blackpool Museum,3413,Consultants,Places
Blackpool Council,1117420,Belle Vue Productions Limited,506162,BV0068-1,16/01/2019,2500,0,EC7011,Museum - Professional Fees,3413,Consultants,Places
Blackpool Council,1117420,Belle Vue Productions Limited,506163,BV0068-2,18/01/2019,2500,0,EC7011,Museum - Professional Fees,3413,Consultants,Places
Blackpool Council,1053261,Ad Systems (Uk) Limited,506164,5112,16/01/2019,2496,416,CCTV,Cctv,4501,Private Contractors,Public Health
Blackpool Council,1114704,Morson Human Resources Ltd,506169,HS213207,16/01/2019,792,132,CTAHHA,Tramway Emergency Works,6506,Consultants Fees,Capital - Commnctn & Regen
Blackpool Council,1066729,Equis Associates Limited,506173,12-46-PG-BC,22/01/2019,1446.73,0,CTAHHI,Tramway Extention,6518,Miscellaneous - Capital,Capital - Commnctn & Regen
Blackpool Council,1082067,Squire Patton Boggs (Uk) Llp,506208,2639598,17/01/2019,7500,1250,CP0511,Anchorsholme Seawall Scheme,6506,Consultants Fees,Capital - Comm & Environ
Blackpool Council,1100577,Jones Lang Lasalle Limited,506212,EN002-0310670,18/01/2019,8878.8,1479.8,HJA,Growth,3413,Consultants,Places
Blackpool Council,1115939,Daniel Atherton,506214,26,15/01/2019,1425,0,AHHBA,Blackpool Museum,3413,Consultants,Places
Blackpool Council,1036448,REDACTED PERSONAL DATA,506216,ARINV/00299990,18/01/2019,2400,400,FMAB,Commercial Propereties,1064,Delegated Maintenance,Resources
Blackpool Council,1117795,Mar Properties Ltd,506217,3080,29/01/2019,24000,4000,CGICAD,Enterprise Zone,6506,Consultants Fees,Capital - Commnctn & Regen
Blackpool Council,1008947,Iccm,506220,10597,16/01/2019,1140,190,CN2016,Carleton Crem Works 2018-20,6501,Contract Payments,Capital - Governance & Partner
Blackpool Council,1030730,Springfield Methodist Church,506221,01/19,16/01/2019,666.66,0,FC1802,Social Fund - Client,5209,Crisis/Emergency Support,Resources
Blackpool Council,1006944,Siemens Financial Services Ltd,506222,244/19/0072346,28/01/2019,6393.57,1065.59,APFBAB,Vitaline,4501,Private Contractors,Adult & Families
Blackpool Council,1094424,The Networking People,506224,SI105798,18/01/2019,2782.36,463.73,FGAA,Ict Corporate Services,3521,Landline - Line Rental,Resources
Blackpool Council,1094424,The Networking People,506225,SI105795,18/01/2019,8109.44,1351.57,FGAA,Ict Corporate Services,3527,Communication Lines,Resources
Blackpool Council,1058510,Lifeline Language Services Ltd,506226,0319061,30/01/2019,258.24,43.04,JEA,Senior Management,5507,Personal,Children'S Services
Blackpool Council,1085092,Lancashire Mind Ltd,506230,547,15/01/2019,27886.78,0,HS0003,Headstart Commissioning,3401,General Services,Children'S Services
Blackpool Council,1010830,Ace Radio Cabs Limited,506232,0006ACE,16/01/2019,884,0,TRCHIL,Integrated Transport Children,2201,Contract Hire,Community & Env Services
Blackpool Council,1010830,Ace Radio Cabs Limited,506233,0005ACE,16/01/2019,1050,0,TRCHIL,Integrated Transport Children,2201,Contract Hire,Community & Env Services
Blackpool Council,1009050,Harry B Litherland & Co Ltd,506234,674505,23/01/2019,672,112,FMAK,Acquisitions 9/10,1131,Electrical Equipment - Repairs,Places
Blackpool Council,1012071,Bethell Construction Limited,506237,15768,30/01/2019,33608.88,5601.48,SCHEME,Highways Schemes,1012,Premises Maint-Priv.Contractor,Community & Env Services
Blackpool Council,1018184,Blackpool Skip Hire,506240,011113,15/01/2019,509.04,84.84,SCHEME,Highways Schemes,1012,Premises Maint-Priv.Contractor,Community & Env Services
Blackpool Council,1011970,A1 Streamline Road Markings Ltd,506241,3753,15/01/2019,607.2,101.2,ENGINE,Engineering,1012,Premises Maint-Priv.Contractor,Community & Env Services
Blackpool Council,1011970,A1 Streamline Road Markings Ltd,506242,3747,15/01/2019,1337.96,223,ENGINE,Engineering,1012,Premises Maint-Priv.Contractor,Community & Env Services
Blackpool Council,1010138,C Cabs,506243,03683,16/01/2019,504,0,TRCHIL,Integrated Transport Children,2201,Contract Hire,Community & Env Services
Blackpool Council,1010138,C Cabs,506244,03674,16/01/2019,336,0,TRCHIL,Integrated Transport Children,2201,Contract Hire,Community & Env Services
Blackpool Council,1010138,C Cabs,506245,03675,16/01/2019,615,0,TRCHIL,Integrated Transport Children,2201,Contract Hire,Community & Env Services
Blackpool Council,1010138,C Cabs,506246,03672,16/01/2019,675,0,TRCHIL,Integrated Transport Children,2201,Contract Hire,Community & Env Services
Blackpool Council,1026676,Redman Smith Ltd ( Plastics Blackpool),506247,1001,17/01/2019,600,0,ENGINE,Engineering,3041,Other Materials,Community & Env Services
Blackpool Council,1010138,C Cabs,506248,03677,16/01/2019,690,0,TRCHIL,Integrated Transport Children,2201,Contract Hire,Community & Env Services
Blackpool Council,1010138,C Cabs,506249,03696,17/01/2019,385,0,TRCHIL,Integrated Transport Children,2201,Contract Hire,Community & Env Services
Blackpool Council,1010138,C Cabs,506250,03702,16/01/2019,690,0,TRCHIL,Integrated Transport Children,2201,Contract Hire,Community & Env Services
Blackpool Council,1010138,C Cabs,506251,03680,16/01/2019,450,0,TRCHIL,Integrated Transport Children,2201,Contract Hire,Community & Env Services
Blackpool Council,1010138,C Cabs,506252,03676,16/01/2019,720,0,TRCHIL,Integrated Transport Children,2201,Contract Hire,Community & Env Services
Blackpool Council,1010138,C Cabs,506253,03701,16/01/2019,420,0,TRCHIL,Integrated Transport Children,2201,Contract Hire,Community & Env Services
Blackpool Council,1010138,C Cabs,506254,03671,16/01/2019,1050,0,TRCHIL,Integrated Transport Children,2201,Contract Hire,Community & Env Services
Blackpool Council,1010138,C Cabs,506255,03681,16/01/2019,510,0,TRCHIL,Integrated Transport Children,2201,Contract Hire,Community & Env Services
Blackpool Council,1010138,C Cabs,506256,03678,16/01/2019,690,0,TRCHIL,Integrated Transport Children,2201,Contract Hire,Community & Env Services
Blackpool Council,1010138,C Cabs,506257,03673,16/01/2019,690,0,TRCHIL,Integrated Transport Children,2201,Contract Hire,Community & Env Services
Blackpool Council,1010138,C Cabs,506258,03687,16/01/2019,672,0,TRCHIL,Integrated Transport Children,2201,Contract Hire,Community & Env Services
Blackpool Council,1010138,C Cabs,506259,03688,16/01/2019,720,0,TRCHIL,Integrated Transport Children,2201,Contract Hire,Community & Env Services
Blackpool Council,1010138,C Cabs,506260,03686,16/01/2019,1125,0,TRCHIL,Integrated Transport Children,2201,Contract Hire,Community & Env Services
Blackpool Council,1010138,C Cabs,506261,03685,16/01/2019,528,0,TRCHIL,Integrated Transport Children,2201,Contract Hire,Community & Env Services
Blackpool Council,1010138,C Cabs,506262,03684,16/01/2019,950,0,TRCHIL,Integrated Transport Children,2201,Contract Hire,Community & Env Services
Blackpool Council,1010138,C Cabs,506263,03682,16/01/2019,750,0,TRCHIL,Integrated Transport Children,2201,Contract Hire,Community & Env Services
Blackpool Council,1010138,C Cabs,506264,03695,16/01/2019,720,0,TRCHIL,Integrated Transport Children,2201,Contract Hire,Community & Env Services
Blackpool Council,1010138,C Cabs,506265,03679,16/01/2019,750,0,TRCHIL,Integrated Transport Children,2201,Contract Hire,Community & Env Services
Blackpool Council,1010138,C Cabs,506266,03703,16/01/2019,750,0,TRCHIL,Integrated Transport Children,2201,Contract Hire,Community & Env Services
Blackpool Council,1027764,Colins Travel,506267,COL10,16/01/2019,1185,0,TRCHIL,Integrated Transport Children,2201,Contract Hire,Community & Env Services
Blackpool Council,1027764,Colins Travel,506268,COL08,16/01/2019,1185,0,TRCHIL,Integrated Transport Children,2201,Contract Hire,Community & Env Services
Blackpool Council,1027764,Colins Travel,506269,COL09,16/01/2019,1230,0,TRCHIL,Integrated Transport Children,2201,Contract Hire,Community & Env Services
Blackpool Council,1017722,Terrys Carpets,506274,69,18/01/2019,460.01,76.67,FC1802,Social Fund - Client,5210,Community Care Support,Resources
Blackpool Council,1064524,Studio Due Uk Limited,506278,202677,15/01/2019,7413.6,1235.6,PJNA,New Features / Schemes - C & E,3041,Other Materials,Community & Env Services
Blackpool Council,1021686,North West Tree Services,506281,B551,17/01/2019,299.7,49.95,PRKOP1,Parks Operational Manager  1,1021,Growing,Community & Env Services
Blackpool Council,1011779,Northern Security National Limited,506287,22622,15/01/2019,1221,203.5,PRB,Events,3418,Security Services,Places
Blackpool Council,1114857,University Of Brighton,506292,U0134727,16/01/2019,19153,0,HS0002,Headstart Evaluation,3401,General Services,Children'S Services
Blackpool Council,1109521,Abaris International Limited,506293,42652,21/01/2019,297.6,49.6,FMAK,Acquisitions 9/10,1131,Electrical Equipment - Repairs,Places
Blackpool Council,1112938,Dr Michael Clarke,506305,1689,18/01/2019,2079,346.5,CTAHHA,Tramway Emergency Works,6506,Consultants Fees,Capital - Commnctn & Regen
Blackpool Council,1106798,Cd Chauffeur Hire,506308,283,16/01/2019,1746,0,BCA,Corp And Member Services,2211,Casual Hire,Governance & Partnerships
Blackpool Council,1006419,Tunstall Healthcare (Uk) Ltd,506310,3IN/20167191,16/01/2019,7653.96,1275.66,APFBAB,Vitaline,4501,Private Contractors,Adult & Families
Blackpool Council,1006419,Tunstall Healthcare (Uk) Ltd,506311,3IN/20167190,16/01/2019,2000.52,333.42,APFBAB,Vitaline,4501,Private Contractors,Adult & Families
Blackpool Council,1006419,Tunstall Healthcare (Uk) Ltd,506312,3IN/20167189,16/01/2019,5807.88,967.98,APFBAB,Vitaline,4501,Private Contractors,Adult & Families
Blackpool Council,1023362,Jewson Limited,506317,0181/00187536,22/01/2019,274.8,0,ZM0018,Highways & Engineering,9773,Orders Received Not Invoiced,Blackpool Services
Blackpool Council,1023362,Jewson Limited,506317,0181/00187536,22/01/2019,329.76,54.96,ZM0018,Highways & Engineering,9511A,Stocks Efin,Blackpool Services
Blackpool Council,1116707,Quartz Project Services,506346,INV3954B,30/01/2019,1500,250,FH0003,Bpb Ocean Boulevard3,3413,Consultants,Budgets Outside Cash Limits
Blackpool Council,1098407,S G Birt T/As Electronics Workshop,506347,82732,22/01/2019,489.9,0,EDDIV,Education Diversity,3532,Comp-Running & License Costs,Children'S Services
Blackpool Council,1000009,Blackpool & The Fylde College,506350,S0020362,22/01/2019,482.5,0,EDDIV,Education Diversity,4101,Other Local Authorities,Children'S Services
Blackpool Council,1086000,Sr Supply Chain Consultants Ltd,506353,INV-2338,31/01/2019,3012,450,FB0001,Business Services Team,0911,Training Expenses,Resources
Blackpool Council,1013064,Tarmac Lafarge Trading Limited,506354,9039223761,18/01/2019,647.89,107.98,ENGINE,Engineering,3041,Other Materials,Community & Env Services
Blackpool Council,1094424,The Networking People,506355,SI105867,30/01/2019,12261.3,2043.55,FGAA,Ict Corporate Services,3532,Comp-Running & License Costs,Resources
Blackpool Council,1008817,Radio J  Cabs,506357,515706,16/01/2019,1062.9,0,EDDIV,Education Diversity,2201,Contract Hire,Children'S Services
Blackpool Council,1008817,Radio J  Cabs,506358,515638,16/01/2019,1424.02,0,EDDIV,Education Diversity,2201,Contract Hire,Children'S Services
Blackpool Council,1006196,Prism Medical Uk,506362,5306701,25/01/2019,5295.75,0,CX4002,Disabled Facilities Grants,6501,Contract Payments,Capital - Adult Social Care
Blackpool Council,1006196,Prism Medical Uk,506365,5306711,25/01/2019,1275,0,CX4002,Disabled Facilities Grants,6501,Contract Payments,Capital - Adult Social Care
Blackpool Council,1053191,Veolia Es (Uk) Limited,506369,OP/I537605,16/01/2019,380680.31,63446.72,DOMPFI,Domestic Waste & Waste Pfi,4501,Private Contractors,Community & Env Services
Blackpool Council,1009009,Hermolle Associates Ltd,506371,9586,16/01/2019,588,98,PJNA,New Features / Schemes - C & E,4501,Private Contractors,Community & Env Services
Blackpool Council,1081205,The Excellent Ramp System Ltd,506372,1580,16/01/2019,1585,0,CX4002,Disabled Facilities Grants,6501,Contract Payments,Capital - Adult Social Care
Blackpool Council,1030119,Generation (Uk) Ltd,506374,H2106688,30/01/2019,478.28,79.71,PJAA,"Erection, Operation & Dismantl",3006,Hire Of Equipment,Community & Env Services
Blackpool Council,1006196,Prism Medical Uk,506378,5305174,16/01/2019,3787.65,0,CX4002,Disabled Facilities Grants,6501,Contract Payments,Capital - Adult Social Care
Blackpool Council,1112477,Big Wave Media (Fac060),506384,60220,16/01/2019,899.1,149.85,LEISUR,Leisure Management,3801,Other Expenses,Community & Env Services
Blackpool Council,1007206,Road Safety Services Ltd,506390,84504,16/01/2019,715.58,119.26,ZM0003,Planning,9624,Rechargeable Works Account,Place Directorate
Blackpool Council,1108764,Fitsense Ltd T/A Premier Sports,506391,SI-1000400,16/01/2019,810,135,LEISUR,Leisure Management,2008,Running Costs-Licences,Community & Env Services
Blackpool Council,1006196,Prism Medical Uk,506392,5306101,16/01/2019,6045.85,0,CX4002,Disabled Facilities Grants,6501,Contract Payments,Capital - Adult Social Care
Blackpool Council,1117843,Jnl Property Limited,506393,R023,28/01/2019,3600,600,HJA,Growth,3413,Consultants,Places
Blackpool Council,1117843,Jnl Property Limited,506394,R024,28/01/2019,4500,750,HJA,Growth,3413,Consultants,Places
Blackpool Council,1006196,Prism Medical Uk,506397,5306126,17/01/2019,1185,0,CX4002,Disabled Facilities Grants,6501,Contract Payments,Capital - Adult Social Care
Blackpool Council,1116707,Quartz Project Services,506399,INV3954A,30/01/2019,1500,250,PV7009,Coolsilk Loan,3413,Consultants,Budgets Outside Cash Limits
Blackpool Council,1007206,Road Safety Services Ltd,506404,84410,16/01/2019,842.4,140.4,PRB,Events,3006,Hire Of Equipment,Places
Blackpool Council,1011779,Northern Security National Limited,506405,22810,16/01/2019,1227.6,204.6,PRB,Events,3418,Security Services,Places
Blackpool Council,1009803,Corrys Limited,506406,1512,16/01/2019,1868.4,311.4,PRB,Events,3006,Hire Of Equipment,Places
Blackpool Council,1068292,St John Ambulance,506407,SP18017210,16/01/2019,1142.4,190.4,PRB,Events,3401,General Services,Places
Blackpool Council,1010667,Argos Business Solutions Ltd,506408,01727380,25/01/2019,357.07,59.5,FC1802,Social Fund - Client,5210,Community Care Support,Resources
Blackpool Council,1005071,Blackpool Transport Services Limited,506412,I0001049,16/01/2019,1643.83,0,FRAEA,Public Transport Contracts,2201,Contract Hire,Community & Env Services
Blackpool Council,1005071,Blackpool Transport Services Limited,506413,I0001101,16/01/2019,1698.63,0,FRAEA,Public Transport Contracts,2201,Contract Hire,Community & Env Services
Blackpool Council,1019678,G & S Smirthwaite Ltd,506434,164660,17/01/2019,524.4,87.4,MTE,Undefined Age Group,5401,Aids To Daily Living,Adult & Families
Blackpool Council,1117568,In Professional Development Limited,506442,529,16/01/2019,2220,370,TRB,Maintenance & Works,0915,Conferences,Community & Env Services
Blackpool Council,1107499,Joe Gilmore T/A Qubik Design,506444,936,28/01/2019,900,0,AHG,Art Gallery Summary,3456,Payment To Artists,Places
Blackpool Council,1117879,Diva Creative Ltd,506450,1646,28/01/2019,18600,3100,HJA,Growth,3315,Marketing,Places
Blackpool Council,1006633,Technology Services Ltd T/A The Lock Shop,506453,29891,16/01/2019,482.83,80.47,LEISUR,Leisure Management,3801,Other Expenses,Community & Env Services
Blackpool Council,1108680,Greenwood Projects Ltd,506457,20044523,30/01/2019,1860,310,CGTABA,Spanish Hall & Cs Façade,6501,Contract Payments,Capital - Commnctn & Regen
Blackpool Council,1078418,Lisclare Limited,506463,SINV03087167,16/01/2019,3583.28,597.21,MTE,Undefined Age Group,3006,Hire Of Equipment,Adult & Families
Blackpool Council,1006196,Prism Medical Uk,506469,778254,21/01/2019,948.26,158.04,MTE,Undefined Age Group,5401,Aids To Daily Living,Adult & Families
Blackpool Council,1011970,A1 Streamline Road Markings Ltd,506473,3733,17/01/2019,3662.07,610.36,PARADM,Parking Administration,3801,Other Expenses,Budgets Outside Cash Limits
Blackpool Council,1011970,A1 Streamline Road Markings Ltd,506474,3732,17/01/2019,3786.84,631.14,PARADM,Parking Administration,3801,Other Expenses,Budgets Outside Cash Limits
Blackpool Council,1117351,Open Text,506475,9000847768,23/01/2019,706.14,117.69,CTAHHA,Tramway Emergency Works,6506,Consultants Fees,Capital - Commnctn & Regen
Blackpool Council,1006196,Prism Medical Uk,506476,5306719,28/01/2019,7176,1196,MTE,Undefined Age Group,3006,Hire Of Equipment,Adult & Families
Blackpool Council,1006196,Prism Medical Uk,506477,689584,21/01/2019,663.53,110.59,MTE,Undefined Age Group,5401,Aids To Daily Living,Adult & Families
Blackpool Council,1117351,Open Text,506478,9000900369,23/01/2019,708.06,118.01,CTAHHA,Tramway Emergency Works,6506,Consultants Fees,Capital - Commnctn & Regen
Blackpool Council,1086714,Liveasy Ltd,506479,BK0439D,16/01/2019,2580,430,MTE,Undefined Age Group,5401,Aids To Daily Living,Adult & Families
Blackpool Council,1086714,Liveasy Ltd,506480,BK0439C,16/01/2019,12971.92,2161.99,MTE,Undefined Age Group,5401,Aids To Daily Living,Adult & Families
Blackpool Council,1008817,Radio J  Cabs,506481,515707,23/01/2019,480,0,TRADUL,Intergrated Transport Adults,2201,Contract Hire,Community & Env Services
Blackpool Council,1086714,Liveasy Ltd,506482,BK0439B,16/01/2019,20760.83,3460.14,MTE,Undefined Age Group,5401,Aids To Daily Living,Adult & Families
Blackpool Council,1086714,Liveasy Ltd,506483,BK0439A,16/01/2019,31082.82,5180.47,MTE,Undefined Age Group,5401,Aids To Daily Living,Adult & Families
Blackpool Council,1114118,Medequip Assistive Technology Limited,506486,43379,30/01/2019,10625.7,1770.95,MTE,Undefined Age Group,3006,Hire Of Equipment,Adult & Families
Blackpool Council,1008817,Radio J  Cabs,506487,515711,23/01/2019,840,0,TRCHIL,Integrated Transport Children,2201,Contract Hire,Community & Env Services
Blackpool Council,1114118,Medequip Assistive Technology Limited,506488,43375,30/01/2019,556.6,92.77,MTE,Undefined Age Group,3006,Hire Of Equipment,Adult & Families
Blackpool Council,1008817,Radio J  Cabs,506489,515712,23/01/2019,812,0,TRCHIL,Integrated Transport Children,2201,Contract Hire,Community & Env Services
Blackpool Council,1008817,Radio J  Cabs,506490,515710,23/01/2019,1300,0,TRCHIL,Integrated Transport Children,2201,Contract Hire,Community & Env Services
Blackpool Council,1008817,Radio J  Cabs,506491,515708,23/01/2019,1440,0,TRCHIL,Integrated Transport Children,2201,Contract Hire,Community & Env Services
Blackpool Council,1011970,A1 Streamline Road Markings Ltd,506493,3730,17/01/2019,12745.39,2124.21,PARADM,Parking Administration,3801,Other Expenses,Budgets Outside Cash Limits
Blackpool Council,1011970,A1 Streamline Road Markings Ltd,506494,3731,17/01/2019,5305.87,884.33,PARADM,Parking Administration,3801,Other Expenses,Budgets Outside Cash Limits
Blackpool Council,1006644,Telewest/Virgin Media Payments Ltd,506497,067437901003,18/01/2019,3545.71,590.95,FGAA,Ict Corporate Services,3521,Landline - Line Rental,Resources
Blackpool Council,1110829,News Uk & Ireland Ltd T/A Simply Zesty,506500,IN2153,21/01/2019,4398.75,0,PRJAAA,Website Team,3535,Website Costs,Places
Blackpool Council,1110829,News Uk & Ireland Ltd T/A Simply Zesty,506501,IN2042,22/01/2019,600,0,PRJAAA,Website Team,3535,Website Costs,Places
Blackpool Council,1103450,Blackpool Entertainment Company Limited,506502,INV004044,18/01/2019,48000,8000,PRA,Conferences,3701,Grants,Places
Blackpool Council,1103450,Blackpool Entertainment Company Limited,506503,INV004045,18/01/2019,24000,4000,PRA,Conferences,3701,Grants,Places
Blackpool Council,1009751,Bt Business Direct Limited,506599,IN04358262,22/01/2019,879.84,146.64,CCTV,Cctv,3003,Equipt-Mtce Repairs,Public Health
Blackpool Council,1009751,Bt Business Direct Limited,506600,IN04358287,22/01/2019,518.88,86.46,CCTV,Cctv,3003,Equipt-Mtce Repairs,Public Health
Blackpool Council,1078779,Tesco Stores Limited - Gift Card,506601,TFB-112606,17/01/2019,1000,0,JEA,Senior Management,5507,Personal,Children'S Services
Blackpool Council,1005067,Blackpool Pleasure Beach Ltd,506602,18445,17/01/2019,560,93.33,JEA,Senior Management,3819,Events Support,Children'S Services
Blackpool Council,1114664,REDACTED PERSONAL DATA,506604,013,17/01/2019,1800,0,HS0005,Whole School Approach,0911,Training Expenses,Children'S Services
Blackpool Council,1110829,News Uk & Ireland Ltd T/A Simply Zesty,506608,IN2205,17/01/2019,1035,0,PRJAAA,Website Team,3535,Website Costs,Places
Blackpool Council,1110829,News Uk & Ireland Ltd T/A Simply Zesty,506609,IN2217,22/01/2019,2500,0,PRJAAA,Website Team,3535,Website Costs,Places
Blackpool Council,1021388,Cidari Education Ltd T/A St Georges School,506618,SGSI 48,17/01/2019,20000,0,OPAREA,Opportunity Areas,4515,Contract Services,Places
Blackpool Council,1015546,Clear Skies Software,506623,CSS3306,22/01/2019,3240,540,CEMCRE,Cems Crems Etc,3012,Other Equipment,Governance & Partnerships
Blackpool Council,1007020,Seddons (Plant & Engineers) Ltd,506629,335280,17/01/2019,537,0,ZM0018,Highways & Engineering,9773,Orders Received Not Invoiced,Blackpool Services
Blackpool Council,1007020,Seddons (Plant & Engineers) Ltd,506629,335280,17/01/2019,644.4,107.4,ZM0018,Highways & Engineering,9511A,Stocks Efin,Blackpool Services
Blackpool Council,1007020,Seddons (Plant & Engineers) Ltd,506630,337957,17/01/2019,1811.09,301.85,SCLEAN,Street Cleaning,3041,Other Materials,Community & Env Services
Blackpool Council,1006644,Telewest/Virgin Media Payments Ltd,506646,082971601001,17/01/2019,1509.91,251.65,FGAA,Ict Corporate Services,3521,Landline - Line Rental,Resources
Blackpool Council,1083407,Cal-Com Systems Ltd,506655,124479,22/01/2019,572.4,95.4,PJLA,Maintenance,3041,Other Materials,Community & Env Services
Blackpool Council,1042794,Carlton Fuels Limited,506669,1826122,17/01/2019,19395.96,3232.66,ZF0001,"Insurance,Dso,Banking",9511A,Stocks Efin,Total Reconciliations
Blackpool Council,1042794,Carlton Fuels Limited,506671,1781468,17/01/2019,20567.68,3427.95,ZF0001,"Insurance,Dso,Banking",9511A,Stocks Efin,Total Reconciliations
Blackpool Council,1099746,Unity Academy,506673,9000000050,17/01/2019,3500,0,OPAREA,Opportunity Areas,4515,Contract Services,Places
Blackpool Council,1006644,Telewest/Virgin Media Payments Ltd,506676,078850001547,17/01/2019,408,68,FGAA,Ict Corporate Services,3521,Landline - Line Rental,Resources
Blackpool Council,1006644,Telewest/Virgin Media Payments Ltd,506688,081127901504,17/01/2019,887.4,147.9,FGAA,Ict Corporate Services,3521,Landline - Line Rental,Resources
Blackpool Council,1117403,Chemtech Waste Management Ltd,506691,127274,17/01/2019,741,123.5,CWASTE,Commercial Waste,4501,Private Contractors,Community & Env Services
Blackpool Council,1066492,Snap Surveys Ltd,506748,74695,18/01/2019,1435.8,239.3,PBAD,Corporate Dev & Engagement,3711,Subscriptions,Chief Executive
Blackpool Council,1065232,Back Care Solutions Ltd,506749,66657,21/01/2019,325,54.17,BEA,Democratic Services & Admin,3001,Office Equipment Purchase,Governance & Partnerships
Blackpool Council,1012990,Gladstone Mrm Limited,506750,SUP0006564,18/01/2019,5953,992.17,LEISUR,Leisure Management,3801,Other Expenses,Community & Env Services
Blackpool Council,1114704,Morson Human Resources Ltd,506755,HS214129,23/01/2019,2376,396,CTAHHA,Tramway Emergency Works,6506,Consultants Fees,Capital - Commnctn & Regen
Blackpool Council,1103650,Westec,506758,17041,23/01/2019,627.51,104.58,PJHA,"Depot, Management & Admin",3308,Servicing,Community & Env Services
Blackpool Council,1044756,Northgate Public Services (Uk) Ltd,506759,91415801,31/01/2019,805.92,134.32,FC1404,Blue Badge Reform,3401,General Services,Resources
Blackpool Council,1090774,Richardson Traction Limited,506764,20758,23/01/2019,1194,199,PJNA,New Features / Schemes - C & E,3041,Other Materials,Community & Env Services
Blackpool Council,1112621,Lk2 Sport & Leisure Ltd,506769,1536,18/01/2019,2400,400,PRKDEV,Parks Development,1012,Premises Maint-Priv.Contractor,Community & Env Services
Blackpool Council,1011369,Lancashire County Council,506770,5200179138,18/01/2019,325465,0,FR5001,Concessionary Fares,3401,General Services,Budgets Outside Cash Limits
Blackpool Council,1011369,Lancashire County Council,506771,5200179112,18/01/2019,3632,0,FR5001,Concessionary Fares,3401,General Services,Budgets Outside Cash Limits
Blackpool Council,1110202,Preston Bus Ltd,506772,103990,18/01/2019,1620,270,TRCHIL,Integrated Transport Children,2201,Contract Hire,Community & Env Services
Blackpool Council,1110202,Preston Bus Ltd,506773,103991,18/01/2019,1620,270,TRCHIL,Integrated Transport Children,2201,Contract Hire,Community & Env Services
Blackpool Council,1096460,Mwuk Limited T/A Alexandra,506776,OLSINV/04803011,22/01/2019,491.84,81.97,FC1802,Social Fund - Client,3201,Clothing & Uniforms,Resources
Blackpool Council,1011973,Automatic Alarms Ltd,506786,321242,28/01/2019,439.09,73.18,PJHA,"Depot, Management & Admin",3308,Servicing,Community & Env Services
Blackpool Council,1086156,Water Saving Techniques Limited,506792,4129,25/01/2019,3456,576,PARADE,Parades & Seawall,1012,Premises Maint-Priv.Contractor,Community & Env Services
Blackpool Council,1090902,Anderson & Sons Contracting & Turf Care,506793,216,18/01/2019,3700,0,TRB,Maintenance & Works,4501,Private Contractors,Community & Env Services
Blackpool Council,1112621,Lk2 Sport & Leisure Ltd,506825,1508,18/01/2019,3600,600,PRKDEV,Parks Development,1012,Premises Maint-Priv.Contractor,Community & Env Services
Blackpool Council,1011970,A1 Streamline Road Markings Ltd,506827,3789,29/01/2019,840,140,ENGINE,Engineering,1012,Premises Maint-Priv.Contractor,Community & Env Services
Blackpool Council,1008817,Radio J  Cabs,506836,515738,21/01/2019,3072.58,0,EDDIV,Education Diversity,2201,Contract Hire,Children'S Services
Blackpool Council,1006586,H Jenkinson & Co Ltd,506843,SINV00832390,23/01/2019,261.94,43.66,AEB,Buildings,3020,Furniture - Purchase,Resources
Blackpool Council,1006586,H Jenkinson & Co Ltd,506844,SINV00832389,23/01/2019,823.07,137.17,AEB,Buildings,3020,Furniture - Purchase,Resources
Blackpool Council,1094355,Les Mills Fitness Uk Ltd,506846,SIV279983,21/01/2019,318.28,53.05,LEISUR,Leisure Management,2008,Running Costs-Licences,Community & Env Services
Blackpool Council,1060135,Happy Creative Ltd,506847,H4808,25/01/2019,2066.4,344.4,PTA,Economic Development,3315,Marketing,Places
Blackpool Council,1052212,Avalon Doors & Awnings Ltd,506850,11481,29/01/2019,450,75,PJHA,"Depot, Management & Admin",1012,Premises Maint-Priv.Contractor,Community & Env Services
Blackpool Council,1052212,Avalon Doors & Awnings Ltd,506851,11420,29/01/2019,474,79,PJHA,"Depot, Management & Admin",1012,Premises Maint-Priv.Contractor,Community & Env Services
Blackpool Council,1052212,Avalon Doors & Awnings Ltd,506852,11438,29/01/2019,450,75,PJHA,"Depot, Management & Admin",1012,Premises Maint-Priv.Contractor,Community & Env Services
Blackpool Council,1101124,South Shore Academy,506927,SSSI 263,21/01/2019,5705.25,0,OPAREA,Opportunity Areas,4515,Contract Services,Places
Blackpool Council,1117821,U-Explore Limited,506928,101722,21/01/2019,27780,4630,OPAREA,Opportunity Areas,4515,Contract Services,Places
Blackpool Council,1038738,Layton Primary School,506929,146,21/01/2019,11359,0,OPAREA,Opportunity Areas,4515,Contract Services,Places
Blackpool Council,1104384,Blackpool Aspire Academy & Highfurlong School,506930,7000000025,22/01/2019,6400,0,OPAREA,Opportunity Areas,4515,Contract Services,Places
Blackpool Council,1076316,(Radio Wave) News Uk & Ireland Limited,506934,600254419,22/01/2019,938.95,156.49,PJW,Management - Places - Illumina,3315,Marketing,Places
Blackpool Council,1097930,Bcs Learning & Developement Limited,506944,INV66157,22/01/2019,600,100,ALEARN,Adult Learning,6273,Miscellaneous,Places
Blackpool Council,1081147,REDACTED PERSONAL DATA,506945,BC100119,22/01/2019,400,0,ER3499,Governors' Services,0911,Training Expenses,Governance & Partnerships
Blackpool Council,1024186,Solon Security,506976,SI18006739,22/01/2019,465.6,77.6,COMSAF,Community Safety,3401,General Services,Public Health
Blackpool Council,1076636,Chicken Joes Ltd,506982,522969,24/01/2019,272.63,0,CATERG,Catering Services,3101,Provisions,Community & Env Services
Blackpool Council,1006196,Prism Medical Uk,506986,5305354,22/01/2019,12089,0,CX4002,Disabled Facilities Grants,6501,Contract Payments,Capital - Adult Social Care
Blackpool Council,1103450,Blackpool Entertainment Company Limited,506988,INV004051,25/01/2019,600,100,JA0505,Children'S Training,0911,Training Expenses,Children'S Services
Blackpool Council,1103450,Blackpool Entertainment Company Limited,506992,INV004094,25/01/2019,1404,234,JA0505,Children'S Training,0911,Training Expenses,Children'S Services
Blackpool Council,1080418,Skv Communications Limited,506993,61877,31/01/2019,1980,330,CGTBBB,Conference Centre,6501,Contract Payments,Capital - Commnctn & Regen
Blackpool Council,1004960,Drugline Lancashire Ltd,506994,1069,22/01/2019,560,0,JA0505,Children'S Training,0911,Training Expenses,Children'S Services
Blackpool Council,1000009,Blackpool & The Fylde College,507000,S0020441,22/01/2019,30000,0,OPAREA,Opportunity Areas,4515,Contract Services,Places
Blackpool Council,1010386,Montgomery Academy,507003,3000000117,22/01/2019,3600,0,OPAREA,Opportunity Areas,4515,Contract Services,Places
Blackpool Council,1102627,Fresh Pastures Ltd,507004,311218,30/01/2019,385.76,0,CATERG,Catering Services,3101,Provisions,Community & Env Services
Blackpool Council,1087034,Cool Milk Limited,507007,CML00023784,29/01/2019,15863.23,0,SCHBRK,Free School Breakfasts,3107,Milk For Drinking,Community & Env Services
Blackpool Council,1023478,Highfield Leadership Academy,507008,HLSI 265,22/01/2019,3500,0,OPAREA,Opportunity Areas,4515,Contract Services,Places
Blackpool Council,1021388,Cidari Education Ltd T/A St Georges School,507009,SGSI 49,22/01/2019,11713,0,OPAREA,Opportunity Areas,4515,Contract Services,Places
Blackpool Council,1053261,Ad Systems (Uk) Limited,507021,5146,22/01/2019,2973.6,495.6,CCTV,Cctv,3003,Equipt-Mtce Repairs,Public Health
Blackpool Council,1075547,Bauer Radio Ltd,507023,455757,23/01/2019,348.84,58.14,PBF,Communications,3806,Advertising-General,Chief Executive
Blackpool Council,1075547,Bauer Radio Ltd,507024,457987,23/01/2019,730.2,121.7,PBF,Communications,3806,Advertising-General,Chief Executive
Blackpool Council,1072848,Peter Rhodes,507026,01/017,23/01/2019,1335,0,TRCHIL,Integrated Transport Children,2201,Contract Hire,Community & Env Services
Blackpool Council,1012272,Johnston Publishing Ltd/Blackpool Gazette,507029,4873400,23/01/2019,312,52,PBF,Communications,3806,Advertising-General,Chief Executive
Blackpool Council,1102356,REDACTED PERSONAL DATA,507031,05,22/01/2019,500,0,JA0505,Children'S Training,0911,Training Expenses,Children'S Services
Blackpool Council,1010386,Montgomery Academy,507032,3000000118,23/01/2019,12115,0,OPAREA,Opportunity Areas,4515,Contract Services,Places
Blackpool Council,1104384,Blackpool Aspire Academy & Highfurlong School,507033,7000000027,22/01/2019,11105,0,OPAREA,Opportunity Areas,4515,Contract Services,Places
Blackpool Council,1104384,Blackpool Aspire Academy & Highfurlong School,507034,7000000028,22/01/2019,3600,0,OPAREA,Opportunity Areas,4515,Contract Services,Places
Blackpool Council,1009050,Harry B Litherland & Co Ltd,507035,674909,25/01/2019,257.62,42.94,FMAK,Acquisitions 9/10,1131,Electrical Equipment - Repairs,Places
Blackpool Council,1049385,Fylde Coast Ymca,507036,10143,28/01/2019,1728,288,FK0071,Corporate Training,0911,Training Expenses,Chief Executive
Blackpool Council,1049385,Fylde Coast Ymca,507037,10144,28/01/2019,672,112,FK0071,Corporate Training,0911,Training Expenses,Chief Executive
Blackpool Council,1049385,Fylde Coast Ymca,507038,10138,28/01/2019,1386,231,FK0071,Corporate Training,0911,Training Expenses,Chief Executive
Blackpool Council,1114727,Elliott Wood Partnership Ltd,507046,INV008368,23/01/2019,5476.8,912.8,FMAK,Acquisitions 9/10,3801,Other Expenses,Places
Blackpool Council,1011952,Empowerment,507048,477,31/01/2019,378.45,0,MHE,Undefined Age Group,4512,Other Care Block Payments,Adult & Families
Blackpool Council,1011952,Empowerment,507051,471,31/01/2019,583.9,0,MHE,Undefined Age Group,4512,Other Care Block Payments,Adult & Families
Blackpool Council,1112477,Big Wave Media (Fac060),507094,60326,30/01/2019,253.53,0,LEISUR,Leisure Management,3801,Other Expenses,Community & Env Services
Blackpool Council,1112477,Big Wave Media (Fac060),507095,60262,23/01/2019,7018,1169.67,LEISUR,Leisure Management,3801,Other Expenses,Community & Env Services
Blackpool Council,1114736,Geminus Training Limited,507103,INV-00172,23/01/2019,4320,720,PTA,Economic Development,3413,Consultants,Places
Blackpool Council,1116447,W J Sanderson & Sons Ltd,507115,06664652,30/01/2019,547.2,91.2,PRKOP1,Parks Operational Manager  1,1012,Premises Maint-Priv.Contractor,Community & Env Services
Blackpool Council,1116447,W J Sanderson & Sons Ltd,507116,06664651,30/01/2019,456,76,PRKOP1,Parks Operational Manager  1,1012,Premises Maint-Priv.Contractor,Community & Env Services
Blackpool Council,1071702,Links Signs & Graphics Ltd,507117,LSGI25959,31/01/2019,846,141,FGAA,Ict Corporate Services,3801,Other Expenses,Resources
Blackpool Council,1090774,Richardson Traction Limited,507122,20763,28/01/2019,2940,490,PJNA,New Features / Schemes - C & E,3041,Other Materials,Community & Env Services
Blackpool Council,1026181,Blackpool Sixth Form College,507145,5100672,23/01/2019,8600,0,OPAREA,Opportunity Areas,4515,Contract Services,Places
Blackpool Council,1026181,Blackpool Sixth Form College,507146,5100671,23/01/2019,3500,0,OPAREA,Opportunity Areas,4515,Contract Services,Places
Blackpool Council,1049385,Fylde Coast Ymca,507147,80000759,31/01/2019,682,0,EDDIV,Education Diversity,3303,Games/Visits,Children'S Services
Blackpool Council,1049385,Fylde Coast Ymca,507151,10145,28/01/2019,840,140,FK0071,Corporate Training,0911,Training Expenses,Chief Executive
Blackpool Council,1100577,Jones Lang Lasalle Limited,507154,EN002-0307113,24/01/2019,3000,500,CGIBAA,Land Release Fund,6506,Consultants Fees,Capital - Commnctn & Regen
Blackpool Council,1117254,A G Stafford,507155,4,24/01/2019,30144,5024,TRB,Maintenance & Works,4501,Private Contractors,Community & Env Services
Blackpool Council,1008817,Radio J  Cabs,507160,515723,23/01/2019,793.8,0,TRCHIL,Integrated Transport Children,2201,Contract Hire,Community & Env Services
Blackpool Council,1010138,C Cabs,507163,03652,23/01/2019,1356,0,TRCHIL,Integrated Transport Children,2201,Contract Hire,Community & Env Services
Blackpool Council,1008817,Radio J  Cabs,507164,515743,23/01/2019,307.12,0,TRCHIL,Integrated Transport Children,2201,Contract Hire,Community & Env Services
Blackpool Council,1008817,Radio J  Cabs,507166,515726,23/01/2019,2459.47,0,TRCHIL,Integrated Transport Children,2201,Contract Hire,Community & Env Services
Blackpool Council,1008817,Radio J  Cabs,507168,515724,23/01/2019,2803.5,0,TRCHIL,Integrated Transport Children,2201,Contract Hire,Community & Env Services
Blackpool Council,1116598,Dc & Mg Associates Ltd,507175,19 1036,29/01/2019,2640,440,CGIBAA,Land Release Fund,6506,Consultants Fees,Capital - Commnctn & Regen
Blackpool Council,1116598,Dc & Mg Associates Ltd,507176,19 1035,29/01/2019,2880,480,CGIBAA,Land Release Fund,6506,Consultants Fees,Capital - Commnctn & Regen
Blackpool Council,1099266,Yesss Electrical Ltd,507177,078IN78334,28/01/2019,437.1,72.85,CCTV,Cctv,3003,Equipt-Mtce Repairs,Public Health
Blackpool Council,1099266,Yesss Electrical Ltd,507178,0781N78326,28/01/2019,887.7,147.95,CCTV,Cctv,3003,Equipt-Mtce Repairs,Public Health
Blackpool Council,1110133,Alex Rinsler,507185,1902BC,28/01/2019,1050,0,PJW,Management - Places - Illumina,3413,Consultants,Places
Blackpool Council,1117707,Ravenscroft And Co Surveyors Ltd,507186,473,29/01/2019,806.4,134.4,AEE,Estates,0781,Contracted,Resources
Blackpool Council,1008454,Police & Crime Commissioner For Lancashire,507234,7500010669,24/01/2019,6000,1000,PRB,Events,3401,General Services,Places
Blackpool Council,1035017,Newauto Ltd T/A Mogo Uk,507237,T28881,25/01/2019,1028.4,171.4,PYLA,Licencing,3041,Other Materials,Community & Env Services
Blackpool Council,1011369,Lancashire County Council,507258,5200179613,24/01/2019,23000,0,OPAREA,Opportunity Areas,4515,Contract Services,Places
Blackpool Council,1046723,Brightprint (Fac008 Payment Only),507260,27593,28/01/2019,875,0,EYT,Early Years Team,3301,Printing,Children'S Services
Blackpool Council,1097997,Szpunar & Associates Ltd,507265,00001,25/01/2019,700,0,HOMECA,Homecare,0911,Training Expenses,Adult & Families
Blackpool Council,1090874,Advanced Health And Care Limited,507287,ARMIN/00016624,25/01/2019,672,112,HOMECA,Homecare,3101,Provisions,Adult & Families
Blackpool Council,1074052,Brent Stevenson Memorials Ltd,507310,19682,30/01/2019,491.4,81.9,CEMCRE,Cems Crems Etc,3454,Remove And Refix Memorials,Governance & Partnerships
Blackpool Council,1078639,National Crime Agency,507314,SI\015079,29/01/2019,650,0,PYTA,Trading Standards,3605,Confs & Short Courses,Community & Env Services
Blackpool Council,1095404,Ams International,507315,44-25032,28/01/2019,2893.87,482.31,BSTPRJ,Better Start Projects,3801,Other Expenses,Better Start Projects
Blackpool Council,1023478,Highfield Leadership Academy,507316,HLSI 268,28/01/2019,3600,0,OPAREA,Opportunity Areas,4515,Contract Services,Places
Blackpool Council,1074052,Brent Stevenson Memorials Ltd,507359,19683,30/01/2019,274.56,45.76,CEMCRE,Cems Crems Etc,3454,Remove And Refix Memorials,Governance & Partnerships
Blackpool Council,1007206,Road Safety Services Ltd,507360,84501,29/01/2019,2340,390,SCHEME,Highways Schemes,1012,Premises Maint-Priv.Contractor,Community & Env Services
Blackpool Council,1053891,REDACTED PERSONAL DATA,507405,2016-87,29/01/2019,1050,0,AHG,Art Gallery Summary,3456,Payment To Artists,Places
Blackpool Council,1011714,Michael Hope Haulage Limited,507419,001376,29/01/2019,1864.8,310.8,SCHEME,Highways Schemes,1012,Premises Maint-Priv.Contractor,Community & Env Services
Blackpool Council,1018184,Blackpool Skip Hire,507420,011473,30/01/2019,300,50,SCHEME,Highways Schemes,1012,Premises Maint-Priv.Contractor,Community & Env Services
Blackpool Council,1042794,Carlton Fuels Limited,507422,4410729,31/01/2019,21272.06,3545.34,ZF0001,"Insurance,Dso,Banking",9511A,Stocks Efin,Total Reconciliations
Blackpool Council,1079992,J Fisher & Sons Ltd,507423,52065,29/01/2019,1014,169,SCHEME,Highways Schemes,4501,Private Contractors,Community & Env Services
Blackpool Council,1079992,J Fisher & Sons Ltd,507424,52064,29/01/2019,1014,169,SCHEME,Highways Schemes,4501,Private Contractors,Community & Env Services
Blackpool Council,1083256,Community Lighting Partnership (Bpool) Ltd,507425,109,29/01/2019,452137.97,75356.33,FL1259,Pfi Management Costs,4501,Private Contractors,Community & Env Services
Blackpool Council,1011923,Rp Tyson Construction Ltd,507434,IN2538,29/01/2019,174313.52,0,CXC11,Site Development,6501,Contract Payments,Capital - Chief Executive
Blackpool Council,1011923,Rp Tyson Construction Ltd,507434,IN2538,29/01/2019,5391.14,0,ZH0001,Housing Revenue Account,97B6,Retention Monies - Cap Trsfr,Housing Revenue Account
Blackpool Council,1040364,Conlon Construction Ltd,507437,10516,31/01/2019,61061.62,10176.94,CGTABA,Spanish Hall & Cs Façade,6501,Contract Payments,Capital - Commnctn & Regen
Blackpool Council,1040364,Conlon Construction Ltd,507437,10516,31/01/2019,1338.35,0,ZF0001,"Insurance,Dso,Banking",97B6,Retention Monies - Cap Trsfr,Total Reconciliations
Blackpool Council,1086000,Sr Supply Chain Consultants Ltd,507439,INV-2338,31/01/2019,3012,450,FB0001,Business Services Team,0911,Training Expenses,Resources
Blackpool Council,1112477,Big Wave Media (Fac060),507460,60381,30/01/2019,701.52,116.92,LEISUR,Leisure Management,3801,Other Expenses,Community & Env Services
Blackpool Council,1112477,Big Wave Media (Fac060),507461,60389,30/01/2019,312,0,LEISUR,Leisure Management,3801,Other Expenses,Community & Env Services
Blackpool Council,1114704,Morson Human Resources Ltd,507466,HS215130,30/01/2019,2376,396,CTAHHA,Tramway Emergency Works,6506,Consultants Fees,Capital - Commnctn & Regen
Blackpool Council,1075026,Henco International Ltd,507489,9552,30/01/2019,13009.46,2168.25,AEB,Buildings,1301,Rent & Hire Of Premises,Resources
Blackpool Council,1116268,S J Hankinson - Pre-Loved Sofas & Chairs Ltd,507490,8040,29/01/2019,378,63,APCBBE,Extra Support,3020,Furniture - Purchase,Adult & Families
Blackpool Council,1055691,Norbain Sd Ltd,507491,I2755589,31/01/2019,2440.2,406.7,CCTV,Cctv,3003,Equipt-Mtce Repairs,Public Health
Blackpool Council,1055691,Norbain Sd Ltd,507493,I2755074,30/01/2019,268.4,44.73,CCTV,Cctv,3003,Equipt-Mtce Repairs,Public Health
Blackpool Council,1112583,The Electric Sunshine Project Cic,507527,TESPPCP140119,30/01/2019,960,0,SBOARD,Springboard,4501,Private Contractors,Children'S Services
Blackpool Council,1102403,Bs Support Services Limited,507529,DEC01,30/01/2019,3000,500,VA0010,Vah Management & Admin,3801,Other Expenses,Children'S Services
Blackpool Council,1006099,Blackpool Teaching Hospitals Nhs Ft,507534,1110042136,30/01/2019,4601.03,0,SBOARD,Springboard,3801,Other Expenses,Children'S Services
Blackpool Council,1006099,Blackpool Teaching Hospitals Nhs Ft,507536,1110041689,30/01/2019,4441.63,0,SBOARD,Springboard,3801,Other Expenses,Children'S Services
Blackpool Council,1010861,Renaissance Learning Uk,507547,INV1068823,30/01/2019,4579.38,763.23,EDDIV,Education Diversity,3711,Subscriptions,Children'S Services
Blackpool Council,1058510,Lifeline Language Services Ltd,507552,0219016,31/01/2019,286.44,47.74,JEA,Senior Management,5507,Personal,Children'S Services
Blackpool Council,1063740,Peter Gray,507553,SSCYP/BP/DEC18,31/01/2019,3730.49,621.75,OPAREA,Opportunity Areas,4515,Contract Services,Places
Blackpool Council,1117351,Open Text,507554,9000804265,31/01/2019,709.98,118.33,CTAHHA,Tramway Emergency Works,6506,Consultants Fees,Capital - Commnctn & Regen
Blackpool Council,1085660,Bisset Adams Ltd,507564,07499,31/01/2019,34562.4,5760.4,FMAK,Acquisitions 9/10,3801,Other Expenses,Places
Blackpool Council,1007960,Mott Macdonald Ltd,507620,IN00400815,31/01/2019,10800,1800,CGICAD,Enterprise Zone,6506,Consultants Fees,Capital - Commnctn & Regen
Blackpool Council,1007453,Primrose Bank Rest Home Ltd,3728568,118419,30/01/2019,2076.7,0,MVC,75-84,4505,Residential Homes,Adult & Families
Blackpool Council,1007453,Primrose Bank Rest Home Ltd,3740652,122157,30/01/2019,1959.04,0,MVC,75-84,4505,Residential Homes,Adult & Families
Blackpool Council,1007453,Primrose Bank Rest Home Ltd,3753973,127434,30/01/2019,558.13,0,MVD,85+,4505,Residential Homes,Adult & Families
Blackpool Council,1116609,Iqsa (Athena) Ltd,3944791,LAZ05-LAMB/2,07/01/2019,2856,0,JEA,Senior Management,5551,Rent & Rent Bonds,Children'S Services
Blackpool Council,1116256,Key Properties,3944796,CFK4WARDST,21/01/2019,1209,0,JEA,Senior Management,5551,Rent & Rent Bonds,Children'S Services
Blackpool Council,1009799,Thornton Care Ltd (Westport House),3948012,194484I,24/01/2019,2032.56,0,MVD,85+,4505,Residential Homes,Adult & Families
Blackpool Council,1100894,St Maxentius C E Primary School,3952187,LACPPG SUMMER18,22/01/2019,1400,0,CWAN,Children With Additional Needs,5101,Transfer Payments - General,Children'S Services
Blackpool Council,1116911,REDACTED PERSONAL DATA,3952677,GW 139BARLOWST,03/01/2019,1700,0,JEA,Senior Management,5551,Rent & Rent Bonds,Children'S Services
Blackpool Council,1116245,REDACTED PERSONAL DATA,3953236,BURSARY NO2,03/01/2019,333.33,0,JEA,Senior Management,5555,Educational Support,Children'S Services
Blackpool Council,1037482,Chubb Fire & Security Ltd,3953707,7141524,04/01/2019,12531.4,2088.57,CXB71,Hra Capital Programme 2018/19,6501,Contract Payments,Capital - Chief Executive
Blackpool Council,1066348,Edge Hill University,3958646,24003000/2,03/01/2019,1653.33,0,JEA,Senior Management,5551,Rent & Rent Bonds,Children'S Services
Blackpool Council,1009799,Thornton Care Ltd (Westport House),3961866,199289I,24/01/2019,2032.56,0,MVD,85+,4505,Residential Homes,Adult & Families
Blackpool Council,1066073,Blackpool Coastal Housing,3972588,30001500,23/01/2019,12999.6,2166.6,MTE,Undefined Age Group,4512,Other Care Block Payments,Adult & Families
Blackpool Council,1116727,Salutem Ld Bidco Iv Limited T/A Ambito,3973992,0000105740,10/01/2019,8865,0,CWAN,Children With Additional Needs,4501,Private Contractors,Children'S Services
Blackpool Council,1103450,Blackpool Entertainment Company Limited,3974603,INV003915,04/01/2019,1040,173.33,AEB,Buildings,1301,Rent & Hire Of Premises,Resources
Blackpool Council,1009799,Thornton Care Ltd (Westport House),3976546,204393I,24/01/2019,2032.56,0,MVD,85+,4505,Residential Homes,Adult & Families
Blackpool Council,1034166,University Of York,3977532,A0081064/2/1,31/01/2019,1853.28,0,JEA,Senior Management,5551,Rent & Rent Bonds,Children'S Services
Blackpool Council,1103450,Blackpool Entertainment Company Limited,3978822,INV003932,04/01/2019,345.3,57.55,FMAK,Acquisitions 9/10,1301,Rent & Hire Of Premises,Places
Blackpool Council,1006202,I Care Gb Limited,3985949,BPLEX/1811,03/01/2019,6171.98,0,MVB,65-74,4512,Other Care Block Payments,Adult & Families
Blackpool Council,1006202,I Care Gb Limited,3987553,BPLEX/211,03/01/2019,6171.98,0,MVB,65-74,4512,Other Care Block Payments,Adult & Families
Blackpool Council,1117552,Deborah Mckenna (Client Acc) Virtually Naked,3990208,CBA00135I,02/01/2019,3000,500,BSTPRJ,Better Start Projects,3401,General Services,Better Start Projects
Blackpool Council,1105003,Socal Healthcare Ltd,3990524,1118-051-053,02/01/2019,533.19,0,JDEAAA,Safeguarding Adults,4501,Private Contractors,Adult & Families
Blackpool Council,1009799,Thornton Care Ltd (Westport House),3991211,209415I,24/01/2019,2032.56,0,MVD,85+,4505,Residential Homes,Adult & Families
Blackpool Council,1105240,Hanzak Ltd T/A Dr Rashad Nazir,3992297,20526RN,02/01/2019,1038,0,JDEAAA,Safeguarding Adults,4501,Private Contractors,Adult & Families
Blackpool Council,1034533,Richmond Fellowship,3992411,SI/00023095,03/01/2019,12309.5,0,MFA,Adults Under 65 With Mh,4512,Other Care Block Payments,Adult & Families
Blackpool Council,1034533,Richmond Fellowship,3992412,SI/00024080,03/01/2019,12309.5,0,MFA,Adults Under 65 With Mh,4512,Other Care Block Payments,Adult & Families
Blackpool Council,1006202,I Care Gb Limited,3992474,BPLEX/0212,03/01/2019,6171.98,0,MVB,65-74,4512,Other Care Block Payments,Adult & Families
Blackpool Council,1008096,Mellor Architects Ltd,3992950,6292,09/01/2019,510,85,CX4002,Disabled Facilities Grants,6501,Contract Payments,Capital - Adult Social Care
Blackpool Council,1011995,Technical & Electrical Services Ltd,3993067,ES 17778,09/01/2019,406.98,67.83,CXAAA,Local Authority Dwellings,6501,Contract Payments,Capital - Chief Executive
Blackpool Council,1105240,Hanzak Ltd T/A Dr Rashad Nazir,3994503,20532RN,04/01/2019,1008.15,0,JDEAAA,Safeguarding Adults,4501,Private Contractors,Adult & Families
Blackpool Council,1117349,Dr Sotonte Bobmanuel,3994504,00002,04/01/2019,1129.2,0,JDEAAA,Safeguarding Adults,4501,Private Contractors,Adult & Families
Blackpool Council,1117122,Affinity Trust,3994664,78833,04/01/2019,868.14,0,MTE,Undefined Age Group,4501,Private Contractors,Adult & Families
Blackpool Council,1077392,Reed Specialist Recruitment Ltd,3994678,E020770909M,02/01/2019,619.68,103.29,HOPB,Housing Options,0791,Temp/Relief (Bureau Staff),Chief Executive
Blackpool Council,1077392,Reed Specialist Recruitment Ltd,3994678,E020770909M,02/01/2019,672.65,112.11,HS0008,Headstart Admin & Support,0791,Temp/Relief (Bureau Staff),Children'S Services
Blackpool Council,1077392,Reed Specialist Recruitment Ltd,3994678,E020770909M,02/01/2019,7252.87,1208.81,JA1531,Independent Reviewing Officers,0791,Temp/Relief (Bureau Staff),Children'S Services
Blackpool Council,1077392,Reed Specialist Recruitment Ltd,3994678,E020770909M,02/01/2019,8275.61,1379.27,JAB,Locality,0791,Temp/Relief (Bureau Staff),Children'S Services
Blackpool Council,1077392,Reed Specialist Recruitment Ltd,3994678,E020770909M,02/01/2019,2842.26,473.71,JBT,Looked After Children,0791,Temp/Relief (Bureau Staff),Children'S Services
Blackpool Council,1077392,Reed Specialist Recruitment Ltd,3994678,E020770909M,02/01/2019,1098.38,183.06,JEA,Senior Management,0791,Temp/Relief (Bureau Staff),Children'S Services
Blackpool Council,1077392,Reed Specialist Recruitment Ltd,3994678,E020770909M,02/01/2019,792.81,132.14,SSDA,Social Services Direct,0791,Temp/Relief (Bureau Staff),Adult & Families
Blackpool Council,1007516,Phoenix Commercial Collections Ltd,3994721,104598,04/01/2019,4576.61,762.77,FBBEA,"Income, Recovery & Debtors",3807,Legal & Court Costs,Resources
Blackpool Council,1007023,Access Uk Ltd - Selima,3994729,630390,10/01/2019,29096.6,4849.43,FB0181,Payroll General,3532,Comp-Running & License Costs,Resources
Blackpool Council,1073045,Bradley Environmental Consultants Ltd (Fac042,3994879,29130,04/01/2019,696,116,FMAA,Retail Units,1012,Premises Maint-Priv.Contractor,Resources
Blackpool Council,1073045,Bradley Environmental Consultants Ltd (Fac042,3994880,29131,04/01/2019,300,50,FMAA,Retail Units,1012,Premises Maint-Priv.Contractor,Resources
Blackpool Council,1094411,Fox Fire Security Limited,3994906,2586,08/01/2019,475.5,79.25,AEB,Buildings,1012,Premises Maint-Priv.Contractor,Resources
Blackpool Council,1094411,Fox Fire Security Limited,3994908,2580,04/01/2019,1782.18,297.03,LIFEVE,Life Events Reg & Care,1012,Premises Maint-Priv.Contractor,Governance & Partnerships
Blackpool Council,1094411,Fox Fire Security Limited,3994910,2575,03/01/2019,576,96,AEB,Buildings,1012,Premises Maint-Priv.Contractor,Resources
Blackpool Council,1007516,Phoenix Commercial Collections Ltd,3994919,104597,04/01/2019,17078.99,2846.5,FBBEA,"Income, Recovery & Debtors",3807,Legal & Court Costs,Resources
Blackpool Council,1100902,REDACTED PERSONAL DATA,3995326,52/11,03/01/2019,452.9,0,MVB,65-74,4509,Other Care,Adult & Families
Blackpool Council,1095165,Tower Learning Centre Ltd,3995335,290-743,02/01/2019,1140,190,CWAN,Children With Additional Needs,4501,Private Contractors,Children'S Services
Blackpool Council,1111328,Hadley Fraser Ltd,3995343,BLA078,09/01/2019,6624.48,1104.08,JDEAAA,Safeguarding Adults,4501,Private Contractors,Adult & Families
Blackpool Council,1106504,Forensic Psychological Solutions,3995350,08/18,04/01/2019,15600,2600,DOMABU,Domestic Abuse,3401,General Services,Children'S Services
Blackpool Council,1011518,Tw Joinery & Fencing Contractors,3995352,2995,04/01/2019,2418,403,CXB71,Hra Capital Programme 2018/19,6501,Contract Payments,Capital - Chief Executive
Blackpool Council,1008540,Konica Minolta Business (Uk) Ltd,3995355,1141425250,11/01/2019,4450.92,741.82,PRINTS,Corporate Print Services,3001,Office Equipment Purchase,Places
Blackpool Council,1010104,Canon (Uk ) Ltd,3995356,44119670,03/01/2019,274.5,45.75,PRINTS,Corporate Print Services,3344,Paper,Places
Blackpool Council,1094655,Xpres,3995359,SIV00394928,04/01/2019,627.6,104.6,PRINTS,Corporate Print Services,3347,Laser Materials,Places
Blackpool Council,1094655,Xpres,3995360,SIV00395195,04/01/2019,302.4,50.4,PRINTS,Corporate Print Services,3347,Laser Materials,Places
Blackpool Council,1015654,Horton Automatics Ltd,3995365,4083319,04/01/2019,5889,981.5,CXB71,Hra Capital Programme 2018/19,6501,Contract Payments,Capital - Chief Executive
Blackpool Council,1011675,Bambers Remedial Contractors Limited,3995368,15443,04/01/2019,2247.6,374.6,CXB71,Hra Capital Programme 2018/19,6501,Contract Payments,Capital - Chief Executive
Blackpool Council,1105003,Socal Healthcare Ltd,3995378,1218-057-058,02/01/2019,350.99,0,JDEAAA,Safeguarding Adults,4501,Private Contractors,Adult & Families
Blackpool Council,1011995,Technical & Electrical Services Ltd,3995383,M 17807,09/01/2019,321.36,53.56,CXB71,Hra Capital Programme 2018/19,6501,Contract Payments,Capital - Chief Executive
Blackpool Council,1111078,Dr Y P Shukla,3995479,97,08/01/2019,1082.85,0,JDEAAA,Safeguarding Adults,4501,Private Contractors,Adult & Families
Blackpool Council,1111078,Dr Y P Shukla,3995480,98,08/01/2019,381.5,0,JDEAAA,Safeguarding Adults,4501,Private Contractors,Adult & Families
Blackpool Council,1111078,Dr Y P Shukla,3995481,99,08/01/2019,732.85,0,JDEAAA,Safeguarding Adults,4501,Private Contractors,Adult & Families
Blackpool Council,1111078,Dr Y P Shukla,3995482,100,08/01/2019,548.85,0,JDEAAA,Safeguarding Adults,4501,Private Contractors,Adult & Families
Blackpool Council,1111078,Dr Y P Shukla,3995491,102,08/01/2019,910.1,0,JDEAAA,Safeguarding Adults,4501,Private Contractors,Adult & Families
Blackpool Council,1111078,Dr Y P Shukla,3995492,103,08/01/2019,569.9,0,JDEAAA,Safeguarding Adults,4501,Private Contractors,Adult & Families
Blackpool Council,1111078,Dr Y P Shukla,3995493,104,08/01/2019,556.95,0,JDEAAA,Safeguarding Adults,4501,Private Contractors,Adult & Families
Blackpool Council,1111078,Dr Y P Shukla,3995494,105,08/01/2019,731.5,0,JDEAAA,Safeguarding Adults,4501,Private Contractors,Adult & Families
Blackpool Council,1111078,Dr Y P Shukla,3995495,106,08/01/2019,732.85,0,JDEAAA,Safeguarding Adults,4501,Private Contractors,Adult & Families
Blackpool Council,1111078,Dr Y P Shukla,3995496,107,08/01/2019,554.7,0,JDEAAA,Safeguarding Adults,4501,Private Contractors,Adult & Families
Blackpool Council,1111078,Dr Y P Shukla,3995498,108,08/01/2019,909.65,0,JDEAAA,Safeguarding Adults,4501,Private Contractors,Adult & Families
Blackpool Council,1111078,Dr Y P Shukla,3995501,109,08/01/2019,732.4,0,JDEAAA,Safeguarding Adults,4501,Private Contractors,Adult & Families
Blackpool Council,1111078,Dr Y P Shukla,3995504,110,08/01/2019,908.3,0,JDEAAA,Safeguarding Adults,4501,Private Contractors,Adult & Families
Blackpool Council,1111078,Dr Y P Shukla,3995508,111,08/01/2019,723.85,0,JDEAAA,Safeguarding Adults,4501,Private Contractors,Adult & Families
Blackpool Council,1111078,Dr Y P Shukla,3995513,112,08/01/2019,724.3,0,JDEAAA,Safeguarding Adults,4501,Private Contractors,Adult & Families
Blackpool Council,1111078,Dr Y P Shukla,3995515,113,08/01/2019,1086,0,JDEAAA,Safeguarding Adults,4501,Private Contractors,Adult & Families
Blackpool Council,1111078,Dr Y P Shukla,3995522,114,08/01/2019,1256.5,0,JDEAAA,Safeguarding Adults,4501,Private Contractors,Adult & Families
Blackpool Council,1111078,Dr Y P Shukla,3995526,96,08/01/2019,906.5,0,JDEAAA,Safeguarding Adults,4501,Private Contractors,Adult & Families
Blackpool Council,1073045,Bradley Environmental Consultants Ltd (Fac042,3995560,29138,04/01/2019,420,70,AEZ,To Be Recharged,1012,Premises Maint-Priv.Contractor,Resources
Blackpool Council,1088102,Whistl Uk Limited,3995616,IN18US18009550,07/01/2019,3004.92,500.82,FCADA,Customer Services,3511,Postages,Resources
Blackpool Council,1117457,Wrps Ltd,3995618,2984,04/01/2019,15873.38,2645.56,CXB71,Hra Capital Programme 2018/19,6501,Contract Payments,Capital - Chief Executive
Blackpool Council,1073098,Safenet,3995631,971,10/01/2019,13276.25,0,DOMABU,Domestic Abuse,3401,General Services,Children'S Services
Blackpool Council,1073098,Safenet,3995633,968,10/01/2019,5800.5,0,DOMABU,Domestic Abuse,3401,General Services,Children'S Services
Blackpool Council,1070415,Medical Response Services Ltd,3995647,2018121436,24/01/2019,1400,0,MVD,85+,6445,Transport,Adult & Families
Blackpool Council,1116043,Pro-Active Management Associates Ltd,3997182,206,03/01/2019,2160,360,JEA,Senior Management,3401,General Services,Children'S Services
Blackpool Council,1117082,Kaleidoscope Project,3997200,4001,04/01/2019,6160,0,PU2037,Inpatient Detox,4501,Private Contractors,Public Health
Blackpool Council,1058510,Lifeline Language Services Ltd,3998891,1118060,04/01/2019,638.93,106.49,JEA,Senior Management,3419,Interpreters Fees,Children'S Services
Blackpool Council,1058510,Lifeline Language Services Ltd,3998894,1218012,04/01/2019,540,90,JEA,Senior Management,3419,Interpreters Fees,Children'S Services
Blackpool Council,1058510,Lifeline Language Services Ltd,3998895,1218043,04/01/2019,1134,189,JEA,Senior Management,3419,Interpreters Fees,Children'S Services
Blackpool Council,1011675,Bambers Remedial Contractors Limited,3998896,15010,23/01/2019,4980,830,CXB71,Hra Capital Programme 2018/19,6501,Contract Payments,Capital - Chief Executive
Blackpool Council,1011518,Tw Joinery & Fencing Contractors,3998898,2999,04/01/2019,5232,872,CXB71,Hra Capital Programme 2018/19,6501,Contract Payments,Capital - Chief Executive
Blackpool Council,1094988,Maxmedia Communications Ltd,3998927,6733,09/01/2019,2010,335,HEA,Housing Needs / Allocation,3801,Other Expenses,Net Cost Of Services
Blackpool Council,1105889,3d Environmental Limited,3998929,BPCBCH-0005,04/01/2019,355.92,59.32,CXC11,Site Development,6518,Miscellaneous - Capital,Capital - Chief Executive
Blackpool Council,1011702,J & J Decorating Services,3999057,7820,03/01/2019,300,50,AER,Dual Use Properties,1012,Premises Maint-Priv.Contractor,Resources
Blackpool Council,1009307,Fylde Office Service Bureau Ltd,3999133,3039,02/01/2019,439.2,73.2,FK0013,Corporate Health,0791,Temp/Relief (Bureau Staff),Chief Executive
Blackpool Council,1006202,I Care Gb Limited,3999135,BPLEX/0912,03/01/2019,6171.98,0,MVB,65-74,4512,Other Care Block Payments,Adult & Families
Blackpool Council,1011558,Farleys Solicitors Llp,3999143,54480,03/01/2019,1800,0,SBOARD,Springboard,0917,Other Exps,Children'S Services
Blackpool Council,1097031,Appletons Trading Solutions Ltd (Als),3999146,0297,02/01/2019,13250,0,CWAN,Children With Additional Needs,3801,Other Expenses,Children'S Services
Blackpool Council,1011675,Bambers Remedial Contractors Limited,4000063,15463,04/01/2019,60917.44,10152.91,CXB71,Hra Capital Programme 2018/19,6501,Contract Payments,Capital - Chief Executive
Blackpool Council,1041219,Abelglass Trade Supplies Ltd,4000065,INV-2126,04/01/2019,635.94,105.99,CXB71,Hra Capital Programme 2018/19,6501,Contract Payments,Capital - Chief Executive
Blackpool Council,1100221,Forensic Testing Service Ltd,4000283,34597,11/01/2019,572.4,95.4,JEA,Senior Management,3807,Legal & Court Costs,Children'S Services
Blackpool Council,1008429,Red Rose School,4000305,F3807,04/01/2019,6190,0,CWAN,Children With Additional Needs,4501,Private Contractors,Children'S Services
Blackpool Council,1008429,Red Rose School,4000306,F3808,04/01/2019,6190,0,CWAN,Children With Additional Needs,4501,Private Contractors,Children'S Services
Blackpool Council,1008429,Red Rose School,4000308,F3809,04/01/2019,6190,0,CWAN,Children With Additional Needs,4501,Private Contractors,Children'S Services
Blackpool Council,1008429,Red Rose School,4000311,F3810,04/01/2019,6190,0,CWAN,Children With Additional Needs,4501,Private Contractors,Children'S Services
Blackpool Council,1008429,Red Rose School,4000312,F3811,04/01/2019,6190,0,CWAN,Children With Additional Needs,4501,Private Contractors,Children'S Services
Blackpool Council,1008429,Red Rose School,4000313,F3812,04/01/2019,6190,0,CWAN,Children With Additional Needs,4501,Private Contractors,Children'S Services
Blackpool Council,1008429,Red Rose School,4000314,F3813,04/01/2019,6190,0,CWAN,Children With Additional Needs,4501,Private Contractors,Children'S Services
Blackpool Council,1008429,Red Rose School,4000315,F3814,04/01/2019,6190,0,CWAN,Children With Additional Needs,4501,Private Contractors,Children'S Services
Blackpool Council,1008429,Red Rose School,4000316,F3815,04/01/2019,6190,0,CWAN,Children With Additional Needs,4501,Private Contractors,Children'S Services
Blackpool Council,1008429,Red Rose School,4000317,F3816,04/01/2019,4542,0,CWAN,Children With Additional Needs,4501,Private Contractors,Children'S Services
Blackpool Council,1008429,Red Rose School,4000318,F3817,04/01/2019,6190,0,CWAN,Children With Additional Needs,4501,Private Contractors,Children'S Services
Blackpool Council,1105240,Hanzak Ltd T/A Dr Rashad Nazir,4000322,20539RN,17/01/2019,642.3,0,JDEAAA,Safeguarding Adults,4501,Private Contractors,Adult & Families
Blackpool Council,1011952,Empowerment,4000328,453,11/01/2019,60999.99,0,MHE,Undefined Age Group,4512,Other Care Block Payments,Adult & Families
Blackpool Council,1011952,Empowerment,4000329,452,03/01/2019,14500,0,HEAWEL,Health &Wellbeing Board,3701,Grants,Adult & Families
Blackpool Council,1042797,Lux Occ Medical Ltd,4000330,BBC/24,02/01/2019,1800,0,FK0013,Corporate Health,0992,Medical Fees (Employee),Chief Executive
Blackpool Council,1011952,Empowerment,4000334,454,10/01/2019,8499.99,0,DOMABU,Domestic Abuse,7011,Government Grants,Children'S Services
Blackpool Council,1007516,Phoenix Commercial Collections Ltd,4000335,104724,11/01/2019,15170.5,2528.42,FBBEA,"Income, Recovery & Debtors",3807,Legal & Court Costs,Resources
Blackpool Council,1007516,Phoenix Commercial Collections Ltd,4000336,104725,11/01/2019,938.97,156.48,FBBEA,"Income, Recovery & Debtors",3807,Legal & Court Costs,Resources
Blackpool Council,1009338,Forbes Solicitors,4000337,KXB/RLH/L171317,02/01/2019,21089.52,3514.92,RK6008,Gallagher Bassett Sensitive,4705,Solicitors Fees,Internal Insurance
Blackpool Council,1009338,Forbes Solicitors,4000339,KXB/LAP/L17533,02/01/2019,15899.76,2649.96,RK6008,Gallagher Bassett Sensitive,4705,Solicitors Fees,Internal Insurance
Blackpool Council,1100221,Forensic Testing Service Ltd,4000341,34515,10/01/2019,1271.28,211.88,JEA,Senior Management,3807,Legal & Court Costs,Children'S Services
Blackpool Council,1011952,Empowerment,4000355,456,11/01/2019,512.78,0,JDEAAA,Safeguarding Adults,4501,Private Contractors,Adult & Families
Blackpool Council,1117428,Anthony Collins Solicitors Llp,4000357,00303910,02/01/2019,1303.8,217.3,CGICAF,G&P Prudential Schemes,6506,Consultants Fees,Capital - Commnctn & Regen
Blackpool Council,1009281,Davies Casualty(Inc Garwyn & Argent),4000380,326289,24/01/2019,37512.35,0,RK6003,Davies Group Plh (Prev Garwyn),4706,Disbursements,Internal Insurance
Blackpool Council,1000009,Blackpool & The Fylde College,4000405,S0020247,24/01/2019,9000,0,LM0420,Adults Training,1901,Contributions To Funds,Adult & Families
Blackpool Council,1099262,Nhs Blackpool Ccg,4000472,7011211629,03/01/2019,1528.02,0,MFA,Adults Under 65 With Mh,4201,Joint Authorities,Adult & Families
Blackpool Council,1099262,Nhs Blackpool Ccg,4000473,7011211625,03/01/2019,1837.5,0,MFA,Adults Under 65 With Mh,4201,Joint Authorities,Adult & Families
Blackpool Council,1099262,Nhs Blackpool Ccg,4000474,7011211630,03/01/2019,1759.02,0,MFA,Adults Under 65 With Mh,4201,Joint Authorities,Adult & Families
Blackpool Council,1099262,Nhs Blackpool Ccg,4000475,7011211633,03/01/2019,1900,0,MFA,Adults Under 65 With Mh,4201,Joint Authorities,Adult & Families
Blackpool Council,1099262,Nhs Blackpool Ccg,4000477,7011211627,03/01/2019,1643.52,0,MFA,Adults Under 65 With Mh,4201,Joint Authorities,Adult & Families
Blackpool Council,1099262,Nhs Blackpool Ccg,4000478,7011211619,03/01/2019,879.68,0,MFA,Adults Under 65 With Mh,4201,Joint Authorities,Adult & Families
Blackpool Council,1099262,Nhs Blackpool Ccg,4000479,7011211622,03/01/2019,1461.6,0,MFA,Adults Under 65 With Mh,4201,Joint Authorities,Adult & Families
Blackpool Council,1099262,Nhs Blackpool Ccg,4000480,7011211623,03/01/2019,1680,0,MFA,Adults Under 65 With Mh,4201,Joint Authorities,Adult & Families
Blackpool Council,1099262,Nhs Blackpool Ccg,4000481,7011211624,03/01/2019,1528.02,0,MFA,Adults Under 65 With Mh,4201,Joint Authorities,Adult & Families
Blackpool Council,1099262,Nhs Blackpool Ccg,4000482,7011211637,03/01/2019,512.05,0,MFA,Adults Under 65 With Mh,4201,Joint Authorities,Adult & Families
Blackpool Council,1099262,Nhs Blackpool Ccg,4000483,7011283454,03/01/2019,1200,0,MFA,Adults Under 65 With Mh,4201,Joint Authorities,Adult & Families
Blackpool Council,1099262,Nhs Blackpool Ccg,4000484,7011211626,03/01/2019,2100,0,MFA,Adults Under 65 With Mh,4201,Joint Authorities,Adult & Families
Blackpool Council,1099262,Nhs Blackpool Ccg,4000485,7011211593,03/01/2019,444.74,0,MFA,Adults Under 65 With Mh,4201,Joint Authorities,Adult & Families
Blackpool Council,1099262,Nhs Blackpool Ccg,4000486,7011211628,03/01/2019,1528.02,0,MFA,Adults Under 65 With Mh,4201,Joint Authorities,Adult & Families
Blackpool Council,1099262,Nhs Blackpool Ccg,4000487,7011211564,03/01/2019,2419.23,0,MFA,Adults Under 65 With Mh,4201,Joint Authorities,Adult & Families
Blackpool Council,1099262,Nhs Blackpool Ccg,4000488,7011211566,03/01/2019,3211.4,0,MFA,Adults Under 65 With Mh,4201,Joint Authorities,Adult & Families
Blackpool Council,1099262,Nhs Blackpool Ccg,4000489,7011211589,03/01/2019,1360.3,0,MFA,Adults Under 65 With Mh,4201,Joint Authorities,Adult & Families
Blackpool Council,1099262,Nhs Blackpool Ccg,4000491,7011211571,03/01/2019,3211.4,0,MFA,Adults Under 65 With Mh,4201,Joint Authorities,Adult & Families
Blackpool Council,1099262,Nhs Blackpool Ccg,4000492,7011211558,03/01/2019,1896.43,0,MFA,Adults Under 65 With Mh,4201,Joint Authorities,Adult & Families
Blackpool Council,1099262,Nhs Blackpool Ccg,4000493,7011211580,03/01/2019,4001.89,0,MFA,Adults Under 65 With Mh,4201,Joint Authorities,Adult & Families
Blackpool Council,1099262,Nhs Blackpool Ccg,4000494,7011211603,03/01/2019,444.74,0,MFA,Adults Under 65 With Mh,4201,Joint Authorities,Adult & Families
Blackpool Council,1099262,Nhs Blackpool Ccg,4000495,7011211592,03/01/2019,1590,0,MFA,Adults Under 65 With Mh,4201,Joint Authorities,Adult & Families
Blackpool Council,1099262,Nhs Blackpool Ccg,4000496,7011211578,03/01/2019,4789.87,0,MFA,Adults Under 65 With Mh,4201,Joint Authorities,Adult & Families
Blackpool Council,1099262,Nhs Blackpool Ccg,4000497,7011211575,03/01/2019,2452.81,0,MFA,Adults Under 65 With Mh,4201,Joint Authorities,Adult & Families
Blackpool Council,1099262,Nhs Blackpool Ccg,4000498,7011211612,03/01/2019,1252.96,0,MFA,Adults Under 65 With Mh,4201,Joint Authorities,Adult & Families
Blackpool Council,1099262,Nhs Blackpool Ccg,4000499,7011211607,03/01/2019,1320,0,MFA,Adults Under 65 With Mh,4201,Joint Authorities,Adult & Families
Blackpool Council,1099262,Nhs Blackpool Ccg,4000500,7011211595,03/01/2019,2419.23,0,MFA,Adults Under 65 With Mh,4201,Joint Authorities,Adult & Families
Blackpool Council,1099262,Nhs Blackpool Ccg,4000501,7011211608,03/01/2019,1200,0,MFA,Adults Under 65 With Mh,4201,Joint Authorities,Adult & Families
Blackpool Council,1099262,Nhs Blackpool Ccg,4000502,7011211581,03/01/2019,6768.67,0,MFA,Adults Under 65 With Mh,4201,Joint Authorities,Adult & Families
Blackpool Council,1099262,Nhs Blackpool Ccg,4000503,7011211569,03/01/2019,3069.56,0,MFA,Adults Under 65 With Mh,4201,Joint Authorities,Adult & Families
Blackpool Council,1099262,Nhs Blackpool Ccg,4000504,7011211554,03/01/2019,4635.36,0,MFA,Adults Under 65 With Mh,4201,Joint Authorities,Adult & Families
Blackpool Council,1099262,Nhs Blackpool Ccg,4000505,7011211606,03/01/2019,1320,0,MFA,Adults Under 65 With Mh,4201,Joint Authorities,Adult & Families
Blackpool Council,1099262,Nhs Blackpool Ccg,4000506,7011211556,03/01/2019,1396.12,0,MFA,Adults Under 65 With Mh,4201,Joint Authorities,Adult & Families
Blackpool Council,1099262,Nhs Blackpool Ccg,4000509,7011211563,03/01/2019,2419.23,0,MFA,Adults Under 65 With Mh,4201,Joint Authorities,Adult & Families
Blackpool Council,1099262,Nhs Blackpool Ccg,4000510,7011211573,03/01/2019,2814.47,0,MFA,Adults Under 65 With Mh,4201,Joint Authorities,Adult & Families
Blackpool Council,1099262,Nhs Blackpool Ccg,4000511,7011211561,03/01/2019,2419.23,0,MFA,Adults Under 65 With Mh,4201,Joint Authorities,Adult & Families
Blackpool Council,1099262,Nhs Blackpool Ccg,4000512,7011211600,03/01/2019,8432.87,0,MFA,Adults Under 65 With Mh,4201,Joint Authorities,Adult & Families
Blackpool Council,1099262,Nhs Blackpool Ccg,4000513,7011211562,03/01/2019,2419.23,0,MFA,Adults Under 65 With Mh,4201,Joint Authorities,Adult & Families
Blackpool Council,1099262,Nhs Blackpool Ccg,4000514,7011211550,03/01/2019,3885.66,0,MFA,Adults Under 65 With Mh,4201,Joint Authorities,Adult & Families
Blackpool Council,1099262,Nhs Blackpool Ccg,4000515,7011211574,03/01/2019,4397.15,0,MFA,Adults Under 65 With Mh,4201,Joint Authorities,Adult & Families
Blackpool Council,1099262,Nhs Blackpool Ccg,4000516,7011211579,03/01/2019,2814.47,0,MFA,Adults Under 65 With Mh,4201,Joint Authorities,Adult & Families
Blackpool Council,1099262,Nhs Blackpool Ccg,4000517,7011211544,03/01/2019,2082.5,0,MFA,Adults Under 65 With Mh,4201,Joint Authorities,Adult & Families
Blackpool Council,1099262,Nhs Blackpool Ccg,4000518,7011211546,03/01/2019,1620.52,0,MFA,Adults Under 65 With Mh,4201,Joint Authorities,Adult & Families
Blackpool Council,1099262,Nhs Blackpool Ccg,4000519,7011211542,03/01/2019,1759.02,0,MFA,Adults Under 65 With Mh,4201,Joint Authorities,Adult & Families
Blackpool Council,1099262,Nhs Blackpool Ccg,4000520,7011211555,03/01/2019,403.56,0,MFA,Adults Under 65 With Mh,4201,Joint Authorities,Adult & Families
Blackpool Council,1099262,Nhs Blackpool Ccg,4000521,7011211545,03/01/2019,1977.5,0,MFA,Adults Under 65 With Mh,4201,Joint Authorities,Adult & Families
Blackpool Council,1099262,Nhs Blackpool Ccg,4000522,7011211621,03/01/2019,2160,0,MFA,Adults Under 65 With Mh,4201,Joint Authorities,Adult & Families
Blackpool Council,1099262,Nhs Blackpool Ccg,4000523,7011211599,03/01/2019,2678.58,0,MFA,Adults Under 65 With Mh,4201,Joint Authorities,Adult & Families
Blackpool Council,1099262,Nhs Blackpool Ccg,4000526,7011211543,03/01/2019,1759.02,0,MFA,Adults Under 65 With Mh,4201,Joint Authorities,Adult & Families
Blackpool Council,1099262,Nhs Blackpool Ccg,4000527,7011211583,03/01/2019,4395.48,0,MFA,Adults Under 65 With Mh,4201,Joint Authorities,Adult & Families
Blackpool Council,1099262,Nhs Blackpool Ccg,4000529,7011211568,03/01/2019,2419.23,0,MFA,Adults Under 65 With Mh,4201,Joint Authorities,Adult & Families
Blackpool Council,1099262,Nhs Blackpool Ccg,4000531,7011211611,03/01/2019,2247,0,MFA,Adults Under 65 With Mh,4201,Joint Authorities,Adult & Families
Blackpool Council,1099262,Nhs Blackpool Ccg,4000532,7011211586,03/01/2019,2420.89,0,MFA,Adults Under 65 With Mh,4201,Joint Authorities,Adult & Families
Blackpool Council,1099262,Nhs Blackpool Ccg,4000534,7011211552,03/01/2019,3872.8,0,MFA,Adults Under 65 With Mh,4201,Joint Authorities,Adult & Families
Blackpool Council,1099262,Nhs Blackpool Ccg,4000536,7011211591,03/01/2019,1425.55,0,MFA,Adults Under 65 With Mh,4201,Joint Authorities,Adult & Families
Blackpool Council,1099262,Nhs Blackpool Ccg,4000538,7011211572,03/01/2019,4397.15,0,MFA,Adults Under 65 With Mh,4201,Joint Authorities,Adult & Families
Blackpool Council,1099262,Nhs Blackpool Ccg,4000539,7011211560,03/01/2019,1896.43,0,MFA,Adults Under 65 With Mh,4201,Joint Authorities,Adult & Families
Blackpool Council,1099262,Nhs Blackpool Ccg,4000540,7011211634,03/01/2019,1900,0,MFA,Adults Under 65 With Mh,4201,Joint Authorities,Adult & Families
Blackpool Council,1099262,Nhs Blackpool Ccg,4000541,7011211582,03/01/2019,3211.42,0,MFA,Adults Under 65 With Mh,4201,Joint Authorities,Adult & Families
Blackpool Council,1099262,Nhs Blackpool Ccg,4000542,7011211610,03/01/2019,2070,0,MFA,Adults Under 65 With Mh,4201,Joint Authorities,Adult & Families
Blackpool Council,1099262,Nhs Blackpool Ccg,4000543,7011211604,03/01/2019,1170,0,MFA,Adults Under 65 With Mh,4201,Joint Authorities,Adult & Families
Blackpool Council,1099262,Nhs Blackpool Ccg,4000544,7011211577,03/01/2019,2025.65,0,MFA,Adults Under 65 With Mh,4201,Joint Authorities,Adult & Families
Blackpool Council,1099262,Nhs Blackpool Ccg,4000545,7011211559,03/01/2019,1959.65,0,MFA,Adults Under 65 With Mh,4201,Joint Authorities,Adult & Families
Blackpool Council,1099262,Nhs Blackpool Ccg,4000546,7011211584,03/01/2019,309.08,0,MFA,Adults Under 65 With Mh,4201,Joint Authorities,Adult & Families
Blackpool Council,1099262,Nhs Blackpool Ccg,4000549,7011211585,03/01/2019,4015.18,0,MFA,Adults Under 65 With Mh,4201,Joint Authorities,Adult & Families
Blackpool Council,1099262,Nhs Blackpool Ccg,4000550,7011211567,03/01/2019,2021.94,0,MFA,Adults Under 65 With Mh,4201,Joint Authorities,Adult & Families
Blackpool Council,1099262,Nhs Blackpool Ccg,4000553,7011211636,03/01/2019,2363.47,0,MFA,Adults Under 65 With Mh,4201,Joint Authorities,Adult & Families
Blackpool Council,1099262,Nhs Blackpool Ccg,4000554,7011211605,03/01/2019,1200,0,MFA,Adults Under 65 With Mh,4201,Joint Authorities,Adult & Families
Blackpool Council,1099262,Nhs Blackpool Ccg,4000555,7011211602,03/01/2019,403.56,0,MFA,Adults Under 65 With Mh,4201,Joint Authorities,Adult & Families
Blackpool Council,1099262,Nhs Blackpool Ccg,4000557,7011211588,03/01/2019,2419.23,0,MFA,Adults Under 65 With Mh,4201,Joint Authorities,Adult & Families
Blackpool Council,1099262,Nhs Blackpool Ccg,4000558,7011211553,03/01/2019,943.04,0,MFA,Adults Under 65 With Mh,4201,Joint Authorities,Adult & Families
Blackpool Council,1099262,Nhs Blackpool Ccg,4000559,7011211570,03/01/2019,3211.4,0,MFA,Adults Under 65 With Mh,4201,Joint Authorities,Adult & Families
Blackpool Council,1099262,Nhs Blackpool Ccg,4000561,7011211549,03/01/2019,1510.32,0,MFA,Adults Under 65 With Mh,4201,Joint Authorities,Adult & Families
Blackpool Council,1099262,Nhs Blackpool Ccg,4000562,7011211565,03/01/2019,2419.23,0,MFA,Adults Under 65 With Mh,4201,Joint Authorities,Adult & Families
Blackpool Council,1099262,Nhs Blackpool Ccg,4000563,7011211539,03/01/2019,2100,0,MFA,Adults Under 65 With Mh,4201,Joint Authorities,Adult & Families
Blackpool Council,1099262,Nhs Blackpool Ccg,4000564,7011211541,03/01/2019,1528.02,0,MFA,Adults Under 65 With Mh,4201,Joint Authorities,Adult & Families
Blackpool Council,1099262,Nhs Blackpool Ccg,4000565,7011211540,03/01/2019,1643.52,0,MFA,Adults Under 65 With Mh,4201,Joint Authorities,Adult & Families
Blackpool Council,1099262,Nhs Blackpool Ccg,4000566,7011211533,03/01/2019,1607.1,0,MFA,Adults Under 65 With Mh,4201,Joint Authorities,Adult & Families
Blackpool Council,1099262,Nhs Blackpool Ccg,4000567,7011211534,03/01/2019,1607.1,0,MFA,Adults Under 65 With Mh,4201,Joint Authorities,Adult & Families
Blackpool Council,1099262,Nhs Blackpool Ccg,4000585,7011211551,03/01/2019,3885.66,0,MFA,Adults Under 65 With Mh,4201,Joint Authorities,Adult & Families
Blackpool Council,1099262,Nhs Blackpool Ccg,4000588,7011211548,03/01/2019,444.74,0,MFA,Adults Under 65 With Mh,4201,Joint Authorities,Adult & Families
Blackpool Council,1099262,Nhs Blackpool Ccg,4000589,7011211536,03/01/2019,4177.78,0,MFA,Adults Under 65 With Mh,4201,Joint Authorities,Adult & Families
Blackpool Council,1117702,Turning Leaf Initiatives,4000590,00011,10/01/2019,2810,0,JEA,Senior Management,4820,Theraoy,Children'S Services
Blackpool Council,1099262,Nhs Blackpool Ccg,4000591,7011211594,03/01/2019,943.04,0,MFA,Adults Under 65 With Mh,4201,Joint Authorities,Adult & Families
Blackpool Council,1099262,Nhs Blackpool Ccg,4000704,7011211601,03/01/2019,1682.94,0,MFA,Adults Under 65 With Mh,4201,Joint Authorities,Adult & Families
Blackpool Council,1099262,Nhs Blackpool Ccg,4000705,7011211538,03/01/2019,1528.02,0,MFA,Adults Under 65 With Mh,4201,Joint Authorities,Adult & Families
Blackpool Council,1099262,Nhs Blackpool Ccg,4000707,7011211535,03/01/2019,1607.1,0,MFA,Adults Under 65 With Mh,4201,Joint Authorities,Adult & Families
Blackpool Council,1099262,Nhs Blackpool Ccg,4000708,7011211532,03/01/2019,1607.1,0,MFA,Adults Under 65 With Mh,4201,Joint Authorities,Adult & Families
Blackpool Council,1099262,Nhs Blackpool Ccg,4000710,7011211528,03/01/2019,2247,0,MFA,Adults Under 65 With Mh,4201,Joint Authorities,Adult & Families
Blackpool Council,1099262,Nhs Blackpool Ccg,4000715,7011211547,03/01/2019,2232,0,MFA,Adults Under 65 With Mh,4201,Joint Authorities,Adult & Families
Blackpool Council,1099262,Nhs Blackpool Ccg,4000717,7011211531,03/01/2019,1607.1,0,MFA,Adults Under 65 With Mh,4201,Joint Authorities,Adult & Families
Blackpool Council,1099262,Nhs Blackpool Ccg,4000719,7011211530,03/01/2019,470.48,0,MFA,Adults Under 65 With Mh,4201,Joint Authorities,Adult & Families
Blackpool Council,1099262,Nhs Blackpool Ccg,4000720,7011211537,03/01/2019,1680,0,MFA,Adults Under 65 With Mh,4201,Joint Authorities,Adult & Families
Blackpool Council,1099262,Nhs Blackpool Ccg,4000721,7011211645,03/01/2019,1607.1,0,MFA,Adults Under 65 With Mh,4201,Joint Authorities,Adult & Families
Blackpool Council,1099262,Nhs Blackpool Ccg,4000722,7011211648,03/01/2019,2363.47,0,MFA,Adults Under 65 With Mh,4201,Joint Authorities,Adult & Families
Blackpool Council,1099262,Nhs Blackpool Ccg,4000725,7011211647,03/01/2019,1568.25,0,MFA,Adults Under 65 With Mh,4201,Joint Authorities,Adult & Families
Blackpool Council,1099262,Nhs Blackpool Ccg,4000727,7011211646,03/01/2019,4015.18,0,MFA,Adults Under 65 With Mh,4201,Joint Authorities,Adult & Families
Blackpool Council,1033987,Berrymans Lace Mawer Llp,4000744,2444661,02/01/2019,1084.2,180.7,RK6005,Gallagher Bassett Pl,3807,Legal & Court Costs,Internal Insurance
Blackpool Council,1088102,Whistl Uk Limited,4000753,IN18US18009767,14/01/2019,5531.17,921.86,FCADA,Customer Services,3511,Postages,Resources
Blackpool Council,1077392,Reed Specialist Recruitment Ltd,4000754,E020772286M,02/01/2019,340.2,56.7,HOPB,Housing Options,0791,Temp/Relief (Bureau Staff),Chief Executive
Blackpool Council,1077392,Reed Specialist Recruitment Ltd,4000754,E020772286M,02/01/2019,572.29,95.38,HS0008,Headstart Admin & Support,0791,Temp/Relief (Bureau Staff),Children'S Services
Blackpool Council,1077392,Reed Specialist Recruitment Ltd,4000754,E020772286M,02/01/2019,9619.19,1603.2,JA1531,Independent Reviewing Officers,0791,Temp/Relief (Bureau Staff),Children'S Services
Blackpool Council,1077392,Reed Specialist Recruitment Ltd,4000754,E020772286M,02/01/2019,6984.99,1164.17,JAB,Locality,0791,Temp/Relief (Bureau Staff),Children'S Services
Blackpool Council,1077392,Reed Specialist Recruitment Ltd,4000754,E020772286M,02/01/2019,399.07,66.51,JBR,Lac - Placements,0791,Temp/Relief (Bureau Staff),Children'S Services
Blackpool Council,1077392,Reed Specialist Recruitment Ltd,4000754,E020772286M,02/01/2019,1310.16,218.36,JBT,Looked After Children,0791,Temp/Relief (Bureau Staff),Children'S Services
Blackpool Council,1077392,Reed Specialist Recruitment Ltd,4000754,E020772286M,02/01/2019,1070.84,178.47,JEA,Senior Management,0791,Temp/Relief (Bureau Staff),Children'S Services
Blackpool Council,1077392,Reed Specialist Recruitment Ltd,4000754,E020772286M,02/01/2019,991.01,165.17,SSDA,Social Services Direct,0791,Temp/Relief (Bureau Staff),Adult & Families
Blackpool Council,1114712,REDACTED PERSONAL DATA,4000755,1,08/01/2019,670.5,0,JA1521,Lscb (Acpc),0911,Training Expenses,Children'S Services
Blackpool Council,1011868,W H Tarmacadam Limited,4000852,7823,04/01/2019,1963.2,327.2,CXB71,Hra Capital Programme 2018/19,6501,Contract Payments,Capital - Chief Executive
Blackpool Council,1067256,Amhpa,4000856,2018 LA-02,02/01/2019,800,0,AMHC,Primary Care,3711,Subscriptions,Adult & Families
Blackpool Council,1091610,Communicate Slt Cic,4000858,311,08/01/2019,17445,0,EP8002,Speech And Language,3801,Other Expenses,Children'S Services
Blackpool Council,1091610,Communicate Slt Cic,4000859,310,08/01/2019,17592,0,EP8002,Speech And Language,3801,Other Expenses,Children'S Services
Blackpool Council,1104638,Snap Blackpool Ltd,4000861,BPC0018,09/01/2019,2763.1,0,CWAN,Children With Additional Needs,3801,Other Expenses,Children'S Services
Blackpool Council,1114242,REDACTED PERSONAL DATA,4000868,MATT001,11/01/2019,637.5,0,JEA,Senior Management,3807,Legal & Court Costs,Children'S Services
Blackpool Council,1105784,Dr Karen Shannon Associates,4000870,2322,11/01/2019,932.04,155.34,JEA,Senior Management,3807,Legal & Court Costs,Children'S Services
Blackpool Council,1019287,Blackpool Citizens Advice Bureau,4000882,1819020,03/01/2019,25000,0,AD0301,Contingencies,3401,General Services,Contingencies
Blackpool Council,1011779,Northern Security National Limited,4000905,23751,03/01/2019,861,143.5,SECURE,Security Services,3401,General Services,Community & Env Services
Blackpool Council,1011779,Northern Security National Limited,4000907,23753,03/01/2019,516.6,86.1,SECURE,Security Services,3401,General Services,Community & Env Services
Blackpool Council,1006351,Versalift Distributors (Uk) Ltd,4000913,INV486532,04/01/2019,685.74,114.29,CVMU,Cvmu,4501,Private Contractors,Community & Env Services
Blackpool Council,1007601,Passenger Lift Services Ltd,4000915,115722,10/01/2019,610.74,101.79,CVMU,Cvmu,3041,Other Materials,Community & Env Services
Blackpool Council,1011872,Tecalemit Garage Equipment Co Ltd,4000937,170545,04/01/2019,418.8,69.8,CVMU,Cvmu,3001,Office Equipment Purchase,Community & Env Services
Blackpool Council,1025240,Key Engineering Supplies Ltd,4000943,11465,10/01/2019,273.6,45.6,CVMU,Cvmu,3041,Other Materials,Community & Env Services
Blackpool Council,1047310,Teletrac Navman (Uk) Ltd,4000954,91492620,31/01/2019,9096.12,1516.02,CVMU,Cvmu,4501,Private Contractors,Community & Env Services
Blackpool Council,1113743,Smart Platform Rental Ltd,4000976,211054,04/01/2019,654,109,CVMU,Cvmu,2211,Casual Hire,Community & Env Services
Blackpool Council,1007516,Phoenix Commercial Collections Ltd,4000998,104102,02/01/2019,3374.97,562.49,FV6705,Phoenix Commercial Collection,7366,Car Parking Fees,Budgets Outside Cash Limits
Blackpool Council,1007516,Phoenix Commercial Collections Ltd,4001000,103958,02/01/2019,6724.09,1120.68,FV6705,Phoenix Commercial Collection,7366,Car Parking Fees,Budgets Outside Cash Limits
Blackpool Council,1007516,Phoenix Commercial Collections Ltd,4001001,104599,04/01/2019,2636.54,439.42,FV6705,Phoenix Commercial Collection,7366,Car Parking Fees,Budgets Outside Cash Limits
Blackpool Council,1007516,Phoenix Commercial Collections Ltd,4001002,104231,02/01/2019,2240.87,373.48,FV6705,Phoenix Commercial Collection,7366,Car Parking Fees,Budgets Outside Cash Limits
Blackpool Council,1071462,Equita Limited,4001017,1045654,02/01/2019,282,47,FV6702,Equita,7366,Car Parking Fees,Budgets Outside Cash Limits
Blackpool Council,1084496,Acorn Treatment & Housing,4001031,SINV80/00000543,02/01/2019,565.71,0,MPA,18-64,4563,Priv-Stc Carers-Residential,Adult & Families
Blackpool Council,1081280,On-Site Kitchen Rentals Ltd,4001035,OS004901,02/01/2019,252,42,BSTPRJ,Better Start Projects,3006,Hire Of Equipment,Better Start Projects
Blackpool Council,1049385,Fylde Coast Ymca,4001038,10063,02/01/2019,833.33,0,PU1013,Public Health Misc,4501,Private Contractors,Public Health
Blackpool Council,1117759,Dr Anja Lansbergen,4001085,509684,02/01/2019,1800,300,FBBEA,"Income, Recovery & Debtors",3413,Consultants,Resources
Blackpool Council,1117682,Next Level Learning Ltd,4001088,SENDBP001,04/01/2019,3024,504,CWAN,Children With Additional Needs,4403,Special Needs - Children,Children'S Services
Blackpool Council,1112260,Simon Burrows,4001097,411119 121218,11/01/2019,900,150,ALDA,Learning Disability Team,3413,Consultants,Adult & Families
Blackpool Council,1105240,Hanzak Ltd T/A Dr Rashad Nazir,4001100,20547RN,18/01/2019,1776.55,0,JDEAAA,Safeguarding Adults,4501,Private Contractors,Adult & Families
Blackpool Council,1105240,Hanzak Ltd T/A Dr Rashad Nazir,4001101,20548RN,18/01/2019,378.8,0,JDEAAA,Safeguarding Adults,4501,Private Contractors,Adult & Families
Blackpool Council,1117457,Wrps Ltd,4001106,BCH-0635,10/01/2019,2303.46,383.91,CXB71,Hra Capital Programme 2018/19,6501,Contract Payments,Capital - Chief Executive
Blackpool Council,1035659,Blackpool Zoo,4001114,0000005891,23/01/2019,687.91,114.65,ZX0501,"Tourism,Promotions & Conferen.",9687,Tourism Sale Of Tickets,Place Directorate
Blackpool Council,1100221,Forensic Testing Service Ltd,4001116,34653,11/01/2019,1204.8,200.8,JEA,Senior Management,3807,Legal & Court Costs,Children'S Services
Blackpool Council,1100221,Forensic Testing Service Ltd,4001117,34662,11/01/2019,616.32,102.72,JEA,Senior Management,3807,Legal & Court Costs,Children'S Services
Blackpool Council,1099262,Nhs Blackpool Ccg,4001361,7011211529,03/01/2019,1913.85,0,MFA,Adults Under 65 With Mh,4201,Joint Authorities,Adult & Families
Blackpool Council,1099262,Nhs Blackpool Ccg,4001362,7011211587,03/01/2019,2070,0,MFA,Adults Under 65 With Mh,4201,Joint Authorities,Adult & Families
Blackpool Council,1024235,Adoption Matters,4001408,190754,04/01/2019,9344,0,JBR,Lac - Placements,3801,Other Expenses,Children'S Services
Blackpool Council,1024235,Adoption Matters,4001409,190794,17/01/2019,31000,0,JBR,Lac - Placements,3420,Adoption Agency Fees,Children'S Services
Blackpool Council,1039034,Contract Floors Ltd,4001435,INV-0474,09/01/2019,315.36,52.56,CXB71,Hra Capital Programme 2018/19,6501,Contract Payments,Capital - Chief Executive
Blackpool Council,1044867,Jay Law Ltd,4001439,INV-L5019,04/01/2019,270,0,CX4024,Winter Warmth Grant,6502,Grants & Advances,Capital - Adult Social Care
Blackpool Council,1107694,Bradley Demolition Ltd,4001454,3794,17/01/2019,720,120,CXB71,Hra Capital Programme 2018/19,6501,Contract Payments,Capital - Chief Executive
Blackpool Council,1107694,Bradley Demolition Ltd,4001455,3793,17/01/2019,558,93,CXB71,Hra Capital Programme 2018/19,6501,Contract Payments,Capital - Chief Executive
Blackpool Council,1107694,Bradley Demolition Ltd,4001456,3792,17/01/2019,558,93,CXB71,Hra Capital Programme 2018/19,6501,Contract Payments,Capital - Chief Executive
Blackpool Council,1011675,Bambers Remedial Contractors Limited,4001457,15448,09/01/2019,695,0,CX4002,Disabled Facilities Grants,6501,Contract Payments,Capital - Adult Social Care
Blackpool Council,1066073,Blackpool Coastal Housing,4001465,30001518,09/01/2019,56999.26,9499.88,CXB71,Hra Capital Programme 2018/19,6501,Contract Payments,Capital - Chief Executive
Blackpool Council,1091329,Pentagull Limited,4001950,9491,11/01/2019,6000,1000,JA1521,Lscb (Acpc),0981,Professional Fees,Children'S Services
Blackpool Council,1078346,Md5 Ltd,4001951,11701,11/01/2019,648,108,JEA,Senior Management,3807,Legal & Court Costs,Children'S Services
Blackpool Council,1007516,Phoenix Commercial Collections Ltd,4001952,104726,11/01/2019,924,154,FV6705,Phoenix Commercial Collection,7366,Car Parking Fees,Budgets Outside Cash Limits
Blackpool Council,1013418,Ma Education Ltd,4001953,33017,10/01/2019,6000,1000,JA0505,Children'S Training,6282,Hr & Admin,Children'S Services
Blackpool Council,1011793,Fieldmasters Ltd,4001965,INV10525,02/01/2019,331.2,55.2,AEB,Buildings,1012,Premises Maint-Priv.Contractor,Resources
Blackpool Council,1011973,Automatic Alarms Ltd,4001972,320871,15/01/2019,289.74,48.29,AER,Dual Use Properties,1012,Premises Maint-Priv.Contractor,Resources
Blackpool Council,1016023,Chelsom Ltd,4001974,785627,02/01/2019,8856,1476,CGTABA,Spanish Hall & Cs Façade,6501,Contract Payments,Capital - Commnctn & Regen
Blackpool Council,1020179,The James Mercer Group Ltd,4001975,117513,11/01/2019,396,66,LBC,Branch Libraries,1121,Heating & Ventilation,Places
Blackpool Council,1042292,Warden Construction Limited,4001978,W12863,02/01/2019,4789.6,798.27,CLPRUD,Prudential Funding (Leisure),6501,Contract Payments,Capital - Comm & Environ
Blackpool Council,1042292,Warden Construction Limited,4001979,W12864,02/01/2019,6320.74,1053.46,CLPRUD,Prudential Funding (Leisure),6501,Contract Payments,Capital - Comm & Environ
Blackpool Council,1042292,Warden Construction Limited,4001980,W12862,02/01/2019,17223.49,2870.58,CLPRUD,Prudential Funding (Leisure),6501,Contract Payments,Capital - Comm & Environ
Blackpool Council,1062296,J & J Electrical Services,4001981,6791,02/01/2019,364.26,60.71,AEB,Buildings,1012,Premises Maint-Priv.Contractor,Resources
Blackpool Council,1070476,Jg Kelley Fleetwood Ltd T/A Eas Electrical,4001994,32557,02/01/2019,523.2,87.2,AEB,Buildings,1012,Premises Maint-Priv.Contractor,Resources
Blackpool Council,1070476,Jg Kelley Fleetwood Ltd T/A Eas Electrical,4001997,32556,02/01/2019,487.14,81.19,FMAB,Commercial Propereties,1012,Premises Maint-Priv.Contractor,Resources
Blackpool Council,1070476,Jg Kelley Fleetwood Ltd T/A Eas Electrical,4001999,32538,02/01/2019,261.6,43.6,AEB,Buildings,1012,Premises Maint-Priv.Contractor,Resources
Blackpool Council,1087305,Ellis & York Ltd,4002002,5161,02/01/2019,327,54.5,CEMCRE,Cems Crems Etc,1012,Premises Maint-Priv.Contractor,Governance & Partnerships
Blackpool Council,1087305,Ellis & York Ltd,4002006,5171,02/01/2019,830.99,138.5,APCBCA,Langdale,1012,Premises Maint-Priv.Contractor,Adult & Families
Blackpool Council,1087305,Ellis & York Ltd,4002007,5144,02/01/2019,373.14,62.19,PTA,Economic Development,1012,Premises Maint-Priv.Contractor,Places
Blackpool Council,1087305,Ellis & York Ltd,4002012,5095,02/01/2019,5758.8,959.8,MPB,Edc - Economic Dev Company,1012,Premises Maint-Priv.Contractor,Places
Blackpool Council,1087305,Ellis & York Ltd,4002013,5160,02/01/2019,3827.9,637.98,APDBBB,Arc,1012,Premises Maint-Priv.Contractor,Adult & Families
Blackpool Council,1108942,Secure Fencing Limited,4002018,9003,10/01/2019,476.16,79.36,PTA,Economic Development,1012,Premises Maint-Priv.Contractor,Places
Blackpool Council,1005266,REDACTED PERSONAL DATA,4002059,213984,02/01/2019,633.28,0,JEA,Senior Management,4809,Special Guardianship,Children'S Services
Blackpool Council,1005947,REDACTED PERSONAL DATA,4002060,214070,02/01/2019,726.28,0,JEA,Senior Management,4809,Special Guardianship,Children'S Services
Blackpool Council,1005947,REDACTED PERSONAL DATA,4002061,214072,02/01/2019,633.28,0,JEA,Senior Management,4809,Special Guardianship,Children'S Services
Blackpool Council,1005947,REDACTED PERSONAL DATA,4002062,214114,02/01/2019,726.28,0,JEA,Senior Management,4809,Special Guardianship,Children'S Services
Blackpool Council,1005947,REDACTED PERSONAL DATA,4002063,214071,02/01/2019,845.85,0,JEA,Senior Management,4809,Special Guardianship,Children'S Services
Blackpool Council,1005947,REDACTED PERSONAL DATA,4002064,214113,02/01/2019,726.28,0,JEA,Senior Management,4809,Special Guardianship,Children'S Services
Blackpool Council,1006685,REDACTED PERSONAL DATA,4002065,214119,02/01/2019,766.49,0,JEA,Senior Management,4809,Special Guardianship,Children'S Services
Blackpool Council,1006685,REDACTED PERSONAL DATA,4002066,214073,02/01/2019,766.49,0,JEA,Senior Management,4809,Special Guardianship,Children'S Services
Blackpool Council,1006685,REDACTED PERSONAL DATA,4002067,214118,02/01/2019,766.49,0,JEA,Senior Management,4809,Special Guardianship,Children'S Services
Blackpool Council,1007093,REDACTED PERSONAL DATA,4002068,214111,02/01/2019,1209,0,JEA,Senior Management,4809,Special Guardianship,Children'S Services
Blackpool Council,1007093,REDACTED PERSONAL DATA,4002069,214065,02/01/2019,1209,0,JEA,Senior Management,4809,Special Guardianship,Children'S Services
Blackpool Council,1007093,REDACTED PERSONAL DATA,4002070,214066,02/01/2019,1302,0,JEA,Senior Management,4809,Special Guardianship,Children'S Services
Blackpool Council,1007513,REDACTED PERSONAL DATA,4002071,214068,02/01/2019,715.93,0,JBR,Lac - Placements,4814,Adoption Allowances,Children'S Services
Blackpool Council,1010522,REDACTED PERSONAL DATA,4002072,213855,02/01/2019,726.28,0,JEA,Senior Management,4809,Special Guardianship,Children'S Services
Blackpool Council,1010522,REDACTED PERSONAL DATA,4002073,213986,02/01/2019,726.28,0,JEA,Senior Management,4809,Special Guardianship,Children'S Services
Blackpool Council,1010597,REDACTED PERSONAL DATA,4002074,213849,02/01/2019,845.85,0,JEA,Senior Management,4811,Residence Orders,Children'S Services
Blackpool Council,1018980,REDACTED PERSONAL DATA,4002075,214032,02/01/2019,1302,0,JBR,Lac - Placements,4814,Adoption Allowances,Children'S Services
Blackpool Council,1023504,REDACTED PERSONAL DATA,4002076,213920,02/01/2019,726.28,0,JEA,Senior Management,4809,Special Guardianship,Children'S Services
Blackpool Council,1023636,REDACTED PERSONAL DATA,4002077,214084,02/01/2019,2941.71,0,JEA,Senior Management,4809,Special Guardianship,Children'S Services
Blackpool Council,1025390,REDACTED PERSONAL DATA,4002078,213974,02/01/2019,726.28,0,JEA,Senior Management,4811,Residence Orders,Children'S Services
Blackpool Council,1029378,REDACTED PERSONAL DATA,4002079,213976,02/01/2019,845.85,0,JEA,Senior Management,4811,Residence Orders,Children'S Services
Blackpool Council,1029378,REDACTED PERSONAL DATA,4002080,214140,02/01/2019,845.85,0,JEA,Senior Management,4811,Residence Orders,Children'S Services
Blackpool Council,1032584,REDACTED PERSONAL DATA,4002081,213902,02/01/2019,726.28,0,JBR,Lac - Placements,4814,Adoption Allowances,Children'S Services
Blackpool Council,1038672,REDACTED PERSONAL DATA,4002082,213899,02/01/2019,562.43,0,JBR,Lac - Placements,4814,Adoption Allowances,Children'S Services
Blackpool Council,1038672,REDACTED PERSONAL DATA,4002083,214130,02/01/2019,562.43,0,JBR,Lac - Placements,4814,Adoption Allowances,Children'S Services
Blackpool Council,1039147,REDACTED PERSONAL DATA,4002084,213975,02/01/2019,845.85,0,JEA,Senior Management,4811,Residence Orders,Children'S Services
Blackpool Council,1041065,REDACTED PERSONAL DATA,4002085,213946,02/01/2019,575.72,0,JEA,Senior Management,4809,Special Guardianship,Children'S Services
Blackpool Council,1042600,REDACTED PERSONAL DATA,4002086,213850,02/01/2019,726.28,0,JEA,Senior Management,4811,Residence Orders,Children'S Services
Blackpool Council,1043459,REDACTED PERSONAL DATA,4002087,213904,02/01/2019,952.15,0,JBR,Lac - Placements,4814,Adoption Allowances,Children'S Services
Blackpool Council,1043651,REDACTED PERSONAL DATA,4002088,213900,02/01/2019,562.43,0,JBR,Lac - Placements,4814,Adoption Allowances,Children'S Services
Blackpool Council,1043651,REDACTED PERSONAL DATA,4002089,213887,02/01/2019,562.43,0,JBR,Lac - Placements,4814,Adoption Allowances,Children'S Services
Blackpool Council,1043651,REDACTED PERSONAL DATA,4002090,213968,02/01/2019,633.28,0,JBR,Lac - Placements,4814,Adoption Allowances,Children'S Services
Blackpool Council,1043955,REDACTED PERSONAL DATA,4002091,214178,02/01/2019,845.85,0,JEA,Senior Management,4809,Special Guardianship,Children'S Services
Blackpool Council,1043955,REDACTED PERSONAL DATA,4002092,213880,02/01/2019,726.28,0,JEA,Senior Management,4809,Special Guardianship,Children'S Services
Blackpool Council,1044018,REDACTED PERSONAL DATA,4002093,213840,02/01/2019,562.43,0,JBR,Lac - Placements,4814,Adoption Allowances,Children'S Services
Blackpool Council,1048741,REDACTED PERSONAL DATA,4002094,214215,02/01/2019,726.28,0,JEA,Senior Management,4809,Special Guardianship,Children'S Services
Blackpool Council,1048947,REDACTED PERSONAL DATA,4002095,213908,02/01/2019,726.28,0,JEA,Senior Management,4811,Residence Orders,Children'S Services
Blackpool Council,1049626,REDACTED PERSONAL DATA,4002096,214202,02/01/2019,633.28,0,JEA,Senior Management,4809,Special Guardianship,Children'S Services
Blackpool Council,1049626,REDACTED PERSONAL DATA,4002097,214030,02/01/2019,726.28,0,JEA,Senior Management,4809,Special Guardianship,Children'S Services
Blackpool Council,1049626,REDACTED PERSONAL DATA,4002098,214031,02/01/2019,726.28,0,JEA,Senior Management,4809,Special Guardianship,Children'S Services
Blackpool Council,1049626,REDACTED PERSONAL DATA,4002099,214174,02/01/2019,633.28,0,JEA,Senior Management,4809,Special Guardianship,Children'S Services
Blackpool Council,1052328,REDACTED PERSONAL DATA,4002100,214141,02/01/2019,726.28,0,JEA,Senior Management,4811,Residence Orders,Children'S Services
Blackpool Council,1052960,REDACTED PERSONAL DATA,4002101,214220,02/01/2019,575.72,0,JEA,Senior Management,4809,Special Guardianship,Children'S Services
Blackpool Council,1052960,REDACTED PERSONAL DATA,4002102,214221,02/01/2019,575.72,0,JEA,Senior Management,4809,Special Guardianship,Children'S Services
Blackpool Council,1054536,REDACTED PERSONAL DATA,4002103,214189,02/01/2019,726.28,0,JEA,Senior Management,4811,Residence Orders,Children'S Services
Blackpool Council,1054614,REDACTED PERSONAL DATA,4002104,214025,02/01/2019,726.28,0,JEA,Senior Management,4809,Special Guardianship,Children'S Services
Blackpool Council,1055795,REDACTED PERSONAL DATA,4002105,213909,02/01/2019,845.85,0,JEA,Senior Management,4811,Residence Orders,Children'S Services
Blackpool Council,1057277,REDACTED PERSONAL DATA,4002106,213965,02/01/2019,633.28,0,JBR,Lac - Placements,4814,Adoption Allowances,Children'S Services
Blackpool Council,1058573,REDACTED PERSONAL DATA,4002107,214042,02/01/2019,726.28,0,JEA,Senior Management,4809,Special Guardianship,Children'S Services
Blackpool Council,1059285,REDACTED PERSONAL DATA,4002108,213905,02/01/2019,1009.71,0,JBR,Lac - Placements,4814,Adoption Allowances,Children'S Services
Blackpool Council,1059285,REDACTED PERSONAL DATA,4002109,214039,02/01/2019,1058.43,0,JBR,Lac - Placements,4814,Adoption Allowances,Children'S Services
Blackpool Council,1059285,REDACTED PERSONAL DATA,4002110,213846,02/01/2019,1058.43,0,JBR,Lac - Placements,4814,Adoption Allowances,Children'S Services
Blackpool Council,1062123,REDACTED PERSONAL DATA,4002111,214137,02/01/2019,726.28,0,JBR,Lac - Placements,4814,Adoption Allowances,Children'S Services
Blackpool Council,1063757,REDACTED PERSONAL DATA,4002112,213991,02/01/2019,726.28,0,JEA,Senior Management,4809,Special Guardianship,Children'S Services
Blackpool Council,1064011,REDACTED PERSONAL DATA,4002113,213979,02/01/2019,562.43,0,JEA,Senior Management,4809,Special Guardianship,Children'S Services
Blackpool Council,1066475,REDACTED PERSONAL DATA,4002114,214131,02/01/2019,562.43,0,JBR,Lac - Placements,4814,Adoption Allowances,Children'S Services
Blackpool Council,1068480,REDACTED PERSONAL DATA,4002115,214143,02/01/2019,562.43,0,JEA,Senior Management,4809,Special Guardianship,Children'S Services
Blackpool Council,1068524,REDACTED PERSONAL DATA,4002116,213980,02/01/2019,562.43,0,JEA,Senior Management,4809,Special Guardianship,Children'S Services
Blackpool Council,1068906,REDACTED PERSONAL DATA,4002117,213960,02/01/2019,562.43,0,JBR,Lac - Placements,4814,Adoption Allowances,Children'S Services
Blackpool Council,1068906,REDACTED PERSONAL DATA,4002118,213959,02/01/2019,562.43,0,JBR,Lac - Placements,4814,Adoption Allowances,Children'S Services
Blackpool Council,1068906,REDACTED PERSONAL DATA,4002119,213958,02/01/2019,562.43,0,JBR,Lac - Placements,4814,Adoption Allowances,Children'S Services
Blackpool Council,1069176,REDACTED PERSONAL DATA,4002120,214142,02/01/2019,562.43,0,JEA,Senior Management,4809,Special Guardianship,Children'S Services
Blackpool Council,1069176,REDACTED PERSONAL DATA,4002121,213978,02/01/2019,562.43,0,JEA,Senior Management,4809,Special Guardianship,Children'S Services
Blackpool Council,1070512,REDACTED PERSONAL DATA,4002122,214005,02/01/2019,633.28,0,JEA,Senior Management,4809,Special Guardianship,Children'S Services
Blackpool Council,1070602,REDACTED PERSONAL DATA,4002123,214144,02/01/2019,562.43,0,JEA,Senior Management,4809,Special Guardianship,Children'S Services
Blackpool Council,1071018,REDACTED PERSONAL DATA,4002124,213961,02/01/2019,562.43,0,JBR,Lac - Placements,4814,Adoption Allowances,Children'S Services
Blackpool Council,1071018,REDACTED PERSONAL DATA,4002125,213841,02/01/2019,562.43,0,JBR,Lac - Placements,4814,Adoption Allowances,Children'S Services
Blackpool Council,1071018,REDACTED PERSONAL DATA,4002126,214132,02/01/2019,562.43,0,JBR,Lac - Placements,4814,Adoption Allowances,Children'S Services
Blackpool Council,1071683,REDACTED PERSONAL DATA,4002127,213912,02/01/2019,562.43,0,JEA,Senior Management,4809,Special Guardianship,Children'S Services
Blackpool Council,1071683,REDACTED PERSONAL DATA,4002128,214147,02/01/2019,562.43,0,JEA,Senior Management,4809,Special Guardianship,Children'S Services
Blackpool Council,1072770,REDACTED PERSONAL DATA,4002129,214145,02/01/2019,562.43,0,JEA,Senior Management,4809,Special Guardianship,Children'S Services
Blackpool Council,1074231,REDACTED PERSONAL DATA,4002130,214190,02/01/2019,562.43,0,JEA,Senior Management,4811,Residence Orders,Children'S Services
Blackpool Council,1076446,REDACTED PERSONAL DATA,4002131,213851,02/01/2019,562.43,0,JEA,Senior Management,4811,Residence Orders,Children'S Services
Blackpool Council,1076446,REDACTED PERSONAL DATA,4002132,213910,02/01/2019,562.43,0,JEA,Senior Management,4811,Residence Orders,Children'S Services
Blackpool Council,1077446,REDACTED PERSONAL DATA,4002133,214133,02/01/2019,562.43,0,JBR,Lac - Placements,4814,Adoption Allowances,Children'S Services
Blackpool Council,1077610,REDACTED PERSONAL DATA,4002134,213911,02/01/2019,562.43,0,JEA,Senior Management,4809,Special Guardianship,Children'S Services
Blackpool Council,1078284,REDACTED PERSONAL DATA,4002135,213853,02/01/2019,562.43,0,JEA,Senior Management,4809,Special Guardianship,Children'S Services
Blackpool Council,1078667,REDACTED PERSONAL DATA,4002136,214049,02/01/2019,780.14,0,JEA,Senior Management,4809,Special Guardianship,Children'S Services
Blackpool Council,1079501,REDACTED PERSONAL DATA,4002137,214061,02/01/2019,562.43,0,JEA,Senior Management,4809,Special Guardianship,Children'S Services
Blackpool Council,1079745,REDACTED PERSONAL DATA,4002138,214146,02/01/2019,562.43,0,JEA,Senior Management,4809,Special Guardianship,Children'S Services
Blackpool Council,1080101,REDACTED PERSONAL DATA,4002139,213852,02/01/2019,562.43,0,JEA,Senior Management,4809,Special Guardianship,Children'S Services
Blackpool Council,1080411,REDACTED PERSONAL DATA,4002140,213842,02/01/2019,562.43,0,JBR,Lac - Placements,4814,Adoption Allowances,Children'S Services
Blackpool Council,1081971,REDACTED PERSONAL DATA,4002141,213860,02/01/2019,1009.71,0,JEA,Senior Management,4809,Special Guardianship,Children'S Services
Blackpool Council,1081971,REDACTED PERSONAL DATA,4002142,213919,02/01/2019,1009.71,0,JEA,Senior Management,4809,Special Guardianship,Children'S Services
Blackpool Council,1082124,REDACTED PERSONAL DATA,4002143,213873,02/01/2019,575.72,0,JEA,Senior Management,4809,Special Guardianship,Children'S Services
Blackpool Council,1082476,REDACTED PERSONAL DATA,4002144,214166,02/01/2019,1009.71,0,JEA,Senior Management,4809,Special Guardianship,Children'S Services
Blackpool Council,1082476,REDACTED PERSONAL DATA,4002145,214008,02/01/2019,1009.71,0,JEA,Senior Management,4809,Special Guardianship,Children'S Services
Blackpool Council,1082476,REDACTED PERSONAL DATA,4002146,213934,02/01/2019,1009.71,0,JEA,Senior Management,4809,Special Guardianship,Children'S Services
Blackpool Council,1082803,REDACTED PERSONAL DATA,4002147,214211,02/01/2019,633.28,0,JEA,Senior Management,4811,Residence Orders,Children'S Services
Blackpool Council,1083419,REDACTED PERSONAL DATA,4002148,214063,02/01/2019,633.28,0,JEA,Senior Management,4809,Special Guardianship,Children'S Services
Blackpool Council,1083907,REDACTED PERSONAL DATA,4002149,214029,02/01/2019,562.43,0,JEA,Senior Management,4809,Special Guardianship,Children'S Services
Blackpool Council,1083907,REDACTED PERSONAL DATA,4002150,214206,02/01/2019,562.43,0,JEA,Senior Management,4809,Special Guardianship,Children'S Services
Blackpool Council,1083907,REDACTED PERSONAL DATA,4002151,214028,02/01/2019,562.43,0,JEA,Senior Management,4809,Special Guardianship,Children'S Services
Blackpool Council,1085922,REDACTED PERSONAL DATA,4002152,213981,02/01/2019,562.43,0,JEA,Senior Management,4809,Special Guardianship,Children'S Services
Blackpool Council,1085923,REDACTED PERSONAL DATA,4002153,214115,02/01/2019,1058.43,0,JEA,Senior Management,4809,Special Guardianship,Children'S Services
Blackpool Council,1085923,REDACTED PERSONAL DATA,4002154,214205,02/01/2019,1102.71,0,JBR,Lac - Placements,4814,Adoption Allowances,Children'S Services
Blackpool Council,1085923,REDACTED PERSONAL DATA,4002155,213889,02/01/2019,1009.71,0,JBR,Lac - Placements,4814,Adoption Allowances,Children'S Services
Blackpool Council,1085923,REDACTED PERSONAL DATA,4002156,213844,02/01/2019,633.28,0,JBR,Lac - Placements,4814,Adoption Allowances,Children'S Services
Blackpool Council,1085928,REDACTED PERSONAL DATA,4002157,213982,02/01/2019,562.43,0,JEA,Senior Management,4809,Special Guardianship,Children'S Services
Blackpool Council,1085928,REDACTED PERSONAL DATA,4002158,213858,02/01/2019,633.28,0,JEA,Senior Management,4809,Special Guardianship,Children'S Services
Blackpool Council,1085931,REDACTED PERSONAL DATA,4002159,213915,02/01/2019,726.28,0,JEA,Senior Management,4809,Special Guardianship,Children'S Services
Blackpool Council,1085931,REDACTED PERSONAL DATA,4002160,214150,02/01/2019,726.28,0,JEA,Senior Management,4809,Special Guardianship,Children'S Services
Blackpool Council,1086638,REDACTED PERSONAL DATA,4002161,213963,02/01/2019,562.43,0,JBR,Lac - Placements,4814,Adoption Allowances,Children'S Services
Blackpool Council,1087223,REDACTED PERSONAL DATA,4002162,213888,02/01/2019,562.43,0,JBR,Lac - Placements,4814,Adoption Allowances,Children'S Services
Blackpool Council,1087223,REDACTED PERSONAL DATA,4002163,213962,02/01/2019,562.43,0,JBR,Lac - Placements,4814,Adoption Allowances,Children'S Services
Blackpool Council,1088072,REDACTED PERSONAL DATA,4002164,213933,02/01/2019,575.72,0,JEA,Senior Management,4809,Special Guardianship,Children'S Services
Blackpool Council,1088081,REDACTED PERSONAL DATA,4002165,214022,02/01/2019,633.28,0,JEA,Senior Management,4809,Special Guardianship,Children'S Services
Blackpool Council,1088106,REDACTED PERSONAL DATA,4002166,213988,02/01/2019,633.28,0,JEA,Senior Management,4809,Special Guardianship,Children'S Services
Blackpool Council,1088133,REDACTED PERSONAL DATA,4002167,214219,02/01/2019,562.43,0,JEA,Senior Management,4809,Special Guardianship,Children'S Services
Blackpool Council,1088246,REDACTED PERSONAL DATA,4002168,214135,02/01/2019,633.28,0,JBR,Lac - Placements,4814,Adoption Allowances,Children'S Services
Blackpool Council,1088614,REDACTED PERSONAL DATA,4002169,213964,02/01/2019,562.43,0,JBR,Lac - Placements,4814,Adoption Allowances,Children'S Services
Blackpool Council,1088741,REDACTED PERSONAL DATA,4002170,213901,02/01/2019,633.28,0,JBR,Lac - Placements,4814,Adoption Allowances,Children'S Services
Blackpool Council,1088744,REDACTED PERSONAL DATA,4002171,214040,02/01/2019,633.28,0,JEA,Senior Management,4809,Special Guardianship,Children'S Services
Blackpool Council,1089503,REDACTED PERSONAL DATA,4002172,213998,02/01/2019,633.28,0,JEA,Senior Management,4809,Special Guardianship,Children'S Services
Blackpool Council,1089504,REDACTED PERSONAL DATA,4002173,213854,02/01/2019,633.28,0,JEA,Senior Management,4809,Special Guardianship,Children'S Services
Blackpool Council,1089505,REDACTED PERSONAL DATA,4002174,213985,02/01/2019,633.28,0,JEA,Senior Management,4809,Special Guardianship,Children'S Services
Blackpool Council,1089980,REDACTED PERSONAL DATA,4002175,214154,02/01/2019,633.28,0,JEA,Senior Management,4809,Special Guardianship,Children'S Services
Blackpool Council,1090278,REDACTED PERSONAL DATA,4002176,213843,02/01/2019,633.28,0,JBR,Lac - Placements,4814,Adoption Allowances,Children'S Services
Blackpool Council,1090507,REDACTED PERSONAL DATA,4002177,214134,02/01/2019,562.43,0,JBR,Lac - Placements,4814,Adoption Allowances,Children'S Services
Blackpool Council,1090553,REDACTED PERSONAL DATA,4002178,214038,02/01/2019,562.43,0,JEA,Senior Management,4811,Residence Orders,Children'S Services
Blackpool Council,1090574,REDACTED PERSONAL DATA,4002179,214187,02/01/2019,1151.44,0,JEA,Senior Management,4809,Special Guardianship,Children'S Services
Blackpool Council,1090574,REDACTED PERSONAL DATA,4002180,213956,02/01/2019,1209,0,JEA,Senior Management,4809,Special Guardianship,Children'S Services
Blackpool Council,1090630,REDACTED PERSONAL DATA,4002181,213914,02/01/2019,726.28,0,JEA,Senior Management,4809,Special Guardianship,Children'S Services
Blackpool Council,1090630,REDACTED PERSONAL DATA,4002182,213856,02/01/2019,633.28,0,JEA,Senior Management,4809,Special Guardianship,Children'S Services
Blackpool Council,1091208,REDACTED PERSONAL DATA,4002183,214116,02/01/2019,726.28,0,JEA,Senior Management,4809,Special Guardianship,Children'S Services
Blackpool Council,1091538,REDACTED PERSONAL DATA,4002184,214110,02/01/2019,845.85,0,JEA,Senior Management,4809,Special Guardianship,Children'S Services
Blackpool Council,1092226,REDACTED PERSONAL DATA,4002185,214148,02/01/2019,633.28,0,JEA,Senior Management,4809,Special Guardianship,Children'S Services
Blackpool Council,1092955,REDACTED PERSONAL DATA,4002186,213990,02/01/2019,633.28,0,JEA,Senior Management,4809,Special Guardianship,Children'S Services
Blackpool Council,1093033,REDACTED PERSONAL DATA,4002187,213983,02/01/2019,633.28,0,JEA,Senior Management,4809,Special Guardianship,Children'S Services
Blackpool Council,1093432,REDACTED PERSONAL DATA,4002188,213989,02/01/2019,633.28,0,JEA,Senior Management,4809,Special Guardianship,Children'S Services
Blackpool Council,1093432,REDACTED PERSONAL DATA,4002189,213917,02/01/2019,726.28,0,JEA,Senior Management,4809,Special Guardianship,Children'S Services
Blackpool Council,1093556,REDACTED PERSONAL DATA,4002190,213857,02/01/2019,633.28,0,JEA,Senior Management,4809,Special Guardianship,Children'S Services
Blackpool Council,1093573,REDACTED PERSONAL DATA,4002191,214058,02/01/2019,726.28,0,JEA,Senior Management,4809,Special Guardianship,Children'S Services
Blackpool Council,1094329,REDACTED PERSONAL DATA,4002192,214153,02/01/2019,633.28,0,JEA,Senior Management,4809,Special Guardianship,Children'S Services
Blackpool Council,1095249,REDACTED PERSONAL DATA,4002193,214059,02/01/2019,726.28,0,JEA,Senior Management,4809,Special Guardianship,Children'S Services
Blackpool Council,1095249,REDACTED PERSONAL DATA,4002194,214109,02/01/2019,633.28,0,JEA,Senior Management,4809,Special Guardianship,Children'S Services
Blackpool Council,1095249,REDACTED PERSONAL DATA,4002195,214060,02/01/2019,633.28,0,JEA,Senior Management,4809,Special Guardianship,Children'S Services
Blackpool Council,1095280,REDACTED PERSONAL DATA,4002196,214075,02/01/2019,726.28,0,JEA,Senior Management,4811,Residence Orders,Children'S Services
Blackpool Council,1095280,REDACTED PERSONAL DATA,4002197,214214,02/01/2019,726.28,0,JEA,Senior Management,4811,Residence Orders,Children'S Services
Blackpool Council,1095510,REDACTED PERSONAL DATA,4002198,213935,02/01/2019,726.28,0,JEA,Senior Management,4809,Special Guardianship,Children'S Services
Blackpool Council,1095510,REDACTED PERSONAL DATA,4002199,214168,02/01/2019,726.28,0,JEA,Senior Management,4809,Special Guardianship,Children'S Services
Blackpool Council,1095873,REDACTED PERSONAL DATA,4002200,214158,02/01/2019,633.28,0,JEA,Senior Management,4809,Special Guardianship,Children'S Services
Blackpool Council,1095873,REDACTED PERSONAL DATA,4002201,213864,02/01/2019,845.85,0,JEA,Senior Management,4809,Special Guardianship,Children'S Services
Blackpool Council,1095956,REDACTED PERSONAL DATA,4002202,213916,02/01/2019,633.28,0,JEA,Senior Management,4809,Special Guardianship,Children'S Services
Blackpool Council,1096099,REDACTED PERSONAL DATA,4002203,213862,02/01/2019,633.28,0,JEA,Senior Management,4809,Special Guardianship,Children'S Services
Blackpool Council,1096099,REDACTED PERSONAL DATA,4002204,213861,02/01/2019,633.28,0,JEA,Senior Management,4809,Special Guardianship,Children'S Services
Blackpool Council,1096411,REDACTED PERSONAL DATA,4002205,214003,02/01/2019,633.28,0,JEA,Senior Management,4809,Special Guardianship,Children'S Services
Blackpool Council,1096411,REDACTED PERSONAL DATA,4002206,213866,02/01/2019,633.28,0,JEA,Senior Management,4809,Special Guardianship,Children'S Services
Blackpool Council,1096569,REDACTED PERSONAL DATA,4002207,213913,02/01/2019,633.28,0,JEA,Senior Management,4809,Special Guardianship,Children'S Services
Blackpool Council,1096576,REDACTED PERSONAL DATA,4002208,214149,02/01/2019,633.28,0,JEA,Senior Management,4809,Special Guardianship,Children'S Services
Blackpool Council,1096776,REDACTED PERSONAL DATA,4002209,213859,02/01/2019,726.28,0,JEA,Senior Management,4809,Special Guardianship,Children'S Services
Blackpool Council,1096875,REDACTED PERSONAL DATA,4002210,213987,02/01/2019,633.28,0,JEA,Senior Management,4809,Special Guardianship,Children'S Services
Blackpool Council,1096875,REDACTED PERSONAL DATA,4002211,213926,02/01/2019,633.28,0,JEA,Senior Management,4809,Special Guardianship,Children'S Services
Blackpool Council,1097143,REDACTED PERSONAL DATA,4002212,214207,02/01/2019,633.28,0,JBR,Lac - Placements,4814,Adoption Allowances,Children'S Services
Blackpool Council,1097143,REDACTED PERSONAL DATA,4002213,214208,02/01/2019,726.28,0,JBR,Lac - Placements,4814,Adoption Allowances,Children'S Services
Blackpool Council,1097161,REDACTED PERSONAL DATA,4002214,214136,02/01/2019,726.28,0,JBR,Lac - Placements,4814,Adoption Allowances,Children'S Services
Blackpool Council,1097279,REDACTED PERSONAL DATA,4002215,214001,02/01/2019,726.28,0,JEA,Senior Management,4809,Special Guardianship,Children'S Services
Blackpool Council,1097279,REDACTED PERSONAL DATA,4002216,213925,02/01/2019,726.28,0,JEA,Senior Management,4809,Special Guardianship,Children'S Services
Blackpool Council,1097279,REDACTED PERSONAL DATA,4002217,214002,02/01/2019,726.28,0,JEA,Senior Management,4809,Special Guardianship,Children'S Services
Blackpool Council,1097281,REDACTED PERSONAL DATA,4002218,214159,02/01/2019,633.28,0,JEA,Senior Management,4809,Special Guardianship,Children'S Services
Blackpool Council,1097474,REDACTED PERSONAL DATA,4002219,214151,02/01/2019,633.28,0,JEA,Senior Management,4809,Special Guardianship,Children'S Services
Blackpool Council,1097474,REDACTED PERSONAL DATA,4002220,213884,02/01/2019,575.72,0,JEA,Senior Management,4809,Special Guardianship,Children'S Services
Blackpool Council,1097980,REDACTED PERSONAL DATA,4002221,213867,02/01/2019,633.28,0,JEA,Senior Management,4809,Special Guardianship,Children'S Services
Blackpool Council,1098016,REDACTED PERSONAL DATA,4002222,213918,02/01/2019,633.28,0,JEA,Senior Management,4809,Special Guardianship,Children'S Services
Blackpool Council,1098016,REDACTED PERSONAL DATA,4002223,213992,02/01/2019,633.28,0,JEA,Senior Management,4809,Special Guardianship,Children'S Services
Blackpool Council,1098048,REDACTED PERSONAL DATA,4002224,213977,02/01/2019,633.28,0,JEA,Senior Management,4811,Residence Orders,Children'S Services
Blackpool Council,1098051,REDACTED PERSONAL DATA,4002225,214120,02/01/2019,633.28,0,JBR,Lac - Placements,4814,Adoption Allowances,Children'S Services
Blackpool Council,1098264,REDACTED PERSONAL DATA,4002226,214069,02/01/2019,885.72,0,JBR,Lac - Placements,4814,Adoption Allowances,Children'S Services
Blackpool Council,1098406,REDACTED PERSONAL DATA,4002227,213921,02/01/2019,633.28,0,JEA,Senior Management,4809,Special Guardianship,Children'S Services
Blackpool Council,1098406,REDACTED PERSONAL DATA,4002228,213994,02/01/2019,633.28,0,JEA,Senior Management,4809,Special Guardianship,Children'S Services
Blackpool Council,1098564,REDACTED PERSONAL DATA,4002229,214157,02/01/2019,633.28,0,JEA,Senior Management,4809,Special Guardianship,Children'S Services
Blackpool Council,1098564,REDACTED PERSONAL DATA,4002230,213863,02/01/2019,633.28,0,JEA,Senior Management,4809,Special Guardianship,Children'S Services
Blackpool Council,1098878,REDACTED PERSONAL DATA,4002231,214213,02/01/2019,1070.69,0,JEA,Senior Management,4809,Special Guardianship,Children'S Services
Blackpool Council,1099199,REDACTED PERSONAL DATA,4002232,214077,02/01/2019,575.72,0,JEA,Senior Management,4809,Special Guardianship,Children'S Services
Blackpool Council,1099199,REDACTED PERSONAL DATA,4002233,214217,02/01/2019,562.43,0,JEA,Senior Management,4809,Special Guardianship,Children'S Services
Blackpool Council,1099323,REDACTED PERSONAL DATA,4002234,214108,02/01/2019,726.28,0,JEA,Senior Management,4809,Special Guardianship,Children'S Services
Blackpool Council,1099331,REDACTED PERSONAL DATA,4002235,214152,02/01/2019,633.28,0,JEA,Senior Management,4809,Special Guardianship,Children'S Services
Blackpool Council,1099340,REDACTED PERSONAL DATA,4002236,214033,02/01/2019,726.28,0,JBR,Lac - Placements,4814,Adoption Allowances,Children'S Services
Blackpool Council,1099367,REDACTED PERSONAL DATA,4002237,214000,02/01/2019,811.14,0,JEA,Senior Management,4809,Special Guardianship,Children'S Services
Blackpool Council,1099367,REDACTED PERSONAL DATA,4002238,214160,02/01/2019,726.28,0,JEA,Senior Management,4809,Special Guardianship,Children'S Services
Blackpool Council,1099431,REDACTED PERSONAL DATA,4002239,213996,02/01/2019,633.28,0,JEA,Senior Management,4809,Special Guardianship,Children'S Services
Blackpool Council,1099431,REDACTED PERSONAL DATA,4002240,213923,02/01/2019,633.28,0,JEA,Senior Management,4809,Special Guardianship,Children'S Services
Blackpool Council,1099523,REDACTED PERSONAL DATA,4002241,214155,02/01/2019,633.28,0,JEA,Senior Management,4809,Special Guardianship,Children'S Services
Blackpool Council,1099523,REDACTED PERSONAL DATA,4002242,213995,02/01/2019,633.28,0,JEA,Senior Management,4809,Special Guardianship,Children'S Services
Blackpool Council,1099523,REDACTED PERSONAL DATA,4002243,213922,02/01/2019,633.28,0,JEA,Senior Management,4809,Special Guardianship,Children'S Services
Blackpool Council,1099900,REDACTED PERSONAL DATA,4002244,214171,02/01/2019,1009.71,0,JEA,Senior Management,4809,Special Guardianship,Children'S Services
Blackpool Council,1099900,REDACTED PERSONAL DATA,4002245,214014,02/01/2019,1009.71,0,JEA,Senior Management,4809,Special Guardianship,Children'S Services
Blackpool Council,1099918,REDACTED PERSONAL DATA,4002246,213997,02/01/2019,633.28,0,JEA,Senior Management,4809,Special Guardianship,Children'S Services
Blackpool Council,1100098,REDACTED PERSONAL DATA,4002247,214197,02/01/2019,633.28,0,JEA,Senior Management,4809,Special Guardianship,Children'S Services
Blackpool Council,1100098,REDACTED PERSONAL DATA,4002248,214196,02/01/2019,633.28,0,JEA,Senior Management,4809,Special Guardianship,Children'S Services
Blackpool Council,1100450,REDACTED PERSONAL DATA,4002249,214124,02/01/2019,726.28,0,JBR,Lac - Placements,4814,Adoption Allowances,Children'S Services
Blackpool Council,1100450,REDACTED PERSONAL DATA,4002250,214218,02/01/2019,633.28,0,JBR,Lac - Placements,4814,Adoption Allowances,Children'S Services
Blackpool Council,1100455,REDACTED PERSONAL DATA,4002251,214122,02/01/2019,633.28,0,JBR,Lac - Placements,4814,Adoption Allowances,Children'S Services
Blackpool Council,1100455,REDACTED PERSONAL DATA,4002252,214216,02/01/2019,633.28,0,JBR,Lac - Placements,4814,Adoption Allowances,Children'S Services
Blackpool Council,1100685,REDACTED PERSONAL DATA,4002253,213929,02/01/2019,633.28,0,JEA,Senior Management,4809,Special Guardianship,Children'S Services
Blackpool Council,1100963,REDACTED PERSONAL DATA,4002254,214156,02/01/2019,633.28,0,JEA,Senior Management,4809,Special Guardianship,Children'S Services
Blackpool Council,1101353,REDACTED PERSONAL DATA,4002255,214163,02/01/2019,726.28,0,JEA,Senior Management,4809,Special Guardianship,Children'S Services
Blackpool Council,1101354,REDACTED PERSONAL DATA,4002256,213865,02/01/2019,633.28,0,JEA,Senior Management,4809,Special Guardianship,Children'S Services
Blackpool Council,1101713,REDACTED PERSONAL DATA,4002257,214101,02/01/2019,575.72,0,JEA,Senior Management,4809,Special Guardianship,Children'S Services
Blackpool Council,1101713,REDACTED PERSONAL DATA,4002258,214021,02/01/2019,726.28,0,JEA,Senior Management,4809,Special Guardianship,Children'S Services
Blackpool Council,1101877,REDACTED PERSONAL DATA,4002259,214161,02/01/2019,633.28,0,JEA,Senior Management,4809,Special Guardianship,Children'S Services
Blackpool Council,1101935,REDACTED PERSONAL DATA,4002260,214223,02/01/2019,575.72,0,JEA,Senior Management,4809,Special Guardianship,Children'S Services
Blackpool Council,1102002,REDACTED PERSONAL DATA,4002261,213906,02/01/2019,845.85,0,JEA,Senior Management,4811,Residence Orders,Children'S Services
Blackpool Council,1102142,REDACTED PERSONAL DATA,4002262,213999,02/01/2019,633.28,0,JEA,Senior Management,4809,Special Guardianship,Children'S Services
Blackpool Council,1102145,REDACTED PERSONAL DATA,4002263,213993,02/01/2019,726.28,0,JEA,Senior Management,4809,Special Guardianship,Children'S Services
Blackpool Council,1102685,REDACTED PERSONAL DATA,4002264,214074,02/01/2019,613.18,0,JEA,Senior Management,4809,Special Guardianship,Children'S Services
Blackpool Council,1102721,REDACTED PERSONAL DATA,4002265,213924,02/01/2019,633.28,0,JEA,Senior Management,4809,Special Guardianship,Children'S Services
Blackpool Council,1102721,REDACTED PERSONAL DATA,4002266,214091,02/01/2019,575.72,0,JEA,Senior Management,4809,Special Guardianship,Children'S Services
Blackpool Council,1103207,REDACTED PERSONAL DATA,4002267,213845,02/01/2019,633.28,0,JBR,Lac - Placements,4814,Adoption Allowances,Children'S Services
Blackpool Council,1103207,REDACTED PERSONAL DATA,4002268,213967,02/01/2019,633.28,0,JBR,Lac - Placements,4814,Adoption Allowances,Children'S Services
Blackpool Council,1103230,REDACTED PERSONAL DATA,4002269,213930,02/01/2019,633.28,0,JEA,Senior Management,4809,Special Guardianship,Children'S Services
Blackpool Council,1103557,REDACTED PERSONAL DATA,4002270,214027,02/01/2019,575.72,0,JEA,Senior Management,4809,Special Guardianship,Children'S Services
Blackpool Council,1103561,REDACTED PERSONAL DATA,4002271,213932,02/01/2019,575.72,0,JEA,Senior Management,4809,Special Guardianship,Children'S Services
Blackpool Council,1103561,REDACTED PERSONAL DATA,4002272,214164,02/01/2019,636.29,0,JEA,Senior Management,4809,Special Guardianship,Children'S Services
Blackpool Council,1103621,REDACTED PERSONAL DATA,4002273,213890,02/01/2019,575.72,0,JEA,Senior Management,4811,Residence Orders,Children'S Services
Blackpool Council,1103757,REDACTED PERSONAL DATA,4002274,214222,02/01/2019,1209,0,JEA,Senior Management,4809,Special Guardianship,Children'S Services
Blackpool Council,1103757,REDACTED PERSONAL DATA,4002275,213903,02/01/2019,726.28,0,JBR,Lac - Placements,4814,Adoption Allowances,Children'S Services
Blackpool Council,1103853,REDACTED PERSONAL DATA,4002276,214009,02/01/2019,575.72,0,JEA,Senior Management,4809,Special Guardianship,Children'S Services
Blackpool Council,1103855,REDACTED PERSONAL DATA,4002277,213931,02/01/2019,633.28,0,JEA,Senior Management,4809,Special Guardianship,Children'S Services
Blackpool Council,1103921,REDACTED PERSONAL DATA,4002278,214106,02/01/2019,575.72,0,JEA,Senior Management,4809,Special Guardianship,Children'S Services
Blackpool Council,1104007,REDACTED PERSONAL DATA,4002279,214104,02/01/2019,633.28,0,JEA,Senior Management,4809,Special Guardianship,Children'S Services
Blackpool Council,1104023,REDACTED PERSONAL DATA,4002280,213869,02/01/2019,633.28,0,JEA,Senior Management,4809,Special Guardianship,Children'S Services
Blackpool Council,1104023,REDACTED PERSONAL DATA,4002281,214167,02/01/2019,633.28,0,JEA,Senior Management,4809,Special Guardianship,Children'S Services
Blackpool Council,1104041,REDACTED PERSONAL DATA,4002282,213927,02/01/2019,575.72,0,JEA,Senior Management,4809,Special Guardianship,Children'S Services
Blackpool Council,1104276,REDACTED PERSONAL DATA,4002283,214139,02/01/2019,633.28,0,JEA,Senior Management,4811,Residence Orders,Children'S Services
Blackpool Council,1104276,REDACTED PERSONAL DATA,4002284,213970,02/01/2019,575.72,0,JEA,Senior Management,4811,Residence Orders,Children'S Services
Blackpool Council,1104276,REDACTED PERSONAL DATA,4002285,213971,02/01/2019,633.28,0,JEA,Senior Management,4811,Residence Orders,Children'S Services
Blackpool Council,1104610,REDACTED PERSONAL DATA,4002286,214004,02/01/2019,633.28,0,JEA,Senior Management,4809,Special Guardianship,Children'S Services
Blackpool Council,1104777,REDACTED PERSONAL DATA,4002287,213936,02/01/2019,726.28,0,JEA,Senior Management,4809,Special Guardianship,Children'S Services
Blackpool Council,1104780,REDACTED PERSONAL DATA,4002288,214013,02/01/2019,575.72,0,JEA,Senior Management,4809,Special Guardianship,Children'S Services
Blackpool Council,1105055,REDACTED PERSONAL DATA,4002289,214123,02/01/2019,633.28,0,JBR,Lac - Placements,4814,Adoption Allowances,Children'S Services
Blackpool Council,1105132,REDACTED PERSONAL DATA,4002290,214176,02/01/2019,633.28,0,JEA,Senior Management,4809,Special Guardianship,Children'S Services
Blackpool Council,1105132,REDACTED PERSONAL DATA,4002291,213875,02/01/2019,726.28,0,JEA,Senior Management,4809,Special Guardianship,Children'S Services
Blackpool Council,1105216,REDACTED PERSONAL DATA,4002292,214165,02/01/2019,575.72,0,JEA,Senior Management,4809,Special Guardianship,Children'S Services
Blackpool Council,1105271,REDACTED PERSONAL DATA,4002293,214012,02/01/2019,575.72,0,JEA,Senior Management,4809,Special Guardianship,Children'S Services
Blackpool Council,1105544,REDACTED PERSONAL DATA,4002294,213928,02/01/2019,633.28,0,JEA,Senior Management,4809,Special Guardianship,Children'S Services
Blackpool Council,1105544,REDACTED PERSONAL DATA,4002295,214162,02/01/2019,633.28,0,JEA,Senior Management,4809,Special Guardianship,Children'S Services
Blackpool Council,1105544,REDACTED PERSONAL DATA,4002296,214053,02/01/2019,575.72,0,JEA,Senior Management,4809,Special Guardianship,Children'S Services
Blackpool Council,1105579,REDACTED PERSONAL DATA,4002297,213868,02/01/2019,845.85,0,JEA,Senior Management,4809,Special Guardianship,Children'S Services
Blackpool Council,1105579,REDACTED PERSONAL DATA,4002298,214006,02/01/2019,726.28,0,JEA,Senior Management,4809,Special Guardianship,Children'S Services
Blackpool Council,1105610,REDACTED PERSONAL DATA,4002299,214007,02/01/2019,575.72,0,JEA,Senior Management,4809,Special Guardianship,Children'S Services
Blackpool Council,1105772,REDACTED PERSONAL DATA,4002300,214212,02/01/2019,885.72,0,JBR,Lac - Placements,4814,Adoption Allowances,Children'S Services
Blackpool Council,1105818,REDACTED PERSONAL DATA,4002301,213966,02/01/2019,594.28,0,JBR,Lac - Placements,4814,Adoption Allowances,Children'S Services
Blackpool Council,1105830,REDACTED PERSONAL DATA,4002302,213947,02/01/2019,726.28,0,JEA,Senior Management,4809,Special Guardianship,Children'S Services
Blackpool Council,1105956,REDACTED PERSONAL DATA,4002303,214112,02/01/2019,726.28,0,JEA,Senior Management,4809,Special Guardianship,Children'S Services
Blackpool Council,1106444,REDACTED PERSONAL DATA,4002304,214169,02/01/2019,575.72,0,JEA,Senior Management,4809,Special Guardianship,Children'S Services
Blackpool Council,1106465,REDACTED PERSONAL DATA,4002305,214086,02/01/2019,575.72,0,JEA,Senior Management,4809,Special Guardianship,Children'S Services
Blackpool Council,1106466,REDACTED PERSONAL DATA,4002306,213943,02/01/2019,726.28,0,JEA,Senior Management,4809,Special Guardianship,Children'S Services
Blackpool Council,1106549,REDACTED PERSONAL DATA,4002307,214011,02/01/2019,575.72,0,JEA,Senior Management,4809,Special Guardianship,Children'S Services
Blackpool Council,1106549,REDACTED PERSONAL DATA,4002308,214010,02/01/2019,633.28,0,JEA,Senior Management,4809,Special Guardianship,Children'S Services
Blackpool Council,1106588,REDACTED PERSONAL DATA,4002309,213871,02/01/2019,633.28,0,JEA,Senior Management,4809,Special Guardianship,Children'S Services
Blackpool Council,1106714,REDACTED PERSONAL DATA,4002310,213881,02/01/2019,575.72,0,JEA,Senior Management,4809,Special Guardianship,Children'S Services
Blackpool Council,1106754,REDACTED PERSONAL DATA,4002311,213883,02/01/2019,575.72,0,JEA,Senior Management,4809,Special Guardianship,Children'S Services
Blackpool Council,1106755,REDACTED PERSONAL DATA,4002312,214085,02/01/2019,633.28,0,JEA,Senior Management,4809,Special Guardianship,Children'S Services
Blackpool Council,1106755,REDACTED PERSONAL DATA,4002313,213940,02/01/2019,633.28,0,JEA,Senior Management,4809,Special Guardianship,Children'S Services
Blackpool Council,1106756,REDACTED PERSONAL DATA,4002314,214034,02/01/2019,633.28,0,JEA,Senior Management,4809,Special Guardianship,Children'S Services
Blackpool Council,1107064,REDACTED PERSONAL DATA,4002315,213945,02/01/2019,633.28,0,JEA,Senior Management,4809,Special Guardianship,Children'S Services
Blackpool Council,1107232,REDACTED PERSONAL DATA,4002316,213949,02/01/2019,633.28,0,JEA,Senior Management,4809,Special Guardianship,Children'S Services
Blackpool Council,1107232,REDACTED PERSONAL DATA,4002317,213950,02/01/2019,633.28,0,JEA,Senior Management,4809,Special Guardianship,Children'S Services
Blackpool Council,1107327,REDACTED PERSONAL DATA,4002318,213948,02/01/2019,666.28,0,JEA,Senior Management,4809,Special Guardianship,Children'S Services
Blackpool Council,1107327,REDACTED PERSONAL DATA,4002319,214177,02/01/2019,633.28,0,JEA,Senior Management,4809,Special Guardianship,Children'S Services
Blackpool Council,1107463,REDACTED PERSONAL DATA,4002320,214105,02/01/2019,575.72,0,JEA,Senior Management,4809,Special Guardianship,Children'S Services
Blackpool Council,1107507,REDACTED PERSONAL DATA,4002321,214089,02/01/2019,575.72,0,JEA,Senior Management,4809,Special Guardianship,Children'S Services
Blackpool Council,1107631,REDACTED PERSONAL DATA,4002322,214056,02/01/2019,633.28,0,JEA,Senior Management,4809,Special Guardianship,Children'S Services
Blackpool Council,1107693,REDACTED PERSONAL DATA,4002323,214092,02/01/2019,726.28,0,JEA,Senior Management,4809,Special Guardianship,Children'S Services
Blackpool Council,1107776,REDACTED PERSONAL DATA,4002324,214057,02/01/2019,575.72,0,JEA,Senior Management,4809,Special Guardianship,Children'S Services
Blackpool Council,1107820,REDACTED PERSONAL DATA,4002325,214094,02/01/2019,633.28,0,JEA,Senior Management,4809,Special Guardianship,Children'S Services
Blackpool Council,1107830,REDACTED PERSONAL DATA,4002326,213951,02/01/2019,633.28,0,JEA,Senior Management,4809,Special Guardianship,Children'S Services
Blackpool Council,1107945,REDACTED PERSONAL DATA,4002327,214198,02/01/2019,575.72,0,JEA,Senior Management,4809,Special Guardianship,Children'S Services
Blackpool Council,1108085,REDACTED PERSONAL DATA,4002328,214181,02/01/2019,726.28,0,JEA,Senior Management,4809,Special Guardianship,Children'S Services
Blackpool Council,1108127,REDACTED PERSONAL DATA,4002329,214023,02/01/2019,633.28,0,JEA,Senior Management,4809,Special Guardianship,Children'S Services
Blackpool Council,1108127,REDACTED PERSONAL DATA,4002330,214054,02/01/2019,633.28,0,JEA,Senior Management,4809,Special Guardianship,Children'S Services
Blackpool Council,1108216,REDACTED PERSONAL DATA,4002331,214093,02/01/2019,633.28,0,JEA,Senior Management,4809,Special Guardianship,Children'S Services
Blackpool Council,1108354,REDACTED PERSONAL DATA,4002332,213847,02/01/2019,726.28,0,JEA,Senior Management,4811,Residence Orders,Children'S Services
Blackpool Council,1108354,REDACTED PERSONAL DATA,4002333,213907,02/01/2019,726.28,0,JEA,Senior Management,4811,Residence Orders,Children'S Services
Blackpool Council,1108354,REDACTED PERSONAL DATA,4002334,213972,02/01/2019,815,0,JEA,Senior Management,4811,Residence Orders,Children'S Services
Blackpool Council,1108372,REDACTED PERSONAL DATA,4002335,214100,02/01/2019,633.28,0,JEA,Senior Management,4809,Special Guardianship,Children'S Services
Blackpool Council,1108372,REDACTED PERSONAL DATA,4002336,213893,02/01/2019,575.72,0,JEA,Senior Management,4809,Special Guardianship,Children'S Services
Blackpool Council,1108372,REDACTED PERSONAL DATA,4002337,214188,02/01/2019,633.28,0,JEA,Senior Management,4809,Special Guardianship,Children'S Services
Blackpool Council,1108383,REDACTED PERSONAL DATA,4002338,214026,02/01/2019,575.72,0,JEA,Senior Management,4809,Special Guardianship,Children'S Services
Blackpool Council,1108400,REDACTED PERSONAL DATA,4002339,214195,02/01/2019,575.72,0,JEA,Senior Management,4809,Special Guardianship,Children'S Services
Blackpool Council,1108495,REDACTED PERSONAL DATA,4002340,214138,02/01/2019,1151.44,0,JBR,Lac - Placements,4814,Adoption Allowances,Children'S Services
Blackpool Council,1108534,REDACTED PERSONAL DATA,4002341,213942,02/01/2019,575.72,0,JEA,Senior Management,4809,Special Guardianship,Children'S Services
Blackpool Council,1108593,REDACTED PERSONAL DATA,4002342,214024,02/01/2019,633.28,0,JEA,Senior Management,4809,Special Guardianship,Children'S Services
Blackpool Council,1108795,REDACTED PERSONAL DATA,4002343,214199,02/01/2019,633.28,0,JEA,Senior Management,4809,Special Guardianship,Children'S Services
Blackpool Council,1108938,REDACTED PERSONAL DATA,4002344,214200,02/01/2019,633.28,0,JEA,Senior Management,4809,Special Guardianship,Children'S Services
Blackpool Council,1108938,REDACTED PERSONAL DATA,4002345,214201,02/01/2019,575.72,0,JEA,Senior Management,4809,Special Guardianship,Children'S Services
Blackpool Council,1109172,REDACTED PERSONAL DATA,4002346,213944,02/01/2019,845.85,0,JEA,Senior Management,4809,Special Guardianship,Children'S Services
Blackpool Council,1109172,REDACTED PERSONAL DATA,4002347,214191,02/01/2019,575.72,0,JEA,Senior Management,4809,Special Guardianship,Children'S Services
Blackpool Council,1109393,REDACTED PERSONAL DATA,4002348,214050,02/01/2019,575.72,0,JEA,Senior Management,4809,Special Guardianship,Children'S Services
Blackpool Council,1109738,REDACTED PERSONAL DATA,4002349,214204,02/01/2019,575.72,0,JEA,Senior Management,4809,Special Guardianship,Children'S Services
Blackpool Council,1109751,REDACTED PERSONAL DATA,4002350,214203,02/01/2019,633.28,0,JEA,Senior Management,4809,Special Guardianship,Children'S Services
Blackpool Council,1109751,REDACTED PERSONAL DATA,4002351,214107,02/01/2019,633.28,0,JEA,Senior Management,4809,Special Guardianship,Children'S Services
Blackpool Council,1110206,REDACTED PERSONAL DATA,4002352,213969,02/01/2019,633.28,0,JBR,Lac - Placements,4814,Adoption Allowances,Children'S Services
Blackpool Council,1110334,REDACTED PERSONAL DATA,4002353,214102,02/01/2019,575.72,0,JEA,Senior Management,4809,Special Guardianship,Children'S Services
Blackpool Council,1110634,REDACTED PERSONAL DATA,4002354,213941,02/01/2019,633.28,0,JEA,Senior Management,4809,Special Guardianship,Children'S Services
Blackpool Council,1110634,REDACTED PERSONAL DATA,4002355,213872,02/01/2019,726.28,0,JEA,Senior Management,4809,Special Guardianship,Children'S Services
Blackpool Council,1110634,REDACTED PERSONAL DATA,4002356,214172,02/01/2019,633.28,0,JEA,Senior Management,4809,Special Guardianship,Children'S Services
Blackpool Council,1110684,REDACTED PERSONAL DATA,4002357,213894,02/01/2019,633.28,0,JEA,Senior Management,4809,Special Guardianship,Children'S Services
Blackpool Council,1110718,REDACTED PERSONAL DATA,4002358,214019,02/01/2019,575.72,0,JEA,Senior Management,4809,Special Guardianship,Children'S Services
Blackpool Council,1110769,REDACTED PERSONAL DATA,4002359,213895,02/01/2019,575.72,0,JEA,Senior Management,4809,Special Guardianship,Children'S Services
Blackpool Council,1110785,REDACTED PERSONAL DATA,4002360,214103,02/01/2019,575.72,0,JEA,Senior Management,4809,Special Guardianship,Children'S Services
Blackpool Council,1110785,REDACTED PERSONAL DATA,4002361,214192,02/01/2019,633.28,0,JEA,Senior Management,4809,Special Guardianship,Children'S Services
Blackpool Council,1110785,REDACTED PERSONAL DATA,4002362,214018,02/01/2019,575.72,0,JEA,Senior Management,4809,Special Guardianship,Children'S Services
Blackpool Council,1110785,REDACTED PERSONAL DATA,4002363,214017,02/01/2019,633.28,0,JEA,Senior Management,4809,Special Guardianship,Children'S Services
Blackpool Council,1110958,REDACTED PERSONAL DATA,4002364,214016,02/01/2019,575.72,0,JEA,Senior Management,4809,Special Guardianship,Children'S Services
Blackpool Council,1111024,REDACTED PERSONAL DATA,4002365,214117,02/01/2019,633.28,0,JEA,Senior Management,4809,Special Guardianship,Children'S Services
Blackpool Council,1111111,REDACTED PERSONAL DATA,4002366,214051,02/01/2019,633.28,0,JEA,Senior Management,4809,Special Guardianship,Children'S Services
Blackpool Council,1111111,REDACTED PERSONAL DATA,4002367,213896,02/01/2019,726.28,0,JEA,Senior Management,4809,Special Guardianship,Children'S Services
Blackpool Council,1111111,REDACTED PERSONAL DATA,4002368,213897,02/01/2019,633.28,0,JEA,Senior Management,4809,Special Guardianship,Children'S Services
Blackpool Council,1111143,REDACTED PERSONAL DATA,4002369,213898,02/01/2019,575.72,0,JEA,Senior Management,4809,Special Guardianship,Children'S Services
Blackpool Council,1111194,REDACTED PERSONAL DATA,4002370,214127,02/01/2019,633.28,0,JEA,Senior Management,4809,Special Guardianship,Children'S Services
Blackpool Council,1111194,REDACTED PERSONAL DATA,4002371,214047,02/01/2019,633.28,0,JEA,Senior Management,4809,Special Guardianship,Children'S Services
Blackpool Council,1111443,REDACTED PERSONAL DATA,4002372,213939,02/01/2019,633.28,0,JEA,Senior Management,4809,Special Guardianship,Children'S Services
